﻿Directorate,Service,Division,Responsible Unit,Expense Type,Payment Date,Trans No,Net Amount,Supplier Name
Childrens Services,Education Services,Early Years,John Smith CC,Office Furniture/Equipment,01/02/2019,5159346,-727.58,INSIGHT DIRECT (UK) LTD
Childrens Services,Education Services,Early Years,Wapping CC,Photocopier Charges - Consumables,01/02/2019,5162883,499.77,Supplies Team Ltd
Childrens Services,Children's Social Care,Family Support Services,CNN Pool: Joint Family Support,Services - Professional Fees - Translation Fees,01/02/2019,5162916,847.75,Oncall Interpreters LTD
Childrens Services,Children's Social Care,Service Strategy,FSP Sect 17 - Team 3,Childrens Act Section 17 - Interpreting/Translation,01/02/2019,5162924,"1,129.00",Oncall Interpreters LTD
Childrens Services,Children's Social Care,Service Strategy,"FSP Sect 17 - Team 8		",Childrens Act Section 17 - Interpreting/Translation,01/02/2019,5162925,756.00,Oncall Interpreters LTD
Childrens Services,Children's Social Care,Children's and Young People's Safety,FSP Sect 17 - Team 10,Childrens Act Section 17 - Interpreting/Translation,01/02/2019,5162928,"1,339.00",Oncall Interpreters LTD
Childrens Services,Children's Social Care,Children Looked After,S23-Other-Semi-Ind. Unit,Childrens Act Section 23 - Interpreting/Translation,01/02/2019,5162938,"1,658.40",Oncall Interpreters LTD
Childrens Services,Children's Social Care,Support Service and Management Costs,Schools Catering,Kitchen Supplies - Food and Beverages,01/02/2019,5163003,750.31,Thomas Ridley & Son Ltd
Childrens Services,Children's Social Care,Support Service and Management Costs,Schools Catering,Kitchen Supplies - Food and Beverages,01/02/2019,5163004,409.50,Thomas Ridley & Son Ltd
Childrens Services,Children's Social Care,Support Service and Management Costs,Welfare Catering,Kitchen Supplies - Food and Beverages,01/02/2019,5163005,410.64,Thomas Ridley & Son Ltd
Childrens Services,Children's Social Care,Support Service and Management Costs,Sch. Meals A/c - Central Production Unit,Kitchen Supplies - Food and Beverages,01/02/2019,5163006,"1,288.50",Thomas Ridley & Son Ltd
Childrens Services,Children's Social Care,Support Service and Management Costs,Schools Catering,Kitchen Supplies - Food and Beverages,01/02/2019,5163007,375.59,Thomas Ridley & Son Ltd
Childrens Services,Children's Social Care,Support Service and Management Costs,Schools Catering,Kitchen Supplies - Food and Beverages,01/02/2019,5163008,912.07,Thomas Ridley & Son Ltd
Childrens Services,Children's Social Care,Support Service and Management Costs,Schools Catering,Kitchen Supplies - Food and Beverages,01/02/2019,5163009,443.20,Thomas Ridley & Son Ltd
Childrens Services,Children's Social Care,Support Service and Management Costs,Schools Catering,Kitchen Supplies - Food and Beverages,01/02/2019,5163010,856.95,Thomas Ridley & Son Ltd
Childrens Services,Children's Social Care,Support Service and Management Costs,Schools Catering,Kitchen Supplies - Food and Beverages,01/02/2019,5163011,474.54,Thomas Ridley & Son Ltd
Childrens Services,Children's Social Care,Support Service and Management Costs,Schools Catering,Kitchen Supplies - Food and Beverages,01/02/2019,5163013,399.30,Thomas Ridley & Son Ltd
Childrens Services,Children's Social Care,Support Service and Management Costs,Schools Catering,Kitchen Supplies - Food and Beverages,01/02/2019,5163014,293.63,Thomas Ridley & Son Ltd
Childrens Services,Children's Social Care,Support Service and Management Costs,Schools Catering,Kitchen Supplies - Food and Beverages,01/02/2019,5163016,772.20,Thomas Ridley & Son Ltd
Childrens Services,Children's Social Care,Support Service and Management Costs,Schools Catering,Kitchen Supplies - Food and Beverages,01/02/2019,5163017,"1,326.90",Thomas Ridley & Son Ltd
Childrens Services,Children's Social Care,Support Service and Management Costs,Schools Catering,Kitchen Supplies - Food and Beverages,01/02/2019,5163018,560.35,Thomas Ridley & Son Ltd
Childrens Services,Children's Social Care,Support Service and Management Costs,Schools Catering,Kitchen Supplies - Food and Beverages,01/02/2019,5163019,494.67,Thomas Ridley & Son Ltd
Childrens Services,Children's Social Care,Support Service and Management Costs,Schools Catering,Kitchen Supplies - Food and Beverages,01/02/2019,5163020,537.45,Thomas Ridley & Son Ltd
Childrens Services,Children's Social Care,Support Service and Management Costs,Schools Catering,Kitchen Supplies - Food and Beverages,01/02/2019,5163021,666.44,Thomas Ridley & Son Ltd
Childrens Services,Children's Social Care,Support Service and Management Costs,Schools Catering,Kitchen Supplies - Food and Beverages,01/02/2019,5163022,591.66,Thomas Ridley & Son Ltd
Childrens Services,Children's Social Care,Support Service and Management Costs,Schools Catering,Kitchen Supplies - Food and Beverages,01/02/2019,5163023,528.24,Thomas Ridley & Son Ltd
Childrens Services,Children's Social Care,Support Service and Management Costs,Schools Catering,Kitchen Supplies - Food and Beverages,01/02/2019,5163024,555.50,Thomas Ridley & Son Ltd
Childrens Services,Children's Social Care,Support Service and Management Costs,Schools Catering,Kitchen Supplies - Food and Beverages,01/02/2019,5163025,566.78,Thomas Ridley & Son Ltd
Childrens Services,Children's Social Care,Support Service and Management Costs,Schools Catering,Kitchen Supplies - Food and Beverages,01/02/2019,5163026,462.25,Thomas Ridley & Son Ltd
Childrens Services,Children's Social Care,Support Service and Management Costs,Schools Catering,Kitchen Supplies - Food and Beverages,01/02/2019,5163027,309.73,Thomas Ridley & Son Ltd
Childrens Services,Children's Social Care,Support Service and Management Costs,Schools Catering,Kitchen Supplies - Food and Beverages,01/02/2019,5163028,562.39,Thomas Ridley & Son Ltd
Childrens Services,Children's Social Care,Support Service and Management Costs,Schools Catering,Kitchen Supplies - Food and Beverages,01/02/2019,5163031,308.00,Thomas Ridley & Son Ltd
Childrens Services,Children's Social Care,Support Service and Management Costs,Schools Catering,Kitchen Supplies - Food and Beverages,01/02/2019,5163032,"1,128.36",Thomas Ridley & Son Ltd
Childrens Services,Children's Social Care,Support Service and Management Costs,Schools Catering,Kitchen Supplies - Food and Beverages,01/02/2019,5163034,371.28,Thomas Ridley & Son Ltd
Childrens Services,Children's Social Care,Support Service and Management Costs,Schools Catering,Kitchen Supplies - Food and Beverages,01/02/2019,5163035,843.46,Thomas Ridley & Son Ltd
Childrens Services,Children's Social Care,Support Service and Management Costs,Schools Catering,Kitchen Supplies - Food and Beverages,01/02/2019,5163036,483.89,Thomas Ridley & Son Ltd
Childrens Services,Children's Social Care,Support Service and Management Costs,Schools Catering,Kitchen Supplies - Food and Beverages,01/02/2019,5163037,514.15,Thomas Ridley & Son Ltd
Childrens Services,Children's Social Care,Support Service and Management Costs,Schools Catering,Kitchen Supplies - Food and Beverages,01/02/2019,5163038,555.27,Thomas Ridley & Son Ltd
Childrens Services,Children's Social Care,Support Service and Management Costs,Schools Catering,Kitchen Supplies - Food and Beverages,01/02/2019,5163039,558.15,Thomas Ridley & Son Ltd
Childrens Services,Children's Social Care,Support Service and Management Costs,Schools Catering,Kitchen Supplies - Food and Beverages,01/02/2019,5163040,276.74,Thomas Ridley & Son Ltd
Childrens Services,Children's Social Care,Support Service and Management Costs,Schools Catering,Kitchen Supplies - Food and Beverages,01/02/2019,5163041,299.83,Thomas Ridley & Son Ltd
Childrens Services,Children's Social Care,Support Service and Management Costs,Schools Catering,Kitchen Supplies - Food and Beverages,01/02/2019,5163042,309.03,Thomas Ridley & Son Ltd
Childrens Services,Children's Social Care,Support Service and Management Costs,Swanlea,Kitchen Supplies - Food and Beverages,01/02/2019,5163043,"1,387.76",Thomas Ridley & Son Ltd
Childrens Services,Children's Social Care,Support Service and Management Costs,Schools Catering,Kitchen Supplies - Food and Beverages,01/02/2019,5163044,510.29,Thomas Ridley & Son Ltd
Childrens Services,Children's Social Care,Support Service and Management Costs,Schools Catering,Kitchen Supplies - Food and Beverages,01/02/2019,5163046,456.78,Thomas Ridley & Son Ltd
Childrens Services,Children's Social Care,Support Service and Management Costs,Schools Catering,Kitchen Supplies - Food and Beverages,01/02/2019,5163048,785.90,Thomas Ridley & Son Ltd
Childrens Services,Children's Social Care,Support Service and Management Costs,Schools Catering,Kitchen Supplies - Food and Beverages,01/02/2019,5163050,"1,069.03",Thomas Ridley & Son Ltd
Childrens Services,Children's Social Care,Support Service and Management Costs,Schools Catering,Kitchen Supplies - Food and Beverages,01/02/2019,5163051,888.45,Thomas Ridley & Son Ltd
Childrens Services,Children's Social Care,Support Service and Management Costs,"Mulberry Caf�		",Kitchen Supplies - Food and Beverages,01/02/2019,5163052,732.38,Thomas Ridley & Son Ltd
Childrens Services,Children's Social Care,Support Service and Management Costs,Schools Catering,Kitchen Supplies - Food and Beverages,01/02/2019,5163053,505.36,Thomas Ridley & Son Ltd
Childrens Services,Children's Social Care,Support Service and Management Costs,Schools Catering,Kitchen Supplies - Food and Beverages,01/02/2019,5163054,577.79,Thomas Ridley & Son Ltd
Childrens Services,Children's Social Care,Support Service and Management Costs,Schools Catering,Kitchen Supplies - Food and Beverages,01/02/2019,5163056,576.18,Thomas Ridley & Son Ltd
Childrens Services,Children's Social Care,Support Service and Management Costs,Schools Catering,Kitchen Supplies - Food and Beverages,01/02/2019,5163058,649.96,Thomas Ridley & Son Ltd
Childrens Services,Children's Social Care,Support Service and Management Costs,Schools Catering,Kitchen Supplies - Food and Beverages,01/02/2019,5163059,383.55,Thomas Ridley & Son Ltd
Childrens Services,Children's Social Care,Support Service and Management Costs,Schools Catering,Kitchen Supplies - Food and Beverages,01/02/2019,5163060,"1,232.14",Thomas Ridley & Son Ltd
Childrens Services,Children's Social Care,Support Service and Management Costs,Schools Catering,Kitchen Supplies - Food and Beverages,01/02/2019,5163061,831.52,Thomas Ridley & Son Ltd
Childrens Services,Children's Social Care,Support Service and Management Costs,Schools Catering,Kitchen Supplies - Food and Beverages,01/02/2019,5163062,530.22,Thomas Ridley & Son Ltd
Childrens Services,Children's Social Care,Support Service and Management Costs,Schools Catering,Kitchen Supplies - Food and Beverages,01/02/2019,5163064,508.11,Thomas Ridley & Son Ltd
Childrens Services,Children's Social Care,Support Service and Management Costs,Schools Catering,Kitchen Supplies - Food and Beverages,01/02/2019,5163065,320.19,Thomas Ridley & Son Ltd
Childrens Services,Children's Social Care,Support Service and Management Costs,Schools Catering,Kitchen Supplies - Food and Beverages,01/02/2019,5163066,277.49,Thomas Ridley & Son Ltd
Childrens Services,Children's Social Care,Support Service and Management Costs,Schools Catering,Kitchen Supplies - Food and Beverages,01/02/2019,5163067,426.52,Thomas Ridley & Son Ltd
Childrens Services,Children's Social Care,Children's and Young People's Safety,CLA Reviewing Service,Non Staff Transport Costs - Reimbursement,01/02/2019,5163096,275.80,RSP Rail Travel (Rail Settlement Plan)
Childrens Services,Children's Social Care,Support Service and Management Costs,Welfare Catering,Kitchen Supplies - Food and Beverages,01/02/2019,5163143,270.32,William White Meats Ltd
Childrens Services,Children's Social Care,Support Service and Management Costs,Sch. Meals A/c - Central Production Unit,Kitchen Supplies - Food and Beverages,01/02/2019,5163144,987.15,William White Meats Ltd
Childrens Services,Children's Social Care,Support Service and Management Costs,Schools Catering,Kitchen Supplies - Food and Beverages,01/02/2019,5163147,375.63,William White Meats Ltd
Childrens Services,Children's Social Care,Children Looked After,S23 Fam Pl In-Hse-Kinshp Care,Childrens Act Section 23 - Documentation Costs,01/02/2019,5163797,440.60,DA Languages Ltd
Childrens Services,Children's Social Care,Family Support Services,CNN Pool: Joint Family Support,Services - Professional Fees - Translation Fees,01/02/2019,5163799,270.00,Oncall Interpreters LTD
Childrens Services,Children's Social Care,Children Looked After,S23 Fam Pl In-Hse-S/Term F/C,Childrens Act Section 23 - Interpreting/Translation,01/02/2019,5163801,620.00,Oncall Interpreters LTD
Childrens Services,Children's Social Care,Children Looked After,S23 Fam Pl In-Hse-S/Term F/C,Childrens Act Section 23 - Interpreting/Translation,01/02/2019,5163803,763.00,Oncall Interpreters LTD
Childrens Services,Children's Social Care,Children Looked After,S23 Fam Pl In-Hse-Kinshp Care,Childrens Act Section 23 - Interpreting/Translation,01/02/2019,5164745,409.90,DA Languages Ltd
Childrens Services,Education Services,Secondary Schools,PFI Hldg Account-Grouped Schoo,Repairs and Maintenance - Responsive - Buildings,01/02/2019,5164777,"96,918.83",Tower Hamlets Schools LTD
Childrens Services,Cultural and Related Services,Recreation & Sport,"Poplar Baths		",Payments to Private Contractors - Other Contractors,01/02/2019,5165199,"132,042.62",Folera Ltd
Childrens Services,Children's Social Care,Support Service and Management Costs,"Mulberry Caf�		",Kitchen Supplies - Food and Beverages,01/02/2019,5165431,269.52,Tiffin Sandwiches
Childrens Services,Cultural and Related Services,Culture & Heritage,Arts-Park Events,Events & Exhibition Supplies,01/02/2019,5165454,"1,803.00",Community Link Trading Ltd
Childrens Services,Children's Social Care,Support Service and Management Costs,Schools Catering,Kitchen Supplies - Food and Beverages,01/02/2019,5165651,390.34,William White Meats Ltd
Childrens Services,Children's Social Care,Support Service and Management Costs,Schools Catering,Kitchen Supplies - Food and Beverages,01/02/2019,5165656,354.11,William White Meats Ltd
Childrens Services,Children's Social Care,Support Service and Management Costs,Schools Catering,Kitchen Supplies - Food and Beverages,01/02/2019,5165657,286.05,William White Meats Ltd
Childrens Services,Children's Social Care,Support Service and Management Costs,Schools Catering,Kitchen Supplies - Food and Beverages,01/02/2019,5165663,253.47,William White Meats Ltd
Childrens Services,Children's Social Care,Support Service and Management Costs,Schools Catering,Kitchen Supplies - Food and Beverages,01/02/2019,5165664,438.31,William White Meats Ltd
Childrens Services,Children's Social Care,Support Service and Management Costs,Schools Catering,Kitchen Supplies - Food and Beverages,01/02/2019,5165667,833.26,William White Meats Ltd
Childrens Services,Children's Social Care,Support Service and Management Costs,Schools Catering,Kitchen Supplies - Food and Beverages,01/02/2019,5165671,570.19,William White Meats Ltd
Childrens Services,Children's Social Care,Support Service and Management Costs,Schools Catering,Kitchen Supplies - Food and Beverages,01/02/2019,5165672,473.66,William White Meats Ltd
Childrens Services,Children's Social Care,Support Service and Management Costs,Schools Catering,Kitchen Supplies - Food and Beverages,01/02/2019,5165673,290.87,William White Meats Ltd
Childrens Services,Children's Social Care,Support Service and Management Costs,Schools Catering,Kitchen Supplies - Food and Beverages,01/02/2019,5165676,415.81,William White Meats Ltd
Childrens Services,Children's Social Care,Support Service and Management Costs,Schools Catering,Kitchen Supplies - Food and Beverages,01/02/2019,5165679,887.46,William White Meats Ltd
Childrens Services,Children's Social Care,Support Service and Management Costs,Schools Catering,Kitchen Supplies - Food and Beverages,01/02/2019,5165682,569.87,William White Meats Ltd
Childrens Services,Children's Social Care,Support Service and Management Costs,Schools Catering,Kitchen Supplies - Food and Beverages,01/02/2019,5165684,385.96,William White Meats Ltd
Childrens Services,Children's Social Care,Support Service and Management Costs,Schools Catering,Kitchen Supplies - Food and Beverages,01/02/2019,5165686,306.58,William White Meats Ltd
Childrens Services,Children's Social Care,Support Service and Management Costs,Schools Catering,Kitchen Supplies - Food and Beverages,01/02/2019,5165694,457.98,William White Meats Ltd
Childrens Services,Children's Social Care,Support Service and Management Costs,Schools Catering,Kitchen Supplies - Food and Beverages,01/02/2019,5165697,351.82,William White Meats Ltd
Childrens Services,Children's Social Care,Support Service and Management Costs,Schools Catering,Kitchen Supplies - Food and Beverages,01/02/2019,5165699,435.58,William White Meats Ltd
Childrens Services,Children's Social Care,Support Service and Management Costs,Schools Catering,Kitchen Supplies - Food and Beverages,01/02/2019,5165703,271.67,William White Meats Ltd
Childrens Services,Children's Social Care,Support Service and Management Costs,Schools Catering,Kitchen Supplies - Food and Beverages,01/02/2019,5165704,293.36,William White Meats Ltd
Childrens Services,Children's Social Care,Support Service and Management Costs,Schools Catering,Kitchen Supplies - Food and Beverages,01/02/2019,5165707,757.34,William White Meats Ltd
Childrens Services,Children's Social Care,Support Service and Management Costs,Schools Catering,Kitchen Supplies - Food and Beverages,01/02/2019,5165713,345.51,William White Meats Ltd
Childrens Services,Children's Social Care,Support Service and Management Costs,Swanlea,Kitchen Supplies - Food and Beverages,01/02/2019,5165719,556.46,William White Meats Ltd
Childrens Services,Children's Social Care,Support Service and Management Costs,Schools Catering,Kitchen Supplies - Food and Beverages,01/02/2019,5165720,449.39,William White Meats Ltd
Childrens Services,Children's Social Care,Support Service and Management Costs,Schools Catering,Materials - Cleaning Materials,01/02/2019,5166370,253.85,The Maintenance Supply Co Ltd
Childrens Services,Children's Social Care,Service Strategy,FSP Sect 17 - Team 1,Services - Professional Fees - Translation Fees,01/02/2019,5166421,"1,161.50",Oncall Interpreters LTD
Childrens Services,Education Services,Other Strategic Functions,Education Psychology Trading Account,Training Expenses - Staff External Training (UK Based),01/02/2019,5168531,357.50,KC Jones Conference & Events
Childrens Services,No Service Specified,No Division Specified,Capital-Minor Works (SC),Other External Fees - Other External Fees,01/02/2019,5168580,821.00,Terrain Surveys Ltd
Childrens Services,Education Services,Other Strategic Functions,Music Trading Account,Training Expenses - Staff External Training (UK Based),01/02/2019,5168613,"1,400.00",Urban Development
Childrens Services,Children's Social Care,Children Looked After,S23 Fam Pl P&V-F/Care,Childrens Act Section 23 - Placement Fee,01/02/2019,5170213,"3,491.10",BANYA
Childrens Services,Children's Social Care,Children Looked After,S23 Fam Pl P&V-F/Care,Childrens Act Section 23 - Placement Fee,01/02/2019,5170214,"1,978.29",BANYA
Childrens Services,Children's Social Care,Children Looked After,S23-Resi-P&V/OLA-Child Home,Childrens Act Section 23 - Placement Fee,01/02/2019,5170316,"13,285.71",Area Camden LTD
Childrens Services,Education Services,Other Strategic Functions,Special Education Needs DSG,Third Party Payments - Payments to Schools,01/02/2019,5171234,"16,263.93",Hesley Group Limited
Childrens Services,Children's Social Care,Children Looked After,S23-Resi-P&V/OLA-Boarding Sch,Childrens Act Section 23 - Placement Fee,01/02/2019,5171234,"16,263.93",Hesley Group Limited
Childrens Services,Children's Social Care,Children Looked After,LCS/Allowances-Accom,Leaving Care Financial Assistance - Supp Accom/Hous Rents,01/02/2019,5171405,"2,429.91",Integrated Fostering Services Ltd
Childrens Services,Education Services,Other Strategic Functions,Information & Support Services,Computing - Licences - Software,01/02/2019,5171959,351.00,University of Bristol
Childrens Services,Children's Social Care,Children Looked After,LCS/Allowances-Accom,Leaving Care Financial Assistance - Reg Plan Maint L-Allow,01/02/2019,5172014,256.99,The Way Care Services Ltd
Childrens Services,Children's Social Care,Children Looked After,LCS/Allowances-Accom,Leaving Care Financial Assistance - Supp Accom/Hous Rents,01/02/2019,5172014,"3,321.34",The Way Care Services Ltd
Childrens Services,Children's Social Care,Children Looked After,LCS/Allowances-Accom,Leaving Care Financial Assistance - Supported Living,01/02/2019,5172014,"1,992.99",The Way Care Services Ltd
Childrens Services,Children's Social Care,Services for young people,Youth Service Management,Third Party Payments - Voluntary Associations,01/02/2019,5172100,"6,666.00",Society Links
Childrens Services,Education Services,Other Strategic Functions,Schools Library,Books - General Purchases,01/02/2019,5172350,"1,020.40",Peters Bookselling Services
Childrens Services,Education Services,Early Years,Ocean CC,Catering - Hospitality,01/02/2019,5172532,601.50,All Seasons Foods
Childrens Services,Children's Social Care,Services for young people,LAPS 1 - 8,Educational/Training Supplies - Curriculum Visits/Activities,01/02/2019,5173163,514.30,Newitts
Childrens Services,Cultural and Related Services,Culture & Heritage,Arts-Park Events,Events & Exhibition Supplies,01/02/2019,5173211,830.00,Oliver Landpower Ltd
Childrens Services,Cultural and Related Services,Culture & Heritage,Event Fund,Third Party Payments - Voluntary Associations,01/02/2019,5174058,300.00,Limehouse Community forum
Childrens Services,Cultural and Related Services,Culture & Heritage,Event Fund,Third Party Payments - Voluntary Associations,01/02/2019,5174072,450.00,TEVIOT PARTNERSHIP
Childrens Services,No Service Specified,No Division Specified,Capital-Minor Works (SC),Other External Fees - Other External Fees,01/02/2019,5174120,"4,000.00",Architype
Childrens Services,No Service Specified,No Division Specified,Capital-Minor Works (SC),Other External Fees - Other External Fees,01/02/2019,5174121,"1,200.00",Architype
Childrens Services,Education Services,Other Strategic Functions,Empty Properties,Repairs and Maintenance - Responsive - Repair & Maintenance,01/02/2019,5174122,535.33,VPS (UK) Ltd
Childrens Services,Education Services,Management and Support Services,Learning & Achievm't M&A GF,Training Expenses - Staff External Training (UK Based),01/02/2019,5174128,750.00,Tower Hamlets Education Parnership
Childrens Services,Education Services,Early Years,Chrisp St,Catering - Hospitality,01/02/2019,5174130,398.25,LIMONCELLO (CATERING & DELICATESSEN) LTD
Childrens Services,Education Services,Early Years,Children Centre Central Team,Services - Professional Fees - Environmental Services Fees,01/02/2019,5174132,600.00,Charterhouse Aquatics
Childrens Services,Children's Social Care,Children Looked After,Virtual School PPG,Agency Staff - Associations,01/02/2019,5174712,757.35,Academics ltd
Childrens Services,Children's Social Care,Children Looked After,Virtual School PPG,Agency Staff - Associations,01/02/2019,5174713,"1,009.80",Academics ltd
Childrens Services,Children's Social Care,Children Looked After,Virtual School PPG,Agency Staff - Associations,01/02/2019,5174715,"1,009.80",Academics ltd
Childrens Services,Children's Social Care,Children Looked After,Virtual School PPG,Agency Staff - Associations,01/02/2019,5174719,"1,262.25",Academics ltd
Childrens Services,Children's Social Care,Children Looked After,Virtual School PPG,Agency Staff - Associations,01/02/2019,5174722,"1,009.80",Academics ltd
Childrens Services,Children's Social Care,Children Looked After,Virtual School PPG,Agency Staff - Associations,01/02/2019,5174724,504.90,Academics ltd
Childrens Services,Children's Social Care,Children Looked After,Virtual School PPG,Agency Staff - Associations,01/02/2019,5174725,630.00,Academics ltd
Childrens Services,Children's Social Care,Children Looked After,Virtual School PPG,Agency Staff - Associations,01/02/2019,5174735,252.45,Academics ltd
Childrens Services,Education Services,Other Strategic Functions,Ofsted Improvement Plan,Training Expenses - Staff External Training (UK Based),04/02/2019,5147764,"11,700.00",ATRWOOD LTD
Childrens Services,Education Services,Other Strategic Functions,Special Education Needs DSG,Third Party Payments - Payments to Schools,04/02/2019,5150242,"24,589.97",Ambitious about Autism
Childrens Services,Education Services,Other Strategic Functions,Special Education Needs DSG,Third Party Payments - Payments to Schools,04/02/2019,5156374,"5,616.64",SMALL HAVEN SCHOOL
Childrens Services,Children's Social Care,Children Looked After,S23 Fam Pl P&V-F/Care,Childrens Act Section 23 - Placement Fee,04/02/2019,5158560,"1,206.00",Kent Homefinding and Fostering
Childrens Services,Adult Social Care,Support Service and Management Costs,Org Development L&D Training,Training Expenses - Staff External Training (UK Based),04/02/2019,5160150,"2,775.00",Edge Training and Consultancy Ltd
Childrens Services,Education Services,Other Strategic Functions,Information & Support Services,Educational/Training Supplies - Resources,04/02/2019,5163757,278.40,Hands Free Computing
Childrens Services,Children's Social Care,Support Service and Management Costs,Schools Catering,Kitchen Supplies - Food and Beverages,04/02/2019,5163912,365.21,Thomas Ridley & Son Ltd
Childrens Services,Children's Social Care,Support Service and Management Costs,Schools Catering,Kitchen Supplies - Food and Beverages,04/02/2019,5163914,"1,021.13",Thomas Ridley & Son Ltd
Childrens Services,Children's Social Care,Support Service and Management Costs,Schools Catering,Kitchen Supplies - Food and Beverages,04/02/2019,5163915,373.20,Thomas Ridley & Son Ltd
Childrens Services,Children's Social Care,Support Service and Management Costs,Schools Catering,Kitchen Supplies - Food and Beverages,04/02/2019,5163917,"1,341.27",Thomas Ridley & Son Ltd
Childrens Services,Children's Social Care,Support Service and Management Costs,Sch. Meals A/c - Central Production Unit,Kitchen Supplies - Food and Beverages,04/02/2019,5163919,"1,413.56",Thomas Ridley & Son Ltd
Childrens Services,Children's Social Care,Support Service and Management Costs,Toby Lane Function,Kitchen Supplies - Food and Beverages,04/02/2019,5163920,252.17,Thomas Ridley & Son Ltd
Childrens Services,Children's Social Care,Support Service and Management Costs,Schools Catering,Kitchen Supplies - Food and Beverages,04/02/2019,5163921,422.74,Thomas Ridley & Son Ltd
Childrens Services,Children's Social Care,Support Service and Management Costs,Schools Catering,Kitchen Supplies - Food and Beverages,04/02/2019,5163922,656.77,Thomas Ridley & Son Ltd
Childrens Services,Children's Social Care,Support Service and Management Costs,Schools Catering,Kitchen Supplies - Food and Beverages,04/02/2019,5163923,553.15,Thomas Ridley & Son Ltd
Childrens Services,Children's Social Care,Support Service and Management Costs,Schools Catering,Kitchen Supplies - Food and Beverages,04/02/2019,5163925,"1,098.09",Thomas Ridley & Son Ltd
Childrens Services,Children's Social Care,Support Service and Management Costs,Schools Catering,Kitchen Supplies - Food and Beverages,04/02/2019,5163927,760.95,Thomas Ridley & Son Ltd
Childrens Services,Children's Social Care,Support Service and Management Costs,Schools Catering,Kitchen Supplies - Food and Beverages,04/02/2019,5163929,545.60,Thomas Ridley & Son Ltd
Childrens Services,Children's Social Care,Support Service and Management Costs,Schools Catering,Kitchen Supplies - Food and Beverages,04/02/2019,5163930,794.58,Thomas Ridley & Son Ltd
Childrens Services,Children's Social Care,Support Service and Management Costs,Schools Catering,Kitchen Supplies - Food and Beverages,04/02/2019,5163932,783.88,Thomas Ridley & Son Ltd
Childrens Services,Children's Social Care,Support Service and Management Costs,Schools Catering,Kitchen Supplies - Food and Beverages,04/02/2019,5163934,377.03,Thomas Ridley & Son Ltd
Childrens Services,Children's Social Care,Support Service and Management Costs,Schools Catering,Kitchen Supplies - Food and Beverages,04/02/2019,5163935,410.01,Thomas Ridley & Son Ltd
Childrens Services,Children's Social Care,Support Service and Management Costs,Schools Catering,Kitchen Supplies - Food and Beverages,04/02/2019,5163937,406.58,Thomas Ridley & Son Ltd
Childrens Services,Children's Social Care,Support Service and Management Costs,Schools Catering,Kitchen Supplies - Food and Beverages,04/02/2019,5163938,391.24,Thomas Ridley & Son Ltd
Childrens Services,Children's Social Care,Support Service and Management Costs,Schools Catering,Kitchen Supplies - Food and Beverages,04/02/2019,5163939,"1,109.18",Thomas Ridley & Son Ltd
Childrens Services,Children's Social Care,Support Service and Management Costs,Schools Catering,Kitchen Supplies - Food and Beverages,04/02/2019,5163940,648.41,Thomas Ridley & Son Ltd
Childrens Services,Children's Social Care,Support Service and Management Costs,Schools Catering,Kitchen Supplies - Food and Beverages,04/02/2019,5163941,295.01,Thomas Ridley & Son Ltd
Childrens Services,Children's Social Care,Support Service and Management Costs,Schools Catering,Kitchen Supplies - Food and Beverages,04/02/2019,5163942,408.17,Thomas Ridley & Son Ltd
Childrens Services,Children's Social Care,Support Service and Management Costs,Schools Catering,Kitchen Supplies - Food and Beverages,04/02/2019,5163946,302.36,Thomas Ridley & Son Ltd
Childrens Services,Children's Social Care,Support Service and Management Costs,Schools Catering,Kitchen Supplies - Food and Beverages,04/02/2019,5163947,634.00,Thomas Ridley & Son Ltd
Childrens Services,Children's Social Care,Support Service and Management Costs,Swanlea,Kitchen Supplies - Food and Beverages,04/02/2019,5163948,"1,138.00",Thomas Ridley & Son Ltd
Childrens Services,Children's Social Care,Support Service and Management Costs,Schools Catering,Kitchen Supplies - Food and Beverages,04/02/2019,5163949,597.32,Thomas Ridley & Son Ltd
Childrens Services,Children's Social Care,Support Service and Management Costs,Sch. Meals A/c - Central Production Unit,Kitchen Supplies - Food and Beverages,04/02/2019,5163951,484.88,Thomas Ridley & Son Ltd
Childrens Services,Children's Social Care,Support Service and Management Costs,Welfare Catering,Kitchen Supplies - Food and Beverages,04/02/2019,5163952,589.60,Thomas Ridley & Son Ltd
Childrens Services,Children's Social Care,Support Service and Management Costs,Schools Catering,Kitchen Supplies - Food and Beverages,04/02/2019,5163953,445.55,Thomas Ridley & Son Ltd
Childrens Services,Children's Social Care,Support Service and Management Costs,Schools Catering,Kitchen Supplies - Food and Beverages,04/02/2019,5163954,475.37,Thomas Ridley & Son Ltd
Childrens Services,Children's Social Care,Support Service and Management Costs,Schools Catering,Kitchen Supplies - Food and Beverages,04/02/2019,5163955,615.54,Thomas Ridley & Son Ltd
Childrens Services,Children's Social Care,Support Service and Management Costs,Schools Catering,Kitchen Supplies - Food and Beverages,04/02/2019,5163956,345.72,Thomas Ridley & Son Ltd
Childrens Services,Children's Social Care,Support Service and Management Costs,Schools Catering,Kitchen Supplies - Food and Beverages,04/02/2019,5163961,551.75,Thomas Ridley & Son Ltd
Childrens Services,Children's Social Care,Support Service and Management Costs,Schools Catering,Kitchen Supplies - Food and Beverages,04/02/2019,5163962,343.41,Thomas Ridley & Son Ltd
Childrens Services,Children's Social Care,Support Service and Management Costs,Schools Catering,Kitchen Supplies - Food and Beverages,04/02/2019,5163964,280.06,Thomas Ridley & Son Ltd
Childrens Services,Children's Social Care,Support Service and Management Costs,Schools Catering,Kitchen Supplies - Food and Beverages,04/02/2019,5163965,394.04,Thomas Ridley & Son Ltd
Childrens Services,Children's Social Care,Support Service and Management Costs,Schools Catering,Kitchen Supplies - Food and Beverages,04/02/2019,5163966,512.56,Thomas Ridley & Son Ltd
Childrens Services,Children's Social Care,Support Service and Management Costs,Schools Catering,Kitchen Supplies - Food and Beverages,04/02/2019,5163991,396.50,Prescott-Thomas LTD.
Childrens Services,Children's Social Care,Support Service and Management Costs,Schools Catering,Kitchen Supplies - Food and Beverages,04/02/2019,5164003,318.40,Prescott-Thomas LTD.
Childrens Services,Children's Social Care,Support Service and Management Costs,Schools Catering,Kitchen Supplies - Food and Beverages,04/02/2019,5164009,273.48,Prescott-Thomas LTD.
Childrens Services,Children's Social Care,Support Service and Management Costs,Swanlea,Kitchen Supplies - Food and Beverages,04/02/2019,5164049,320.59,Prescott-Thomas LTD.
Childrens Services,Children's Social Care,Support Service and Management Costs,Sch. Meals A/c - Central Production Unit,Kitchen Supplies - Food and Beverages,04/02/2019,5164061,292.36,Prescott-Thomas LTD.
Childrens Services,Children's Social Care,Children Looked After,S23 Fam Pl P&V-F/Care,Childrens Act Section 23 - Placement Fee,04/02/2019,5165206,850.00,Qalb Fostering Agency Ltd
Childrens Services,Children's Social Care,Children Looked After,S23 Fam Pl P&V-F/Care,Childrens Act Section 23 - Placement Fee,04/02/2019,5165207,950.00,Qalb Fostering Agency Ltd
Childrens Services,Children's Social Care,Children Looked After,S23 Fam Pl P&V-F/Care,Childrens Act Section 23 - Placement Fee,04/02/2019,5165208,950.00,Qalb Fostering Agency Ltd
Childrens Services,Children's Social Care,Children Looked After,S23 Fam Pl P&V-F/Care,Childrens Act Section 23 - Placement Fee,04/02/2019,5165209,"1,400.00",Qalb Fostering Agency Ltd
Childrens Services,Children's Social Care,Children Looked After,S23 Fam Pl P&V-F/Care,Childrens Act Section 23 - Placement Fee,04/02/2019,5165440,"17,270.76",Shining Stars Fostering Agency
Childrens Services,Cultural and Related Services,Open Spaces,Victoria Park,Repairs and Maintenance - Responsive - Repair & Maintenance,04/02/2019,5165447,250.00,J&L Coster (Drainage) Ltd
Childrens Services,Cultural and Related Services,Open Spaces,Parks & Open Spaces Man&Admin,Repairs and Maintenance - Responsive - Buildings,04/02/2019,5165450,700.00,J&L Coster (Drainage) Ltd
Childrens Services,Cultural and Related Services,Open Spaces,Mile End Park,Repairs and Maintenance - Responsive - Buildings,04/02/2019,5165451,900.00,J&L Coster (Drainage) Ltd
Childrens Services,Children's Social Care,Children Looked After,S23-Resi-P&V/OLA-Child Home,Childrens Act Section 23 - Placement Fee,04/02/2019,5165466,"12,000.00",holibrook Care Services Ltd
Childrens Services,Children's Social Care,Support Service and Management Costs,Schools Catering,Kitchen Supplies - Food and Beverages,04/02/2019,5165722,587.83,William White Meats Ltd
Childrens Services,Children's Social Care,Support Service and Management Costs,Sch. Meals A/c - Central Production Unit,Kitchen Supplies - Food and Beverages,04/02/2019,5165724,333.90,William White Meats Ltd
Childrens Services,Education Services,Other Strategic Functions,Special Education Needs DSG,Third Party Payments - Payments to Schools,04/02/2019,5165960,"17,666.66",Kedleston Schools
Childrens Services,Children's Social Care,Support Service and Management Costs,Schools Catering,Materials - Cleaning Materials,04/02/2019,5166373,294.39,The Maintenance Supply Co Ltd
Childrens Services,Children's Social Care,Support Service and Management Costs,Schools Catering,Materials - Cleaning Materials,04/02/2019,5166379,430.18,The Maintenance Supply Co Ltd
Childrens Services,Children's Social Care,Children Looked After,S23-Other-Semi-Ind. Unit,Childrens Act Section 23 - Placement Fee,04/02/2019,5167302,925.00,Real Life
Childrens Services,Children's Social Care,Children Looked After,S23-Other-Semi-Ind. Unit,Childrens Act Section 23 - Placement Fee,04/02/2019,5167304,925.00,Real Life
Childrens Services,Children's Social Care,Support Service and Management Costs,Professional Dev Centre,Repairs and Maintenance - Responsive - Repair & Maintenance,04/02/2019,5168450,640.00,JC Coster (Metalworks) Ltd
Childrens Services,Cultural and Related Services,Open Spaces,Parks & Open Spaces Man&Admin,Repairs and Maintenance - Responsive - Repair & Maintenance,04/02/2019,5168451,320.00,JC Coster (Metalworks) Ltd
Childrens Services,Education Services,Other Strategic Functions,Alternative Provision,Services - Professional Fees - Consultants Fees,04/02/2019,5168594,"20,000.00",Mastodon C
Childrens Services,Education Services,Early Years,Around Poplar CC,Educational/Training Supplies - Arts & Crafts,04/02/2019,5168623,449.80,Eduzone Ltd
Childrens Services,Education Services,Services to Young People and Other Community Learners,Further and Higher Education,Education Trust - Grant,04/02/2019,5168833,"1,200.00",ISLAND ADVICE CENTRE
Childrens Services,Children's Social Care,Family Support Services,CNN Pool: Joint Family Support,Social Care - Homecare,04/02/2019,5169046,313.20,QALB Centre Short Break Services
Childrens Services,Adult Social Care,Support Service and Management Costs,Org Development L&D Training,Training Expenses - Staff External Training (UK Based),04/02/2019,5169056,495.00,A1 Risk Solutions Ltd
Childrens Services,Education Services,Other Strategic Functions,Ofsted Improvement Plan,Training Expenses - Staff External Training (UK Based),04/02/2019,5170320,"11,700.00",ATRWOOD LTD
Childrens Services,Education Services,Secondary Schools,PFI Hldg Account-Grouped Schoo,Repairs and Maintenance - Responsive - Buildings,04/02/2019,5170392,"45,070.13",Tower Hamlets Schools LTD
Childrens Services,Education Services,Other Strategic Functions,SLS Trading Account,Subscriptions - Associations,04/02/2019,5170415,"1,410.00",Academics ltd
Childrens Services,Education Services,Other Strategic Functions,Student Admissions,Training Expenses - Staff External Training (UK Based),04/02/2019,5171430,"1,095.00",The Knowledge Academy
Childrens Services,Education Services,Other Strategic Functions,SLS - SEN Training SLA,Training Expenses - Staff External Training (UK Based),04/02/2019,5172380,"13,860.00",Team-Teach
Childrens Services,Education Services,Other Strategic Functions,SLS - SEN Training SLA,Education & Training - Non Staff Tuition Fees,04/02/2019,5172380,408.20,Team-Teach
Childrens Services,Education Services,Other Strategic Functions,SLS - SEN Training SLA,Third Party Payments - Voluntary Associations,04/02/2019,5173165,450.00,Tower Project
Childrens Services,Children's Social Care,Family Support Services,Short Breaks and Family Support,Third Party Payments - Voluntary Associations,04/02/2019,5173181,"1,410.00",Norwood Ravenswood Services LTD
Childrens Services,Children's Social Care,Other Children's and Family Services,Adoption Support Fund,Social Care - Prevention & Support,04/02/2019,5173240,768.00,Beacon Lodge Psychological Services Ltd
Childrens Services,Children's Social Care,Other Children's and Family Services,Adoption Support Fund,Social Care - Prevention & Support,04/02/2019,5173242,288.00,Beacon Lodge Psychological Services Ltd
Childrens Services,Children's Social Care,Other Children's and Family Services,Adoption Support Fund,Social Care - Prevention & Support,04/02/2019,5173243,384.00,Beacon Lodge Psychological Services Ltd
Childrens Services,Children's Social Care,Family Support Services,CNN Pool: Joint Family Support,Social Care - Homecare,04/02/2019,5174104,684.00,Medstar Domiciliary Care Servies Ltd
Childrens Services,No Service Specified,No Division Specified,Capital-Minor Works (SC),Legal Fees,04/02/2019,5174605,"4,699.50",Foot Anstey
Childrens Services,No Service Specified,No Division Specified,Capital-Minor Works (SC),Legal Fees,04/02/2019,5174606,"11,550.00",Foot Anstey
Childrens Services,Children's Social Care,Family Support Services,CNN Pool: Joint Family Support,Social Care - Homecare,04/02/2019,5174614,495.00,QALB Centre Short Break Services
Childrens Services,Children's Social Care,Family Support Services,CNN Pool: Joint Family Support,Social Care - Homecare,04/02/2019,5174616,297.00,QALB Centre Short Break Services
Childrens Services,Children's Social Care,Children Looked After,S23-Other-Mother & Baby Unit,Childrens Act Section 23 - Placement Fee,04/02/2019,5174706,628.60,Atlantic Lodge
Childrens Services,Children's Social Care,Children's and Young People's Safety,Community Safeguarding,Meeting Expenses,04/02/2019,5174743,332.40,Osmani Trust
Childrens Services,Children's Social Care,Children's and Young People's Safety,Community Safeguarding,Meeting Expenses,04/02/2019,5174744,332.40,Osmani Trust
Childrens Services,Education Services,Services to Young People and Other Community Learners,Further and Higher Education,Education Trust - Grant,04/02/2019,5174751,"1,195.00",The Knowledge Academy
Childrens Services,Children's Social Care,Services for young people,LAPS 1 - 8,Educational/Training Supplies - Curriculum Visits/Activities,04/02/2019,5174772,619.50,AQA Education
Childrens Services,Cultural and Related Services,Culture & Heritage,Event Fund,Third Party Payments - Voluntary Associations,04/02/2019,5174877,300.00,The Dash Arts Dacha
Childrens Services,Cultural and Related Services,Open Spaces,Victoria Park,Water Services - Metered,04/02/2019,5174934,"1,799.34",CASTLE WATER
Childrens Services,Children's Social Care,Service Strategy,FSP Sect 17 - Team 9,Meeting Expenses,04/02/2019,5174984,416.00,Apolonia Property Services (Exodus Housing)
Childrens Services,Children's Social Care,Service Strategy,FSP Sect 17 - Team 9,Childrens Act Section 17 - Supp Accom/Hous Rents,04/02/2019,5174984,684.00,Apolonia Property Services (Exodus Housing)
Childrens Services,Children's Social Care,Family Support Services,IPST S17 NRPF,Childrens Act Section 17 - Other Placements Bed & Breakfast,04/02/2019,5174985,"1,147.00",Apolonia Property Services (Exodus Housing)
Childrens Services,Children's Social Care,Family Support Services,IPST S17 NRPF,Childrens Act Section 17 - Other Placements Bed & Breakfast,04/02/2019,5174987,"1,054.00",Apolonia Property Services (Exodus Housing)
Childrens Services,Children's Social Care,Family Support Services,IPST S17 NRPF,Childrens Act Section 17 - Other Placements Bed & Breakfast,04/02/2019,5174988,"1,178.00",Apolonia Property Services (Exodus Housing)
Childrens Services,Children's Social Care,Family Support Services,IPST S17 NRPF,Childrens Act Section 17 - Other Placements Bed & Breakfast,04/02/2019,5174989,992.00,Apolonia Property Services (Exodus Housing)
Childrens Services,Children's Social Care,Family Support Services,IPST S17 NRPF,Childrens Act Section 17 - Other Placements Bed & Breakfast,04/02/2019,5174990,"1,612.00",Apolonia Property Services (Exodus Housing)
Childrens Services,Children's Social Care,Children Looked After,Leaving Care-UASC,Leaving Care Financial Assistance - Reg Plan Maint L-Allow,04/02/2019,5175057,256.86,Pangea Support Services
Childrens Services,Children's Social Care,Children Looked After,Leaving Care-UASC,Leaving Care Financial Assistance - Supp Accom/Hous Rents,04/02/2019,5175057,"4,406.43",Pangea Support Services
Childrens Services,Children's Social Care,Children Looked After,S23-Other-Semi-Ind. Unit,Childrens Act Section 23 - Placement Fee,04/02/2019,5175069,"1,806.86",Pangea Support Services
Childrens Services,Children's Social Care,Support Service and Management Costs,Schools Catering,Kitchen Supplies - Food and Beverages,04/02/2019,5175086,-334.95,Thomas Ridley & Son Ltd
Childrens Services,Children's Social Care,Support Service and Management Costs,Schools Catering,Kitchen Supplies - Food and Beverages,04/02/2019,5175087,-281.09,Thomas Ridley & Son Ltd
Childrens Services,Children's Social Care,Support Service and Management Costs,Schools Catering,Kitchen Supplies - Food and Beverages,04/02/2019,5175089,-355.87,Thomas Ridley & Son Ltd
Childrens Services,Children's Social Care,Support Service and Management Costs,Schools Catering,Kitchen Supplies - Food and Beverages,04/02/2019,5175091,-470.40,Thomas Ridley & Son Ltd
Childrens Services,Children's Social Care,Support Service and Management Costs,Schools Catering,Kitchen Supplies - Food and Beverages,04/02/2019,5175092,-342.11,Thomas Ridley & Son Ltd
Childrens Services,Children's Social Care,Support Service and Management Costs,Schools Catering,Kitchen Supplies - Food and Beverages,04/02/2019,5175094,-386.13,Thomas Ridley & Son Ltd
Childrens Services,Children's Social Care,Support Service and Management Costs,Schools Catering,Kitchen Supplies - Food and Beverages,04/02/2019,5175095,-411.74,Thomas Ridley & Son Ltd
Childrens Services,Children's Social Care,Support Service and Management Costs,Schools Catering,Kitchen Supplies - Food and Beverages,04/02/2019,5175096,-323.55,Thomas Ridley & Son Ltd
Childrens Services,Children's Social Care,Support Service and Management Costs,Schools Catering,Kitchen Supplies - Food and Beverages,04/02/2019,5175098,-422.11,Thomas Ridley & Son Ltd
Childrens Services,Children's Social Care,Support Service and Management Costs,Schools Catering,Kitchen Supplies - Food and Beverages,04/02/2019,5175100,-265.53,Thomas Ridley & Son Ltd
Childrens Services,Children's Social Care,Support Service and Management Costs,Schools Catering,Kitchen Supplies - Food and Beverages,04/02/2019,5175103,-429.78,Thomas Ridley & Son Ltd
Childrens Services,Children's Social Care,Family Support Services,CNN Pool: Children Direct Paym,Social Care - Direct Payments,04/02/2019,5175221,"8,488.29",DH TOWER HAMLETS
Childrens Services,Children's Social Care,Support Service and Management Costs,Professional Dev Centre,Computing - Purchase of Hardware,06/02/2019,5128510,"2,176.56",Bell Integration
Childrens Services,Education Services,Other Strategic Functions,Special Education Needs DSG,Third Party Payments - Payments to Schools,06/02/2019,5150243,"25,084.54",Ambitious about Autism
Childrens Services,Children's Social Care,Support Service and Management Costs,Schools Catering,Kitchen Supplies - Food and Beverages,06/02/2019,5164821,296.82,Thomas Ridley & Son Ltd
Childrens Services,Children's Social Care,Support Service and Management Costs,Schools Catering,Kitchen Supplies - Food and Beverages,06/02/2019,5164822,338.42,Thomas Ridley & Son Ltd
Childrens Services,Children's Social Care,Support Service and Management Costs,Schools Catering,Kitchen Supplies - Food and Beverages,06/02/2019,5164823,604.18,Thomas Ridley & Son Ltd
Childrens Services,Children's Social Care,Support Service and Management Costs,Schools Catering,Kitchen Supplies - Food and Beverages,06/02/2019,5164824,375.52,Thomas Ridley & Son Ltd
Childrens Services,Children's Social Care,Support Service and Management Costs,Schools Catering,Kitchen Supplies - Food and Beverages,06/02/2019,5164825,367.83,Thomas Ridley & Son Ltd
Childrens Services,Children's Social Care,Support Service and Management Costs,Schools Catering,Kitchen Supplies - Food and Beverages,06/02/2019,5164826,374.40,Thomas Ridley & Son Ltd
Childrens Services,Children's Social Care,Support Service and Management Costs,Schools Catering,Kitchen Supplies - Food and Beverages,06/02/2019,5164827,872.33,Thomas Ridley & Son Ltd
Childrens Services,Children's Social Care,Support Service and Management Costs,Schools Catering,Kitchen Supplies - Food and Beverages,06/02/2019,5164828,654.11,Thomas Ridley & Son Ltd
Childrens Services,Children's Social Care,Support Service and Management Costs,Schools Catering,Kitchen Supplies - Food and Beverages,06/02/2019,5164830,594.65,Thomas Ridley & Son Ltd
Childrens Services,Children's Social Care,Support Service and Management Costs,Schools Catering,Kitchen Supplies - Food and Beverages,06/02/2019,5164831,"1,130.90",Thomas Ridley & Son Ltd
Childrens Services,Children's Social Care,Support Service and Management Costs,Schools Catering,Kitchen Supplies - Food and Beverages,06/02/2019,5164835,319.97,Thomas Ridley & Son Ltd
Childrens Services,Children's Social Care,Support Service and Management Costs,Schools Catering,Kitchen Supplies - Food and Beverages,06/02/2019,5164837,389.91,Thomas Ridley & Son Ltd
Childrens Services,Children's Social Care,Support Service and Management Costs,Schools Catering,Kitchen Supplies - Food and Beverages,06/02/2019,5164838,277.77,Thomas Ridley & Son Ltd
Childrens Services,Children's Social Care,Support Service and Management Costs,Schools Catering,Kitchen Supplies - Food and Beverages,06/02/2019,5164839,743.15,Thomas Ridley & Son Ltd
Childrens Services,Children's Social Care,Support Service and Management Costs,Schools Catering,Kitchen Supplies - Food and Beverages,06/02/2019,5164840,311.88,Thomas Ridley & Son Ltd
Childrens Services,Children's Social Care,Support Service and Management Costs,Schools Catering,Kitchen Supplies - Food and Beverages,06/02/2019,5164841,760.28,Thomas Ridley & Son Ltd
Childrens Services,Children's Social Care,Support Service and Management Costs,Schools Catering,Kitchen Supplies - Food and Beverages,06/02/2019,5164842,508.72,Thomas Ridley & Son Ltd
Childrens Services,Children's Social Care,Support Service and Management Costs,Schools Catering,Kitchen Supplies - Food and Beverages,06/02/2019,5164843,535.47,Thomas Ridley & Son Ltd
Childrens Services,Children's Social Care,Support Service and Management Costs,Schools Catering,Kitchen Supplies - Food and Beverages,06/02/2019,5164844,311.16,Thomas Ridley & Son Ltd
Childrens Services,Children's Social Care,Support Service and Management Costs,Schools Catering,Kitchen Supplies - Food and Beverages,06/02/2019,5164846,433.36,Thomas Ridley & Son Ltd
Childrens Services,Children's Social Care,Support Service and Management Costs,Schools Catering,Kitchen Supplies - Food and Beverages,06/02/2019,5164847,789.06,Thomas Ridley & Son Ltd
Childrens Services,Children's Social Care,Support Service and Management Costs,Schools Catering,Kitchen Supplies - Food and Beverages,06/02/2019,5164849,774.92,Thomas Ridley & Son Ltd
Childrens Services,Children's Social Care,Support Service and Management Costs,Schools Catering,Kitchen Supplies - Food and Beverages,06/02/2019,5164850,306.12,Thomas Ridley & Son Ltd
Childrens Services,Children's Social Care,Support Service and Management Costs,Schools Catering,Kitchen Supplies - Food and Beverages,06/02/2019,5164852,326.75,Thomas Ridley & Son Ltd
Childrens Services,Children's Social Care,Support Service and Management Costs,Schools Catering,Kitchen Supplies - Food and Beverages,06/02/2019,5164854,870.94,Thomas Ridley & Son Ltd
Childrens Services,Children's Social Care,Support Service and Management Costs,Schools Catering,Kitchen Supplies - Food and Beverages,06/02/2019,5165255,619.02,Thomas Ridley & Son Ltd
Childrens Services,Children's Social Care,Support Service and Management Costs,Schools Catering,Kitchen Supplies - Food and Beverages,06/02/2019,5165259,336.73,Thomas Ridley & Son Ltd
Childrens Services,Children's Social Care,Support Service and Management Costs,Schools Catering,Kitchen Supplies - Food and Beverages,06/02/2019,5165261,806.11,Thomas Ridley & Son Ltd
Childrens Services,Children's Social Care,Support Service and Management Costs,Schools Catering,Kitchen Supplies - Food and Beverages,06/02/2019,5165262,834.36,Thomas Ridley & Son Ltd
Childrens Services,Children's Social Care,Support Service and Management Costs,Schools Catering,Kitchen Supplies - Food and Beverages,06/02/2019,5165263,641.81,Thomas Ridley & Son Ltd
Childrens Services,Children's Social Care,Support Service and Management Costs,Schools Catering,Kitchen Supplies - Food and Beverages,06/02/2019,5165264,333.04,Thomas Ridley & Son Ltd
Childrens Services,Children's Social Care,Support Service and Management Costs,Schools Catering,Kitchen Supplies - Food and Beverages,06/02/2019,5165265,281.62,Thomas Ridley & Son Ltd
Childrens Services,Children's Social Care,Support Service and Management Costs,Schools Catering,Kitchen Supplies - Food and Beverages,06/02/2019,5165266,383.96,Thomas Ridley & Son Ltd
Childrens Services,Children's Social Care,Support Service and Management Costs,Schools Catering,Kitchen Supplies - Food and Beverages,06/02/2019,5165267,441.70,Thomas Ridley & Son Ltd
Childrens Services,Children's Social Care,Support Service and Management Costs,Schools Catering,Kitchen Supplies - Food and Beverages,06/02/2019,5165268,675.43,Thomas Ridley & Son Ltd
Childrens Services,Children's Social Care,Support Service and Management Costs,Schools Catering,Kitchen Supplies - Food and Beverages,06/02/2019,5165269,608.15,Thomas Ridley & Son Ltd
Childrens Services,Children's Social Care,Support Service and Management Costs,Swanlea,Kitchen Supplies - Food and Beverages,06/02/2019,5165270,605.49,Thomas Ridley & Son Ltd
Childrens Services,Children's Social Care,Support Service and Management Costs,Schools Catering,Kitchen Supplies - Food and Beverages,06/02/2019,5165271,453.35,Thomas Ridley & Son Ltd
Childrens Services,Children's Social Care,Support Service and Management Costs,Schools Catering,Kitchen Supplies - Food and Beverages,06/02/2019,5165272,274.05,Thomas Ridley & Son Ltd
Childrens Services,Children's Social Care,Support Service and Management Costs,Schools Catering,Kitchen Supplies - Food and Beverages,06/02/2019,5165646,267.40,William White Meats Ltd
Childrens Services,Children's Social Care,Support Service and Management Costs,Schools Catering,Kitchen Supplies - Food and Beverages,06/02/2019,5165680,581.50,William White Meats Ltd
Childrens Services,Children's Social Care,Support Service and Management Costs,Welfare Catering,Kitchen Supplies - Food and Beverages,06/02/2019,5165725,254.74,William White Meats Ltd
Childrens Services,Children's Social Care,Support Service and Management Costs,Schools Catering,Kitchen Supplies - Food and Beverages,06/02/2019,5165753,388.50,William White Meats Ltd
Childrens Services,Children's Social Care,Other Children's and Family Services,Adoption Support Fund,Social Care - Day Care,06/02/2019,5165895,"4,800.00",Family Futures CIC
Childrens Services,Children's Social Care,Children Looked After,Staying Put,Childrens Act Section 23 - Placement Fee,06/02/2019,5166338,"5,322.86",West Sussex County Council
Childrens Services,Children's Social Care,Support Service and Management Costs,Schools Catering,Materials - Cleaning Materials,06/02/2019,5166382,323.79,The Maintenance Supply Co Ltd
Childrens Services,Children's Social Care,Support Service and Management Costs,Schools Catering,Materials - Cleaning Materials,06/02/2019,5166386,286.14,The Maintenance Supply Co Ltd
Childrens Services,Cultural and Related Services,Recreation & Sport,"Poplar Baths		",Payments to Private Contractors - Other Contractors,06/02/2019,5166417,"132,042.62",Folera Ltd
Childrens Services,Children's Social Care,Children Looked After,Virtual School PPG,Third Party Payments - Payments to Schools,06/02/2019,5166428,"2,600.00",Cheam Fields Primary Academy
Childrens Services,Education Services,Other Strategic Functions,Special Education Needs DSG,Third Party Payments - Payments to Schools,06/02/2019,5168527,"35,259.13",St Elizabeth's Centre
Childrens Services,Children's Social Care,Children Looked After,S23 18+ & Relevnt Young People,Childrens Act Section 23 - Placement Fee,06/02/2019,5168527,"35,259.13",St Elizabeth's Centre
Childrens Services,Education Services,Other Strategic Functions,Special Education Needs DSG,Third Party Payments - Payments to Schools,06/02/2019,5168528,"50,691.34",St Elizabeth's Centre
Childrens Services,Children's Social Care,Children Looked After,S23-Resi-P&V/OLA-Boarding Sch,Childrens Act Section 23 - Placement Fee,06/02/2019,5168528,"50,691.34",St Elizabeth's Centre
Childrens Services,Education Services,Early Years,EYS Mainstream Grants,Third Party Payments - Voluntary Associations,06/02/2019,5168691,"7,500.00",Early Years Network Tower Hamlets
Childrens Services,Education Services,Other Strategic Functions,Music Trading Account,Payments to Private Contractors - General Contractors,06/02/2019,5168712,"1,500.00",Redacted Section 40 FOI Act
Childrens Services,Education Services,Other Strategic Functions,Education Arts Grants,Environmental Health Supplies - Baits and Poisons,06/02/2019,5168818,"4,922.00",Stepney City Farm
Childrens Services,Education Services,Other Strategic Functions,Special Education Needs DSG,Third Party Payments - Payments to Schools,06/02/2019,5169100,"4,500.00",The Complete Works Ltd
Childrens Services,Education Services,Other Strategic Functions,High Needs FE Colleges,Third Party Payments - Payments to Schools,06/02/2019,5169101,"7,000.00",The Complete Works Ltd
Childrens Services,Education Services,Other Strategic Functions,Special Education Needs DSG,Third Party Payments - Payments to Schools,06/02/2019,5169102,"7,000.00",The Complete Works Ltd
Childrens Services,Education Services,Other Strategic Functions,Special Education Needs DSG,Third Party Payments - Payments to Schools,06/02/2019,5169103,"7,000.00",The Complete Works Ltd
Childrens Services,Education Services,Other Strategic Functions,Special Education Needs DSG,Third Party Payments - Payments to Schools,06/02/2019,5169104,"7,000.00",The Complete Works Ltd
Childrens Services,Education Services,Other Strategic Functions,Special Education Needs DSG,Third Party Payments - Payments to Schools,06/02/2019,5169108,"7,000.00",The Complete Works Ltd
Childrens Services,Education Services,Other Strategic Functions,Special Education Needs DSG,Third Party Payments - Payments to Schools,06/02/2019,5169112,"11,875.00",The Complete Works Ltd
Childrens Services,Education Services,Other Strategic Functions,High Needs FE Colleges,Third Party Payments - Payments to Schools,06/02/2019,5170198,"11,760.00",Tower Project
Childrens Services,Education Services,Other Strategic Functions,High Needs FE Colleges,Third Party Payments - Payments to Schools,06/02/2019,5170199,"11,760.00",Tower Project
Childrens Services,Education Services,Other Strategic Functions,Special Education Needs DSG,Third Party Payments - Payments to Schools,06/02/2019,5170413,"-5,145.83",The Complete Works Ltd
Childrens Services,Education Services,Other Strategic Functions,High Needs FE Colleges,Third Party Payments - Payments to Schools,06/02/2019,5170511,"15,743.00",Livability
Childrens Services,Education Services,Other Strategic Functions,Education Psychology Trading Account,Training Expenses - Staff External Training (UK Based),06/02/2019,5171919,"2,325.00",Mental Health First Aid England CIC
Childrens Services,Education Services,Other Strategic Functions,Education Psychologists GF,Training Expenses - Staff External Training (UK Based),06/02/2019,5171958,550.00,Tavistock & Portman NHS Trust
Childrens Services,Children's Social Care,Children's and Young People's Safety,Community Safeguarding,Training Expenses - Staff External Training (UK Based),06/02/2019,5172091,400.00,WF Somali Women Association
Childrens Services,Education Services,Other Strategic Functions,Education Psychology Trading Account,Newspapers and Magazines - General Purchases,06/02/2019,5172191,294.40,G L ASSESSMENT LTD
Childrens Services,Children's Social Care,Children Looked After,LCS/Allowances-Accom,Leaving Care Financial Assistance - Supp Accom/Hous Rents,06/02/2019,5173238,916.71,EMPOWERHOUSE ltd
Childrens Services,Children's Social Care,Children Looked After,LCS/Allowances-Accom,Leaving Care Financial Assistance - Supported Living,06/02/2019,5173238,"3,069.00",EMPOWERHOUSE ltd
Childrens Services,Education Services,Other Strategic Functions,High Needs Other Boroughs,Third Party Payments - Payments to Schools,06/02/2019,5174094,525.00,Maximum Potential
Childrens Services,Children's Social Care,Commissioning and Social Work,Advice and Assessment Section 17,Childrens Act Section 17 - Interpreting/Translation,06/02/2019,5174117,"3,505.05",Oncall Interpreters LTD
Childrens Services,Education Services,Other Strategic Functions,High Needs Other Boroughs,Third Party Payments - Payments to Schools,06/02/2019,5174707,"1,376.00",BYGROVE SCHOOL
Childrens Services,Children's Social Care,Children Looked After,S23 Fam Pl P&V-F/Care,Childrens Act Section 23 - Placement Fee,06/02/2019,5175014,"3,324.75",Compass Fostering East Limited
Childrens Services,Children's Social Care,Support Service and Management Costs,Welfare Catering,Kitchen Supplies - Food and Beverages,06/02/2019,5175022,809.84,Raj Foods LTD
Childrens Services,Children's Social Care,Support Service and Management Costs,Welfare Catering,Kitchen Supplies - Food and Beverages,06/02/2019,5175023,787.50,Raj Foods LTD
Childrens Services,Children's Social Care,Children Looked After,S23 Fam Pl P&V-F/Care,Childrens Act Section 23 - Placement Fee,06/02/2019,5175494,"3,760.20",Family Fostering
Childrens Services,Children's Social Care,Children Looked After,S23 Fam Pl P&V-F/Care,Childrens Act Section 23 - Non-Contact Trans/Travel Costs,06/02/2019,5175495,"1,047.18",Family Fostering
Childrens Services,Children's Social Care,Children Looked After,Staying Put,Childrens Act Section 23 - Placement Fee,06/02/2019,5175506,"1,780.02",FosterCare UK Ltd
Childrens Services,Education Services,Other Strategic Functions,Ofsted Improvement Plan,Events & Exhibition Supplies,06/02/2019,5175510,"30,000.00",MA Education Limited
Childrens Services,Cultural and Related Services,Open Spaces,Mile End Park,Water Services - Metered,06/02/2019,5175579,"4,874.25",CASTLE WATER
Childrens Services,Cultural and Related Services,Open Spaces,Victoria Park,Water Services - Metered,06/02/2019,5175592,"2,547.31",CASTLE WATER
Childrens Services,Children's Social Care,Children Looked After,S23-Resi-P&V/OLA-Sec Acc-Wel,Childrens Act Section 23 - Non-Contact Trans/Travel Costs,06/02/2019,5175607,"1,827.25",PERSONAL SECURITY SERVICES LTD
Childrens Services,Children's Social Care,Service Strategy,FSP Sect 17 - Team 1,Childrens Act Section 17 - Maintenance/Subsistence,06/02/2019,5175618,900.00,Northwood (Manchester East) Ltd
Childrens Services,Children's Social Care,Service Strategy,"FSP Sect 17 - Team 2		",Childrens Act Section 17 - Expert Assessmt/Witness Costs,06/02/2019,5175622,"1,296.00",N&S Consultants Ltd
Childrens Services,Education Services,Other Strategic Functions,High Needs FE Colleges,Third Party Payments - Payments to Schools,06/02/2019,5175628,"29,610.00",Cambridge Regional College
Childrens Services,Education Services,Services to Young People and Other Community Learners,Supported Housing - Young People,Leaving Care Financial Assistance - Supp Accom/Hous Sup Lod,06/02/2019,5175865,"12,166.67",Providence Row Housing Association
Childrens Services,Education Services,Services to Young People and Other Community Learners,Supported Housing - Young People,Leaving Care Financial Assistance - Supp Accom/Hous Sup Lod,06/02/2019,5175867,"20,416.67",One Housing Group
Childrens Services,Children's Social Care,Children Looked After,S23 Fam Pl In-Hse-S/Term F/C,Childrens Act Section 23 - All Contact Expenses,06/02/2019,5176105,312.00,Healthcare and Transport Services Group Ltd
Childrens Services,Children's Social Care,Children Looked After,S23 Fam Pl P&V-F/Care,Childrens Act Section 23 - Placement Fee,06/02/2019,5176224,784.00,Swiis Foster Care Limited
Childrens Services,Children's Social Care,Children Looked After,S23 Fam Pl P&V-F/Care,Childrens Act Section 23 - Placement Fee,06/02/2019,5176236,"5,766.62",Compass Fostering South East Limited
Childrens Services,Children's Social Care,Support Service and Management Costs,Schools Catering,Kitchen Supplies - Food and Beverages,06/02/2019,5176276,-562.33,Thomas Ridley & Son Ltd
Childrens Services,Children's Social Care,Support Service and Management Costs,Schools Catering,Kitchen Supplies - Food and Beverages,08/02/2019,5165478,430.00,Thomas Ridley & Son Ltd
Childrens Services,Children's Social Care,Support Service and Management Costs,Schools Catering,Kitchen Supplies - Food and Beverages,08/02/2019,5165479,377.39,Thomas Ridley & Son Ltd
Childrens Services,Children's Social Care,Support Service and Management Costs,Sch. Meals A/c - Central Production Unit,Kitchen Supplies - Food and Beverages,08/02/2019,5165481,"1,565.44",Thomas Ridley & Son Ltd
Childrens Services,Children's Social Care,Support Service and Management Costs,Schools Catering,Kitchen Supplies - Food and Beverages,08/02/2019,5165484,375.60,Thomas Ridley & Son Ltd
Childrens Services,Children's Social Care,Support Service and Management Costs,Schools Catering,Kitchen Supplies - Food and Beverages,08/02/2019,5165485,810.80,Thomas Ridley & Son Ltd
Childrens Services,Children's Social Care,Support Service and Management Costs,Schools Catering,Kitchen Supplies - Food and Beverages,08/02/2019,5165486,310.70,Thomas Ridley & Son Ltd
Childrens Services,Children's Social Care,Support Service and Management Costs,Schools Catering,Kitchen Supplies - Food and Beverages,08/02/2019,5165487,743.47,Thomas Ridley & Son Ltd
Childrens Services,Children's Social Care,Support Service and Management Costs,Schools Catering,Kitchen Supplies - Food and Beverages,08/02/2019,5165489,293.61,Thomas Ridley & Son Ltd
Childrens Services,Children's Social Care,Support Service and Management Costs,Schools Catering,Kitchen Supplies - Food and Beverages,08/02/2019,5165493,946.71,Thomas Ridley & Son Ltd
Childrens Services,Children's Social Care,Support Service and Management Costs,Schools Catering,Kitchen Supplies - Food and Beverages,08/02/2019,5165494,567.39,Thomas Ridley & Son Ltd
Childrens Services,Children's Social Care,Support Service and Management Costs,Schools Catering,Kitchen Supplies - Food and Beverages,08/02/2019,5165495,464.77,Thomas Ridley & Son Ltd
Childrens Services,Children's Social Care,Support Service and Management Costs,Schools Catering,Kitchen Supplies - Food and Beverages,08/02/2019,5165496,604.11,Thomas Ridley & Son Ltd
Childrens Services,Children's Social Care,Support Service and Management Costs,Schools Catering,Kitchen Supplies - Food and Beverages,08/02/2019,5165497,437.96,Thomas Ridley & Son Ltd
Childrens Services,Children's Social Care,Support Service and Management Costs,Schools Catering,Kitchen Supplies - Food and Beverages,08/02/2019,5165498,298.04,Thomas Ridley & Son Ltd
Childrens Services,Children's Social Care,Support Service and Management Costs,Schools Catering,Kitchen Supplies - Food and Beverages,08/02/2019,5165499,497.31,Thomas Ridley & Son Ltd
Childrens Services,Children's Social Care,Support Service and Management Costs,Schools Catering,Kitchen Supplies - Food and Beverages,08/02/2019,5165502,327.24,Thomas Ridley & Son Ltd
Childrens Services,Children's Social Care,Support Service and Management Costs,Schools Catering,Kitchen Supplies - Food and Beverages,08/02/2019,5165503,364.76,Thomas Ridley & Son Ltd
Childrens Services,Children's Social Care,Support Service and Management Costs,Schools Catering,Kitchen Supplies - Food and Beverages,08/02/2019,5165504,436.11,Thomas Ridley & Son Ltd
Childrens Services,Children's Social Care,Support Service and Management Costs,Schools Catering,Kitchen Supplies - Food and Beverages,08/02/2019,5165505,493.07,Thomas Ridley & Son Ltd
Childrens Services,Children's Social Care,Support Service and Management Costs,Schools Catering,Kitchen Supplies - Food and Beverages,08/02/2019,5165506,616.63,Thomas Ridley & Son Ltd
Childrens Services,Children's Social Care,Support Service and Management Costs,Schools Catering,Kitchen Supplies - Food and Beverages,08/02/2019,5165507,327.24,Thomas Ridley & Son Ltd
Childrens Services,Children's Social Care,Support Service and Management Costs,Schools Catering,Kitchen Supplies - Food and Beverages,08/02/2019,5165509,589.10,Thomas Ridley & Son Ltd
Childrens Services,Children's Social Care,Support Service and Management Costs,Schools Catering,Kitchen Supplies - Food and Beverages,08/02/2019,5165511,461.52,Thomas Ridley & Son Ltd
Childrens Services,Children's Social Care,Support Service and Management Costs,Schools Catering,Kitchen Supplies - Food and Beverages,08/02/2019,5165513,305.50,Thomas Ridley & Son Ltd
Childrens Services,Children's Social Care,Support Service and Management Costs,Schools Catering,Kitchen Supplies - Food and Beverages,08/02/2019,5165514,608.12,Thomas Ridley & Son Ltd
Childrens Services,Children's Social Care,Support Service and Management Costs,Schools Catering,Kitchen Supplies - Food and Beverages,08/02/2019,5165516,294.58,Thomas Ridley & Son Ltd
Childrens Services,Children's Social Care,Support Service and Management Costs,Schools Catering,Kitchen Supplies - Food and Beverages,08/02/2019,5165517,667.23,Thomas Ridley & Son Ltd
Childrens Services,Children's Social Care,Support Service and Management Costs,Schools Catering,Kitchen Supplies - Food and Beverages,08/02/2019,5165518,293.55,Thomas Ridley & Son Ltd
Childrens Services,Children's Social Care,Support Service and Management Costs,Schools Catering,Kitchen Supplies - Food and Beverages,08/02/2019,5165519,596.57,Thomas Ridley & Son Ltd
Childrens Services,Children's Social Care,Support Service and Management Costs,Schools Catering,Kitchen Supplies - Food and Beverages,08/02/2019,5165521,"1,162.12",Thomas Ridley & Son Ltd
Childrens Services,Children's Social Care,Support Service and Management Costs,Schools Catering,Kitchen Supplies - Food and Beverages,08/02/2019,5165524,467.21,Thomas Ridley & Son Ltd
Childrens Services,Children's Social Care,Support Service and Management Costs,Schools Catering,Kitchen Supplies - Food and Beverages,08/02/2019,5165525,619.48,Thomas Ridley & Son Ltd
Childrens Services,Children's Social Care,Support Service and Management Costs,Schools Catering,Kitchen Supplies - Food and Beverages,08/02/2019,5165526,320.43,Thomas Ridley & Son Ltd
Childrens Services,Children's Social Care,Support Service and Management Costs,Schools Catering,Kitchen Supplies - Food and Beverages,08/02/2019,5165528,295.86,Thomas Ridley & Son Ltd
Childrens Services,Children's Social Care,Support Service and Management Costs,Schools Catering,Kitchen Supplies - Food and Beverages,08/02/2019,5165529,269.96,Thomas Ridley & Son Ltd
Childrens Services,Children's Social Care,Support Service and Management Costs,Schools Catering,Kitchen Supplies - Food and Beverages,08/02/2019,5165530,294.13,Thomas Ridley & Son Ltd
Childrens Services,Children's Social Care,Support Service and Management Costs,Swanlea,Kitchen Supplies - Food and Beverages,08/02/2019,5165531,656.23,Thomas Ridley & Son Ltd
Childrens Services,Children's Social Care,Support Service and Management Costs,Schools Catering,Kitchen Supplies - Food and Beverages,08/02/2019,5165532,461.54,Thomas Ridley & Son Ltd
Childrens Services,Children's Social Care,Support Service and Management Costs,Schools Catering,Kitchen Supplies - Food and Beverages,08/02/2019,5165533,549.35,Thomas Ridley & Son Ltd
Childrens Services,Children's Social Care,Support Service and Management Costs,Schools Catering,Kitchen Supplies - Food and Beverages,08/02/2019,5165535,388.86,Thomas Ridley & Son Ltd
Childrens Services,Children's Social Care,Support Service and Management Costs,Schools Catering,Kitchen Supplies - Food and Beverages,08/02/2019,5165536,620.34,Thomas Ridley & Son Ltd
Childrens Services,Children's Social Care,Support Service and Management Costs,Schools Catering,Kitchen Supplies - Food and Beverages,08/02/2019,5165539,793.89,Thomas Ridley & Son Ltd
Childrens Services,Children's Social Care,Support Service and Management Costs,Schools Catering,Kitchen Supplies - Food and Beverages,08/02/2019,5165540,615.91,Thomas Ridley & Son Ltd
Childrens Services,Children's Social Care,Support Service and Management Costs,"Mulberry Caf�		",Kitchen Supplies - Food and Beverages,08/02/2019,5165541,493.90,Thomas Ridley & Son Ltd
Childrens Services,Children's Social Care,Support Service and Management Costs,Schools Catering,Kitchen Supplies - Food and Beverages,08/02/2019,5165543,298.19,Thomas Ridley & Son Ltd
Childrens Services,Children's Social Care,Support Service and Management Costs,Schools Catering,Kitchen Supplies - Food and Beverages,08/02/2019,5165545,317.01,Thomas Ridley & Son Ltd
Childrens Services,Children's Social Care,Support Service and Management Costs,Schools Catering,Kitchen Supplies - Food and Beverages,08/02/2019,5165546,295.38,Thomas Ridley & Son Ltd
Childrens Services,Children's Social Care,Support Service and Management Costs,Schools Catering,Kitchen Supplies - Food and Beverages,08/02/2019,5165547,403.40,Thomas Ridley & Son Ltd
Childrens Services,Children's Social Care,Support Service and Management Costs,Schools Catering,Kitchen Supplies - Food and Beverages,08/02/2019,5165548,784.01,Thomas Ridley & Son Ltd
Childrens Services,Children's Social Care,Support Service and Management Costs,Schools Catering,Kitchen Supplies - Food and Beverages,08/02/2019,5165549,289.86,Thomas Ridley & Son Ltd
Childrens Services,Children's Social Care,Support Service and Management Costs,Schools Catering,Kitchen Supplies - Food and Beverages,08/02/2019,5165550,754.54,Thomas Ridley & Son Ltd
Childrens Services,Children's Social Care,Support Service and Management Costs,Schools Catering,Kitchen Supplies - Food and Beverages,08/02/2019,5165551,918.67,Thomas Ridley & Son Ltd
Childrens Services,Children's Social Care,Support Service and Management Costs,Schools Catering,Kitchen Supplies - Food and Beverages,08/02/2019,5165552,318.73,Thomas Ridley & Son Ltd
Childrens Services,Children's Social Care,Support Service and Management Costs,Schools Catering,Kitchen Supplies - Food and Beverages,08/02/2019,5165555,372.26,Thomas Ridley & Son Ltd
Childrens Services,Children's Social Care,Support Service and Management Costs,Schools Catering,Kitchen Supplies - Food and Beverages,08/02/2019,5165558,334.91,Thomas Ridley & Son Ltd
Childrens Services,Children's Social Care,Support Service and Management Costs,Schools Catering,Kitchen Supplies - Food and Beverages,08/02/2019,5165560,428.27,Thomas Ridley & Son Ltd
Childrens Services,Children's Social Care,Support Service and Management Costs,Welfare Catering,Kitchen Supplies - Food and Beverages,08/02/2019,5165726,273.68,William White Meats Ltd
Childrens Services,Children's Social Care,Support Service and Management Costs,Schools Catering,Kitchen Supplies - Food and Beverages,08/02/2019,5165736,376.45,William White Meats Ltd
Childrens Services,Children's Social Care,Support Service and Management Costs,Schools Catering,Kitchen Supplies - Food and Beverages,08/02/2019,5165737,356.99,William White Meats Ltd
Childrens Services,Children's Social Care,Support Service and Management Costs,Schools Catering,Kitchen Supplies - Food and Beverages,08/02/2019,5165762,434.17,William White Meats Ltd
Childrens Services,Children's Social Care,Support Service and Management Costs,Schools Catering,Kitchen Supplies - Food and Beverages,08/02/2019,5165763,381.13,William White Meats Ltd
Childrens Services,Children's Social Care,Support Service and Management Costs,Swanlea,Kitchen Supplies - Food and Beverages,08/02/2019,5165764,612.27,William White Meats Ltd
Childrens Services,Children's Social Care,Support Service and Management Costs,Schools Catering,Kitchen Supplies - Food and Beverages,08/02/2019,5165765,360.62,William White Meats Ltd
Childrens Services,Children's Social Care,Support Service and Management Costs,Schools Catering,Kitchen Supplies - Food and Beverages,08/02/2019,5165766,275.50,William White Meats Ltd
Childrens Services,Children's Social Care,Support Service and Management Costs,Sch. Meals A/c - Central Production Unit,Kitchen Supplies - Food and Beverages,08/02/2019,5165767,"1,686.23",William White Meats Ltd
Childrens Services,Children's Social Care,Support Service and Management Costs,Schools Catering,Kitchen Supplies - Food and Beverages,08/02/2019,5165768,274.50,William White Meats Ltd
Childrens Services,Education Services,Other Strategic Functions,High Needs Other Boroughs,Third Party Payments - Payments to Schools,08/02/2019,5165815,"5,833.38",Stormont House School
Childrens Services,Children's Social Care,Support Service and Management Costs,Schools Catering,Materials - Cleaning Materials,08/02/2019,5166394,373.63,The Maintenance Supply Co Ltd
Childrens Services,Children's Social Care,Support Service and Management Costs,Schools Catering,Materials - Cleaning Materials,08/02/2019,5166400,295.00,The Maintenance Supply Co Ltd
Childrens Services,Children's Social Care,Support Service and Management Costs,Sch. Meals A/c - Central Production Unit,Materials - Cleaning Materials,08/02/2019,5166402,431.81,The Maintenance Supply Co Ltd
Childrens Services,Education Services,Other Strategic Functions,Special Education Needs DSG,Third Party Payments - Payments to Schools,08/02/2019,5166439,"9,600.00",CPotential Trust Woodstar School
Childrens Services,Children's Social Care,Children Looked After,Staying Put,Childrens Act Section 23 - Placement Fee,08/02/2019,5168440,"5,322.86",West Sussex County Council
Childrens Services,Education Services,Other Strategic Functions,Special Education Needs DSG,Third Party Payments - Payments to Schools,08/02/2019,5168496,"2,959.46",Gatehouse Educational Trust Ltd
Childrens Services,Children's Social Care,Support Service and Management Costs,Sch. Meals A/c - Bow School,Kitchen Supplies - Food and Beverages,08/02/2019,5168597,899.10,Tiffin Sandwiches
Childrens Services,Children's Social Care,Support Service and Management Costs,Sch. Meals A/c - C.F.S. Upper (Harley Grove),Catering - Hospitality,08/02/2019,5168598,729.00,Tiffin Sandwiches
Childrens Services,Children's Social Care,Support Service and Management Costs,Sch. Meals A/c - Morpeth,Kitchen Supplies - Food and Beverages,08/02/2019,5168599,"1,078.25",Tiffin Sandwiches
Childrens Services,Children's Social Care,Support Service and Management Costs,Sch. Meals A/c - Raines Foundation,Kitchen Supplies - Food and Beverages,08/02/2019,5168600,299.70,Tiffin Sandwiches
Childrens Services,Children's Social Care,Support Service and Management Costs,Sch. Meals A/c - St. Paul's Way Comm. Trust,Kitchen Supplies - Food and Beverages,08/02/2019,5168601,375.84,Tiffin Sandwiches
Childrens Services,Children's Social Care,Support Service and Management Costs,Sch. Meals A/c - Stepney Green,Kitchen Supplies - Food and Beverages,08/02/2019,5168602,283.50,Tiffin Sandwiches
Childrens Services,Children's Social Care,Support Service and Management Costs,"Mulberry Caf�		",Kitchen Supplies - Food and Beverages,08/02/2019,5168603,387.33,Tiffin Sandwiches
Childrens Services,Education Services,Other Strategic Functions,Special Education Needs DSG,Third Party Payments - Payments to Schools,08/02/2019,5168711,"2,535.00",National Teaching And Advisory Service
Childrens Services,Education Services,Other Strategic Functions,Special Education Needs DSG,Third Party Payments - Payments to Schools,08/02/2019,5168721,"3,740.00",Parayhouse School
Childrens Services,Children's Social Care,Support Service and Management Costs,Schools Catering,Kitchen Supplies - Food and Beverages,08/02/2019,5168899,370.21,William White Meats Ltd
Childrens Services,Children's Social Care,Support Service and Management Costs,Schools Catering,Kitchen Supplies - Food and Beverages,08/02/2019,5168900,310.67,William White Meats Ltd
Childrens Services,Children's Social Care,Support Service and Management Costs,Schools Catering,Kitchen Supplies - Food and Beverages,08/02/2019,5168902,512.97,William White Meats Ltd
Childrens Services,Children's Social Care,Support Service and Management Costs,Schools Catering,Kitchen Supplies - Food and Beverages,08/02/2019,5168906,278.08,William White Meats Ltd
Childrens Services,Children's Social Care,Support Service and Management Costs,Schools Catering,Kitchen Supplies - Food and Beverages,08/02/2019,5168910,336.85,William White Meats Ltd
Childrens Services,Children's Social Care,Support Service and Management Costs,Schools Catering,Kitchen Supplies - Food and Beverages,08/02/2019,5168915,387.23,William White Meats Ltd
Childrens Services,Children's Social Care,Support Service and Management Costs,Schools Catering,Kitchen Supplies - Food and Beverages,08/02/2019,5168918,423.56,William White Meats Ltd
Childrens Services,Children's Social Care,Support Service and Management Costs,Schools Catering,Kitchen Supplies - Food and Beverages,08/02/2019,5168919,379.42,William White Meats Ltd
Childrens Services,Children's Social Care,Support Service and Management Costs,Schools Catering,Kitchen Supplies - Food and Beverages,08/02/2019,5168923,822.00,William White Meats Ltd
Childrens Services,Children's Social Care,Support Service and Management Costs,Schools Catering,Kitchen Supplies - Food and Beverages,08/02/2019,5168924,722.86,William White Meats Ltd
Childrens Services,Children's Social Care,Support Service and Management Costs,Schools Catering,Kitchen Supplies - Food and Beverages,08/02/2019,5168925,392.89,William White Meats Ltd
Childrens Services,Children's Social Care,Support Service and Management Costs,Schools Catering,Kitchen Supplies - Food and Beverages,08/02/2019,5168927,608.88,William White Meats Ltd
Childrens Services,Children's Social Care,Support Service and Management Costs,Schools Catering,Kitchen Supplies - Food and Beverages,08/02/2019,5168929,299.81,William White Meats Ltd
Childrens Services,Children's Social Care,Support Service and Management Costs,Schools Catering,Kitchen Supplies - Food and Beverages,08/02/2019,5168934,316.90,William White Meats Ltd
Childrens Services,Children's Social Care,Support Service and Management Costs,Schools Catering,Kitchen Supplies - Food and Beverages,08/02/2019,5168935,268.62,William White Meats Ltd
Childrens Services,Children's Social Care,Support Service and Management Costs,Schools Catering,Kitchen Supplies - Food and Beverages,08/02/2019,5168937,316.40,William White Meats Ltd
Childrens Services,Children's Social Care,Support Service and Management Costs,Schools Catering,Kitchen Supplies - Food and Beverages,08/02/2019,5168938,268.20,William White Meats Ltd
Childrens Services,Children's Social Care,Support Service and Management Costs,Schools Catering,Kitchen Supplies - Food and Beverages,08/02/2019,5168941,904.52,William White Meats Ltd
Childrens Services,Children's Social Care,Support Service and Management Costs,Schools Catering,Kitchen Supplies - Food and Beverages,08/02/2019,5168942,445.44,William White Meats Ltd
Childrens Services,Children's Social Care,Support Service and Management Costs,Schools Catering,Kitchen Supplies - Food and Beverages,08/02/2019,5168943,378.47,William White Meats Ltd
Childrens Services,Children's Social Care,Support Service and Management Costs,Schools Catering,Kitchen Supplies - Food and Beverages,08/02/2019,5168944,343.80,William White Meats Ltd
Childrens Services,Children's Social Care,Support Service and Management Costs,Schools Catering,Kitchen Supplies - Food and Beverages,08/02/2019,5168945,351.59,William White Meats Ltd
Childrens Services,Children's Social Care,Support Service and Management Costs,Schools Catering,Kitchen Supplies - Food and Beverages,08/02/2019,5168947,417.69,William White Meats Ltd
Childrens Services,Children's Social Care,Support Service and Management Costs,Schools Catering,Kitchen Supplies - Food and Beverages,08/02/2019,5168949,309.07,William White Meats Ltd
Childrens Services,Children's Social Care,Support Service and Management Costs,Schools Catering,Kitchen Supplies - Food and Beverages,08/02/2019,5168950,985.65,William White Meats Ltd
Childrens Services,Children's Social Care,Support Service and Management Costs,Schools Catering,Kitchen Supplies - Food and Beverages,08/02/2019,5168951,340.41,William White Meats Ltd
Childrens Services,Children's Social Care,Support Service and Management Costs,Schools Catering,Kitchen Supplies - Food and Beverages,08/02/2019,5168952,375.58,William White Meats Ltd
Childrens Services,Children's Social Care,Support Service and Management Costs,Schools Catering,Kitchen Supplies - Food and Beverages,08/02/2019,5168954,"1,133.38",William White Meats Ltd
Childrens Services,Children's Social Care,Support Service and Management Costs,Schools Catering,Kitchen Supplies - Food and Beverages,08/02/2019,5168957,680.13,William White Meats Ltd
Childrens Services,Children's Social Care,Support Service and Management Costs,Schools Catering,Kitchen Supplies - Food and Beverages,08/02/2019,5168958,565.07,William White Meats Ltd
Childrens Services,Education Services,Other Strategic Functions,Special Education Needs DSG,Third Party Payments - Payments to Schools,08/02/2019,5169105,"7,000.00",The Complete Works Ltd
Childrens Services,Education Services,Other Strategic Functions,Special Education Needs DSG,Third Party Payments - Payments to Schools,08/02/2019,5169106,"7,000.00",The Complete Works Ltd
Childrens Services,Education Services,Other Strategic Functions,Special Education Needs DSG,Third Party Payments - Payments to Schools,08/02/2019,5169107,"7,000.00",The Complete Works Ltd
Childrens Services,Education Services,Other Strategic Functions,Special Education Needs DSG,Third Party Payments - Payments to Schools,08/02/2019,5169109,"7,000.00",The Complete Works Ltd
Childrens Services,Highways and Transport Services,Management and Support Services,Contract Services M & A,Transport Dept Charges,08/02/2019,5170251,"4,166.67",AJR AUTOS LTD
Childrens Services,Children's Social Care,Support Service and Management Costs,Welfare Catering,Kitchen Supplies - Food and Beverages,08/02/2019,5170336,555.18,Apetito LTD
Childrens Services,Education Services,Other Strategic Functions,Special Education Needs DSG,Third Party Payments - Payments to Schools,08/02/2019,5171251,"10,609.00",Fairley House School
Childrens Services,Education Services,Other Strategic Functions,CS Prem Retirement (Non-School,Services - Professional Fees - Financial Services Fees,08/02/2019,5173178,"14,357.75",Teachers Pensions
Childrens Services,Education Services,Other Strategic Functions,Special Education Needs DSG,Third Party Payments - Payments to Schools,08/02/2019,5173232,"3,945.29",UK Behaviour Analysis & Research Group CIC
Childrens Services,Children's Social Care,Children Looked After,LCS/Allowances-Accom,Leaving Care Financial Assistance - Supported Living,08/02/2019,5174127,"3,003.52",Sanctuary Housing
Childrens Services,Cultural and Related Services,Recreation & Sport,Mayors Cup,Recreational Activities,08/02/2019,5174275,500.00,FC Esprit
Childrens Services,Cultural and Related Services,Recreation & Sport,Mayors Cup,Recreational Activities,08/02/2019,5174276,500.00,Shadwell Youth Org
Childrens Services,Cultural and Related Services,Recreation & Sport,Mayors Cup,Recreational Activities,08/02/2019,5174277,500.00,Brick Lane FC
Childrens Services,Cultural and Related Services,Recreation & Sport,Mayors Cup,Recreational Activities,08/02/2019,5174278,500.00,ABOHANI FOOTBALL CLUB
Childrens Services,Cultural and Related Services,Recreation & Sport,Mayors Cup,Recreational Activities,08/02/2019,5174279,500.00,Kekoa Coaching
Childrens Services,Cultural and Related Services,Recreation & Sport,Mayors Cup,Recreational Activities,08/02/2019,5174280,500.00,Wise Youth Trust
Childrens Services,Cultural and Related Services,Recreation & Sport,Mayors Cup,Recreational Activities,08/02/2019,5174295,500.00,Osmani Trust
Childrens Services,Cultural and Related Services,Recreation & Sport,Mayors Cup,Recreational Activities,08/02/2019,5174296,500.00,Aldgate Club East FC
Childrens Services,Cultural and Related Services,Recreation & Sport,Mayors Cup,Recreational Activities,08/02/2019,5174297,500.00,Vallance Community Sports Association
Childrens Services,Cultural and Related Services,Recreation & Sport,Mayors Cup,Recreational Activities,08/02/2019,5174298,500.00,Wapping Warriors
Childrens Services,Education Services,Early Years,Children Centre Central Team,Medical Requisites,08/02/2019,5174626,740.00,NHS SUPPLY CHAIN
Childrens Services,Education Services,Other Strategic Functions,Parents Advice Centre,Catering - Hospitality,08/02/2019,5175013,311.50,LIMONCELLO (CATERING & DELICATESSEN) LTD
Childrens Services,Education Services,Other Strategic Functions,High Needs Academies & Free Schs,Third Party Payments - Payments to Schools,08/02/2019,5175189,"2,877.25",Wapping High School
Childrens Services,Education Services,Other Strategic Functions,High Needs Academies & Free Schs,Third Party Payments - Payments to Schools,08/02/2019,5175191,"5,514.73",Wapping High School
Childrens Services,Cultural and Related Services,Recreation & Sport,Mayors Cup,Recreational Activities,08/02/2019,5175201,500.00,Wapping Youth FC
Childrens Services,Cultural and Related Services,Recreation & Sport,Mayors Cup,Recreational Activities,08/02/2019,5175202,500.00,EAST ONE YOUTH & COMMUNITY SERVICES
Childrens Services,Cultural and Related Services,Recreation & Sport,Mayors Cup,Recreational Activities,08/02/2019,5175203,500.00,NEWARK YOUTH LONDON
Childrens Services,Cultural and Related Services,Recreation & Sport,Mayors Cup,Recreational Activities,08/02/2019,5175570,500.00,ELSA
Childrens Services,Education Services,Other Strategic Functions,Special Education Needs DSG,Third Party Payments - Payments to Schools,08/02/2019,5176099,"4,020.00",Riverhouse Montessori Nursery
Childrens Services,Education Services,Other Strategic Functions,Special Education Needs DSG,Third Party Payments - Payments to Schools,08/02/2019,5176100,"3,870.00",Riverhouse Montessori Nursery
Childrens Services,Education Services,Other Strategic Functions,Special Education Needs DSG,Third Party Payments - Payments to Schools,08/02/2019,5176101,"4,290.00",Riverhouse Montessori Nursery
Childrens Services,Children's Social Care,Children Looked After,S23-Other-Semi-Ind. Unit,Childrens Act Section 23 - Placement Fee,08/02/2019,5176122,522.00,Heartwood Outreach Services Ltd
Childrens Services,Children's Social Care,Support Service and Management Costs,Sch. Meals A/c - Central Production Unit,Kitchen Supplies - Catering Equipment,08/02/2019,5176984,286.53,W V Howe LTD
Childrens Services,Children's Social Care,Support Service and Management Costs,Sch. Meals A/c - Culloden,Kitchen Supplies - Catering Equipment,08/02/2019,5176985,267.92,W V Howe LTD
Childrens Services,Children's Social Care,Support Service and Management Costs,Schools Catering,Kitchen Supplies - Catering Equipment,08/02/2019,5176989,280.00,W V Howe LTD
Childrens Services,Children's Social Care,Support Service and Management Costs,Sch. Meals A/c - Stepney Green,Kitchen Supplies - Catering Equipment,08/02/2019,5176995,429.76,W V Howe LTD
Childrens Services,Children's Social Care,Support Service and Management Costs,Sch. Meals A/c - Globe,Kitchen Supplies - Catering Equipment,08/02/2019,5176996,"1,044.00",W V Howe LTD
Childrens Services,Children's Social Care,Children Looked After,S23 Fam Pl P&V-F/Care,Childrens Act Section 23 - Placement Fee,08/02/2019,5177016,"3,146.71",Foster Care Link Ltd
Childrens Services,Education Services,Other Strategic Functions,Parental Engagement,Education & Training - Non Staff Tuition Fees,08/02/2019,5177018,275.00,ACE Education Training LLP
Childrens Services,Education Services,Other Strategic Functions,Parental Engagement,Education & Training - Non Staff Tuition Fees,08/02/2019,5177019,275.00,ACE Education Training LLP
Childrens Services,No Service Specified,No Division Specified,Capital-Minor Works (SC),Other External Fees - Other External Fees,08/02/2019,5177022,821.00,Terrain Surveys Ltd
Childrens Services,Children's Social Care,Children Looked After,LCS/Allowances-Accom,Leaving Care Financial Assistance - Supported Living,08/02/2019,5177070,-990.17,Sanctuary Housing
Childrens Services,Education Services,Other Strategic Functions,Parents Advice Centre,Catering - Hospitality,08/02/2019,5177073,262.75,LIMONCELLO (CATERING & DELICATESSEN) LTD
Childrens Services,Children's Social Care,Support Service and Management Costs,Schools Catering,Kitchen Supplies - Food and Beverages,08/02/2019,5177097,-549.48,Thomas Ridley & Son Ltd
Childrens Services,Children's Social Care,Support Service and Management Costs,Schools Catering,Kitchen Supplies - Food and Beverages,08/02/2019,5177100,-398.35,Thomas Ridley & Son Ltd
Childrens Services,Children's Social Care,Support Service and Management Costs,Schools Catering,Kitchen Supplies - Food and Beverages,08/02/2019,5177101,-823.94,Thomas Ridley & Son Ltd
Childrens Services,No Service Specified,No Division Specified,Capital-Minor Works (SC),Other External Fees - Consultants Fees,08/02/2019,5177149,"1,800.00",Potter Raper & Partnership
Childrens Services,No Service Specified,No Division Specified,Capital-Minor Works (SC),Other External Fees - Consultants Fees,08/02/2019,5177150,"8,100.00",Potter Raper & Partnership
Childrens Services,Children's Social Care,Other Children's and Family Services,Permanancy and Adoption Support Team 1,Childrens Act Section 23 - Non-Contact Taxi Costs,08/02/2019,5177169,622.16,Moss & Coleman
Childrens Services,Children's Social Care,Children Looked After,S23-Other-Semi-Ind. Unit,Childrens Act Section 23 - Placement Fee,08/02/2019,5177191,"3,435.64",TSS Ltd
Childrens Services,Children's Social Care,Children Looked After,S23-Other-Semi-Ind. Unit,Childrens Act Section 23 - Placement Fee,08/02/2019,5177192,"3,010.50",TSS Ltd
Childrens Services,Education Services,Early Years,SSEYCG Workforce Dev't,Meeting Expenses,08/02/2019,5177846,"2,480.00",SETPOINT LONDON EAST
Childrens Services,Children's Social Care,Support Service and Management Costs,Sch. Meals A/c - Central Production Unit,Kitchen Supplies - Food and Beverages,08/02/2019,5177893,"1,580.38",Thomas Ridley & Son Ltd
Childrens Services,Children's Social Care,Support Service and Management Costs,Schools Catering,Kitchen Supplies - Food and Beverages,08/02/2019,5177894,435.71,Thomas Ridley & Son Ltd
Childrens Services,Children's Social Care,Support Service and Management Costs,Schools Catering,Kitchen Supplies - Food and Beverages,08/02/2019,5177895,250.88,Thomas Ridley & Son Ltd
Childrens Services,Children's Social Care,Support Service and Management Costs,Sch. Meals A/c - Central Production Unit,Kitchen Supplies - Food and Beverages,08/02/2019,5177896,"1,145.69",Thomas Ridley & Son Ltd
Childrens Services,Children's Social Care,Support Service and Management Costs,Schools Catering,Kitchen Supplies - Food and Beverages,08/02/2019,5177898,357.81,Thomas Ridley & Son Ltd
Childrens Services,Children's Social Care,Support Service and Management Costs,Schools Catering,Kitchen Supplies - Food and Beverages,08/02/2019,5177900,279.63,Thomas Ridley & Son Ltd
Childrens Services,Children's Social Care,Support Service and Management Costs,Schools Catering,Kitchen Supplies - Food and Beverages,08/02/2019,5177901,"1,082.49",Thomas Ridley & Son Ltd
Childrens Services,Children's Social Care,Support Service and Management Costs,Schools Catering,Kitchen Supplies - Food and Beverages,08/02/2019,5177903,322.98,Thomas Ridley & Son Ltd
Childrens Services,Children's Social Care,Support Service and Management Costs,Schools Catering,Kitchen Supplies - Food and Beverages,08/02/2019,5177905,427.07,Thomas Ridley & Son Ltd
Childrens Services,Children's Social Care,Support Service and Management Costs,Schools Catering,Kitchen Supplies - Food and Beverages,08/02/2019,5177906,514.82,Thomas Ridley & Son Ltd
Childrens Services,Children's Social Care,Support Service and Management Costs,Schools Catering,Kitchen Supplies - Food and Beverages,08/02/2019,5177908,485.15,Thomas Ridley & Son Ltd
Childrens Services,Children's Social Care,Support Service and Management Costs,Schools Catering,Kitchen Supplies - Food and Beverages,08/02/2019,5177909,255.78,Thomas Ridley & Son Ltd
Childrens Services,Children's Social Care,Support Service and Management Costs,Schools Catering,Kitchen Supplies - Food and Beverages,08/02/2019,5177910,454.17,Thomas Ridley & Son Ltd
Childrens Services,Children's Social Care,Support Service and Management Costs,Schools Catering,Kitchen Supplies - Food and Beverages,08/02/2019,5177913,648.77,Thomas Ridley & Son Ltd
Childrens Services,Children's Social Care,Support Service and Management Costs,Schools Catering,Kitchen Supplies - Food and Beverages,08/02/2019,5177914,649.82,Thomas Ridley & Son Ltd
Childrens Services,Children's Social Care,Support Service and Management Costs,Schools Catering,Kitchen Supplies - Food and Beverages,08/02/2019,5177915,763.93,Thomas Ridley & Son Ltd
Childrens Services,Children's Social Care,Support Service and Management Costs,Schools Catering,Kitchen Supplies - Food and Beverages,08/02/2019,5177916,968.47,Thomas Ridley & Son Ltd
Childrens Services,Children's Social Care,Support Service and Management Costs,Schools Catering,Kitchen Supplies - Food and Beverages,08/02/2019,5177917,476.13,Thomas Ridley & Son Ltd
Childrens Services,Children's Social Care,Support Service and Management Costs,Schools Catering,Kitchen Supplies - Food and Beverages,08/02/2019,5177918,814.35,Thomas Ridley & Son Ltd
Childrens Services,Children's Social Care,Support Service and Management Costs,Schools Catering,Kitchen Supplies - Food and Beverages,08/02/2019,5177919,286.13,Thomas Ridley & Son Ltd
Childrens Services,Children's Social Care,Support Service and Management Costs,Schools Catering,Kitchen Supplies - Food and Beverages,08/02/2019,5177922,381.75,Thomas Ridley & Son Ltd
Childrens Services,Children's Social Care,Support Service and Management Costs,Schools Catering,Kitchen Supplies - Food and Beverages,08/02/2019,5177923,274.75,Thomas Ridley & Son Ltd
Childrens Services,Children's Social Care,Support Service and Management Costs,Swanlea,Kitchen Supplies - Food and Beverages,08/02/2019,5177924,293.48,Thomas Ridley & Son Ltd
Childrens Services,Children's Social Care,Support Service and Management Costs,Swanlea,Kitchen Supplies - Food and Beverages,08/02/2019,5177925,685.12,Thomas Ridley & Son Ltd
Childrens Services,Children's Social Care,Support Service and Management Costs,Schools Catering,Kitchen Supplies - Food and Beverages,08/02/2019,5177926,551.58,Thomas Ridley & Son Ltd
Childrens Services,Children's Social Care,Support Service and Management Costs,Schools Catering,Kitchen Supplies - Food and Beverages,08/02/2019,5177928,267.03,Thomas Ridley & Son Ltd
Childrens Services,Children's Social Care,Support Service and Management Costs,Schools Catering,Kitchen Supplies - Food and Beverages,08/02/2019,5177930,652.84,Thomas Ridley & Son Ltd
Childrens Services,Children's Social Care,Support Service and Management Costs,Schools Catering,Kitchen Supplies - Food and Beverages,08/02/2019,5177931,392.69,Thomas Ridley & Son Ltd
Childrens Services,Children's Social Care,Support Service and Management Costs,Schools Catering,Kitchen Supplies - Food and Beverages,08/02/2019,5177932,401.55,Thomas Ridley & Son Ltd
Childrens Services,Children's Social Care,Support Service and Management Costs,Schools Catering,Kitchen Supplies - Food and Beverages,08/02/2019,5177933,308.96,Thomas Ridley & Son Ltd
Childrens Services,Children's Social Care,Support Service and Management Costs,Schools Catering,Kitchen Supplies - Food and Beverages,08/02/2019,5177934,257.34,Thomas Ridley & Son Ltd
Childrens Services,Children's Social Care,Support Service and Management Costs,Schools Catering,Kitchen Supplies - Food and Beverages,08/02/2019,5177935,481.39,Thomas Ridley & Son Ltd
Childrens Services,Children's Social Care,Support Service and Management Costs,Schools Catering,Kitchen Supplies - Food and Beverages,08/02/2019,5177936,"1,256.63",Thomas Ridley & Son Ltd
Childrens Services,Children's Social Care,Support Service and Management Costs,Schools Catering,Kitchen Supplies - Food and Beverages,08/02/2019,5177937,466.69,Thomas Ridley & Son Ltd
Childrens Services,Children's Social Care,Support Service and Management Costs,Schools Catering,Kitchen Supplies - Food and Beverages,08/02/2019,5177941,330.59,Thomas Ridley & Son Ltd
Childrens Services,Children's Social Care,Support Service and Management Costs,Schools Catering,Kitchen Supplies - Food and Beverages,08/02/2019,5177944,299.71,Thomas Ridley & Son Ltd
Childrens Services,Children's Social Care,Support Service and Management Costs,Schools Catering,Kitchen Supplies - Food and Beverages,08/02/2019,5177946,308.50,Thomas Ridley & Son Ltd
Childrens Services,Children's Social Care,Support Service and Management Costs,Schools Catering,Kitchen Supplies - Food and Beverages,08/02/2019,5177948,302.51,Thomas Ridley & Son Ltd
Childrens Services,Children's Social Care,Support Service and Management Costs,Schools Catering,Kitchen Supplies - Food and Beverages,08/02/2019,5177951,463.04,Thomas Ridley & Son Ltd
Childrens Services,Children's Social Care,Support Service and Management Costs,Schools Catering,Kitchen Supplies - Food and Beverages,08/02/2019,5177952,586.60,Thomas Ridley & Son Ltd
Childrens Services,Children's Social Care,Support Service and Management Costs,Schools Catering,Kitchen Supplies - Food and Beverages,08/02/2019,5177953,778.23,Thomas Ridley & Son Ltd
Childrens Services,Children's Social Care,Support Service and Management Costs,Schools Catering,Kitchen Supplies - Food and Beverages,08/02/2019,5177954,771.30,Thomas Ridley & Son Ltd
Childrens Services,Children's Social Care,Support Service and Management Costs,Schools Catering,Kitchen Supplies - Food and Beverages,08/02/2019,5177955,268.88,Thomas Ridley & Son Ltd
Childrens Services,Children's Social Care,Support Service and Management Costs,Schools Catering,Kitchen Supplies - Food and Beverages,08/02/2019,5177956,484.58,Thomas Ridley & Son Ltd
Childrens Services,Children's Social Care,Support Service and Management Costs,Schools Catering,Kitchen Supplies - Food and Beverages,08/02/2019,5177958,541.25,Thomas Ridley & Son Ltd
Childrens Services,Children's Social Care,Support Service and Management Costs,Schools Catering,Kitchen Supplies - Food and Beverages,08/02/2019,5177961,468.60,Thomas Ridley & Son Ltd
Childrens Services,Children's Social Care,Support Service and Management Costs,Schools Catering,Kitchen Supplies - Food and Beverages,08/02/2019,5177962,311.06,Thomas Ridley & Son Ltd
Childrens Services,Children's Social Care,Support Service and Management Costs,Schools Catering,Kitchen Supplies - Food and Beverages,08/02/2019,5177963,639.46,Thomas Ridley & Son Ltd
Childrens Services,Children's Social Care,Support Service and Management Costs,Schools Catering,Kitchen Supplies - Food and Beverages,08/02/2019,5177964,645.92,Thomas Ridley & Son Ltd
Childrens Services,Children's Social Care,Support Service and Management Costs,Welfare Catering,Kitchen Supplies - Food and Beverages,08/02/2019,5177968,661.68,Thomas Ridley & Son Ltd
Childrens Services,Education Services,Other Strategic Functions,Special Education Needs DSG,Third Party Payments - Payments to Schools,11/02/2019,5150244,"24,589.97",Ambitious about Autism
Childrens Services,Cultural and Related Services,Open Spaces,Mile End Park,Repairs and Maintenance - Responsive - Repair & Maintenance,11/02/2019,5165797,"2,150.00",JC Coster (Metalworks) Ltd
Childrens Services,Children's Social Care,Support Service and Management Costs,Schools Catering,Kitchen Supplies - Food and Beverages,11/02/2019,5165945,255.40,Thomas Ridley & Son Ltd
Childrens Services,Children's Social Care,Support Service and Management Costs,Schools Catering,Kitchen Supplies - Food and Beverages,11/02/2019,5165946,"1,069.30",Thomas Ridley & Son Ltd
Childrens Services,Children's Social Care,Support Service and Management Costs,Schools Catering,Kitchen Supplies - Food and Beverages,11/02/2019,5165948,407.85,Thomas Ridley & Son Ltd
Childrens Services,Children's Social Care,Support Service and Management Costs,Schools Catering,Kitchen Supplies - Food and Beverages,11/02/2019,5165949,407.49,Thomas Ridley & Son Ltd
Childrens Services,Children's Social Care,Support Service and Management Costs,Schools Catering,Kitchen Supplies - Food and Beverages,11/02/2019,5165950,416.45,Thomas Ridley & Son Ltd
Childrens Services,Children's Social Care,Support Service and Management Costs,Schools Catering,Kitchen Supplies - Food and Beverages,11/02/2019,5165952,"1,516.94",Thomas Ridley & Son Ltd
Childrens Services,Children's Social Care,Support Service and Management Costs,Sch. Meals A/c - Central Production Unit,Kitchen Supplies - Food and Beverages,11/02/2019,5165954,958.97,Thomas Ridley & Son Ltd
Childrens Services,Children's Social Care,Support Service and Management Costs,Schools Catering,Kitchen Supplies - Food and Beverages,11/02/2019,5165955,734.15,Thomas Ridley & Son Ltd
Childrens Services,Children's Social Care,Support Service and Management Costs,Schools Catering,Kitchen Supplies - Food and Beverages,11/02/2019,5165957,350.92,Thomas Ridley & Son Ltd
Childrens Services,Children's Social Care,Support Service and Management Costs,Schools Catering,Kitchen Supplies - Food and Beverages,11/02/2019,5165958,440.31,Thomas Ridley & Son Ltd
Childrens Services,Cultural and Related Services,Open Spaces,Mile End Park,Repairs and Maintenance - Responsive - Repair & Maintenance,11/02/2019,5166340,480.00,JC Coster (Metalworks) Ltd
Childrens Services,Children's Social Care,Other Children's and Family Services,Adoption Concortium,Meeting Expenses,11/02/2019,5166342,351.67,the royal foundation of st katharine
Childrens Services,Children's Social Care,Support Service and Management Costs,Schools Catering,Kitchen Supplies - Food and Beverages,11/02/2019,5166467,379.31,Thomas Ridley & Son Ltd
Childrens Services,Children's Social Care,Support Service and Management Costs,Schools Catering,Kitchen Supplies - Food and Beverages,11/02/2019,5166468,543.23,Thomas Ridley & Son Ltd
Childrens Services,Children's Social Care,Support Service and Management Costs,Schools Catering,Kitchen Supplies - Food and Beverages,11/02/2019,5166469,551.40,Thomas Ridley & Son Ltd
Childrens Services,Children's Social Care,Support Service and Management Costs,Swanlea,Kitchen Supplies - Food and Beverages,11/02/2019,5166470,573.21,Thomas Ridley & Son Ltd
Childrens Services,Children's Social Care,Support Service and Management Costs,Schools Catering,Kitchen Supplies - Food and Beverages,11/02/2019,5166471,679.10,Thomas Ridley & Son Ltd
Childrens Services,Children's Social Care,Support Service and Management Costs,Schools Catering,Kitchen Supplies - Food and Beverages,11/02/2019,5166472,275.91,Thomas Ridley & Son Ltd
Childrens Services,Children's Social Care,Support Service and Management Costs,Schools Catering,Kitchen Supplies - Food and Beverages,11/02/2019,5166473,669.88,Thomas Ridley & Son Ltd
Childrens Services,Children's Social Care,Support Service and Management Costs,Schools Catering,Kitchen Supplies - Food and Beverages,11/02/2019,5166475,671.97,Thomas Ridley & Son Ltd
Childrens Services,Children's Social Care,Support Service and Management Costs,Schools Catering,Kitchen Supplies - Food and Beverages,11/02/2019,5166476,379.27,Thomas Ridley & Son Ltd
Childrens Services,Children's Social Care,Support Service and Management Costs,Schools Catering,Kitchen Supplies - Food and Beverages,11/02/2019,5166477,708.74,Thomas Ridley & Son Ltd
Childrens Services,Children's Social Care,Support Service and Management Costs,Schools Catering,Kitchen Supplies - Food and Beverages,11/02/2019,5166479,485.04,Thomas Ridley & Son Ltd
Childrens Services,Children's Social Care,Support Service and Management Costs,Schools Catering,Kitchen Supplies - Food and Beverages,11/02/2019,5166480,441.56,Thomas Ridley & Son Ltd
Childrens Services,Children's Social Care,Support Service and Management Costs,Schools Catering,Kitchen Supplies - Food and Beverages,11/02/2019,5166482,704.98,Thomas Ridley & Son Ltd
Childrens Services,Children's Social Care,Support Service and Management Costs,Schools Catering,Kitchen Supplies - Food and Beverages,11/02/2019,5166483,380.87,Thomas Ridley & Son Ltd
Childrens Services,Children's Social Care,Support Service and Management Costs,Schools Catering,Kitchen Supplies - Food and Beverages,11/02/2019,5166484,443.26,Thomas Ridley & Son Ltd
Childrens Services,Children's Social Care,Support Service and Management Costs,Schools Catering,Kitchen Supplies - Food and Beverages,11/02/2019,5166485,521.28,Thomas Ridley & Son Ltd
Childrens Services,Children's Social Care,Support Service and Management Costs,Schools Catering,Kitchen Supplies - Food and Beverages,11/02/2019,5166486,483.09,Thomas Ridley & Son Ltd
Childrens Services,Children's Social Care,Support Service and Management Costs,Schools Catering,Kitchen Supplies - Food and Beverages,11/02/2019,5166487,700.81,Thomas Ridley & Son Ltd
Childrens Services,Children's Social Care,Support Service and Management Costs,Schools Catering,Kitchen Supplies - Food and Beverages,11/02/2019,5166488,349.45,Thomas Ridley & Son Ltd
Childrens Services,Children's Social Care,Support Service and Management Costs,Sch. Meals A/c - Central Production Unit,Kitchen Supplies - Food and Beverages,11/02/2019,5166489,898.65,Thomas Ridley & Son Ltd
Childrens Services,Children's Social Care,Support Service and Management Costs,Welfare Catering,Kitchen Supplies - Food and Beverages,11/02/2019,5166490,706.40,Thomas Ridley & Son Ltd
Childrens Services,Children's Social Care,Support Service and Management Costs,Schools Catering,Kitchen Supplies - Food and Beverages,11/02/2019,5166493,412.93,Thomas Ridley & Son Ltd
Childrens Services,Children's Social Care,Support Service and Management Costs,Schools Catering,Kitchen Supplies - Food and Beverages,11/02/2019,5166494,783.45,Thomas Ridley & Son Ltd
Childrens Services,Children's Social Care,Support Service and Management Costs,Schools Catering,Kitchen Supplies - Food and Beverages,11/02/2019,5166495,663.65,Thomas Ridley & Son Ltd
Childrens Services,Children's Social Care,Support Service and Management Costs,Schools Catering,Kitchen Supplies - Food and Beverages,11/02/2019,5166496,435.58,Thomas Ridley & Son Ltd
Childrens Services,Children's Social Care,Support Service and Management Costs,Schools Catering,Kitchen Supplies - Food and Beverages,11/02/2019,5166498,372.24,Thomas Ridley & Son Ltd
Childrens Services,Children's Social Care,Support Service and Management Costs,Schools Catering,Kitchen Supplies - Food and Beverages,11/02/2019,5166500,545.56,Thomas Ridley & Son Ltd
Childrens Services,Children's Social Care,Support Service and Management Costs,Schools Catering,Kitchen Supplies - Food and Beverages,11/02/2019,5166501,296.02,Thomas Ridley & Son Ltd
Childrens Services,Children's Social Care,Support Service and Management Costs,Schools Catering,Kitchen Supplies - Food and Beverages,11/02/2019,5166502,255.47,Thomas Ridley & Son Ltd
Childrens Services,Children's Social Care,Support Service and Management Costs,Schools Catering,Kitchen Supplies - Food and Beverages,11/02/2019,5166504,283.42,Thomas Ridley & Son Ltd
Childrens Services,Children's Social Care,Support Service and Management Costs,Schools Catering,Kitchen Supplies - Food and Beverages,11/02/2019,5166505,418.46,Thomas Ridley & Son Ltd
Childrens Services,Children's Social Care,Support Service and Management Costs,Schools Catering,Kitchen Supplies - Food and Beverages,11/02/2019,5166506,715.51,Thomas Ridley & Son Ltd
Childrens Services,Children's Social Care,Support Service and Management Costs,Schools Catering,Kitchen Supplies - Food and Beverages,11/02/2019,5166509,320.53,Thomas Ridley & Son Ltd
Childrens Services,Children's Social Care,Children Looked After,S23-Other-Semi-Ind. Unit,Childrens Act Section 23 - Placement Fee,11/02/2019,5167306,925.00,Real Life
Childrens Services,Education Services,Other Strategic Functions,Special Education Needs DSG,Third Party Payments - Payments to Schools,11/02/2019,5168497,"3,847.30",Gatehouse Educational Trust Ltd
Childrens Services,Education Services,Other Strategic Functions,Special Education Needs DSG,Third Party Payments - Payments to Schools,11/02/2019,5168498,"4,438.97",Gatehouse Educational Trust Ltd
Childrens Services,Education Services,Other Strategic Functions,High Needs Other Boroughs,Third Party Payments - Payments to Schools,11/02/2019,5168608,"7,333.34",Riverside School
Childrens Services,Education Services,Other Strategic Functions,High Needs Other Boroughs,Third Party Payments - Payments to Schools,11/02/2019,5168609,"4,333.34",Riverside School
Childrens Services,Children's Social Care,Children Looked After,S23 Fam Pl P&V-F/Care,Childrens Act Section 23 - Placement Fee,11/02/2019,5168615,850.00,Qalb Fostering Agency Ltd
Childrens Services,Children's Social Care,Children Looked After,S23 Fam Pl P&V-F/Care,Childrens Act Section 23 - Placement Fee,11/02/2019,5168616,950.00,Qalb Fostering Agency Ltd
Childrens Services,Children's Social Care,Children Looked After,S23 Fam Pl P&V-F/Care,Childrens Act Section 23 - Placement Fee,11/02/2019,5168617,950.00,Qalb Fostering Agency Ltd
Childrens Services,Education Services,Services to Young People and Other Community Learners,Careers Service - Core,Computing - Purchase of Software,11/02/2019,5168666,896.00,BKSB Ltd
Childrens Services,Children's Social Care,Children Looked After,S23 Fam Pl P&V-F/Care,Childrens Act Section 23 - Placement Fee,11/02/2019,5168667,"3,875.00",Ryancare Fostering Ltd
Childrens Services,Children's Social Care,Children Looked After,S23-Other-Semi-Ind. Unit,Childrens Act Section 23 - Placement Fee,11/02/2019,5168706,925.00,Real Life
Childrens Services,Education Services,Other Strategic Functions,Special Education Needs DSG,Third Party Payments - Payments to Schools,11/02/2019,5168707,"2,437.50",National Teaching And Advisory Service
Childrens Services,Education Services,Other Strategic Functions,Special Education Needs DSG,Third Party Payments - Payments to Schools,11/02/2019,5168708,"2,437.50",National Teaching And Advisory Service
Childrens Services,Education Services,Other Strategic Functions,Special Education Needs DSG,Third Party Payments - Payments to Schools,11/02/2019,5168709,"2,437.50",National Teaching And Advisory Service
Childrens Services,Children's Social Care,Youth Justice,Partnerships,Communications,11/02/2019,5168820,597.00,Ignite Service Provider Ltd
Childrens Services,Children's Social Care,Support Service and Management Costs,Sch. Meals A/c - Central Production Unit,Kitchen Supplies - Food and Beverages,11/02/2019,5168940,654.61,William White Meats Ltd
Childrens Services,Education Services,Early Years,Meath Gardens CC,Community Equipment  Supplies - Store Items,11/02/2019,5169080,451.70,Wesco UK
Childrens Services,Education Services,Other Strategic Functions,Special Education Needs DSG,Third Party Payments - Payments to Schools,11/02/2019,5169099,"2,275.00",The Complete Works Ltd
Childrens Services,Education Services,Other Strategic Functions,Special Education Needs DSG,Third Party Payments - Payments to Schools,11/02/2019,5169110,"7,000.00",The Complete Works Ltd
Childrens Services,Education Services,Other Strategic Functions,Special Education Needs DSG,Third Party Payments - Payments to Schools,11/02/2019,5169111,"7,000.00",The Complete Works Ltd
Childrens Services,Education Services,Other Strategic Functions,High Needs Other Boroughs,Third Party Payments - Payments to Schools,11/02/2019,5170237,"7,936.41",Blanche Neville School
Childrens Services,Education Services,Other Strategic Functions,High Needs Other Boroughs,Third Party Payments - Payments to Schools,11/02/2019,5170238,"11,885.16",Blanche Neville School
Childrens Services,Education Services,Other Strategic Functions,High Needs Other Boroughs,Third Party Payments - Payments to Schools,11/02/2019,5170239,"11,885.16",Blanche Neville School
Childrens Services,Cultural and Related Services,Recreation & Sport,Sports Development,Recreational Activities,11/02/2019,5170408,"1,553.75",Greenwich Leisure LTD
Childrens Services,Cultural and Related Services,Recreation & Sport,Sports Development,Recreational Activities,11/02/2019,5170409,"1,045.25",Greenwich Leisure LTD
Childrens Services,Education Services,Other Strategic Functions,Special Education Needs DSG,Third Party Payments - Payments to Schools,11/02/2019,5170412,"-1,925.00",The Complete Works Ltd
Childrens Services,Children's Social Care,Children's and Young People's Safety,Child Protection Mgt & Admin,Computing - Purchase of Software,11/02/2019,5171244,251.84,Specialist Computer Centres PLC
Childrens Services,Children's Social Care,Support Service and Management Costs,Schools Catering,Repairs and Maintenance - Responsive - General,11/02/2019,5172523,462.00,Lambourne Refrigeration
Childrens Services,Children's Social Care,Children Looked After,S23-Resi-P&V/OLA-Child Home,Childrens Act Section 23 - Placement Fee,11/02/2019,5173176,"18,339.82",Castle Homes Care Ltd
Childrens Services,No Service Specified,No Division Specified,Capital-Minor Works (SC),Other External Fees - Architects Fees,11/02/2019,5174125,"15,445.00",Bloom Procurement Services Limited
Childrens Services,Children's Social Care,Children Looked After,S23 Fam Pl P&V-F/Care,Childrens Act Section 23 - Placement Fee,11/02/2019,5174673,"1,400.00",Qalb Fostering Agency Ltd
Childrens Services,Children's Social Care,Service Strategy,FSP Sect 17 - Team 4,Childrens Act Section 17 - Other Placements Bed & Breakfast,11/02/2019,5174986,"1,178.00",Apolonia Property Services (Exodus Housing)
Childrens Services,Education Services,Other Strategic Functions,High Needs Academies & Free Schs,Third Party Payments - Payments to Schools,11/02/2019,5175190,"2,877.25",Wapping High School
Childrens Services,Education Services,Other Strategic Functions,High Needs Academies & Free Schs,Third Party Payments - Payments to Schools,11/02/2019,5175192,"5,514.73",Wapping High School
Childrens Services,Children's Social Care,Family Support Services,IPST S17 NRPF,Childrens Act Section 17 - Non-Contact Taxi Costs,11/02/2019,5176056,352.00,Mile End Car Hire Limited
Childrens Services,Children's Social Care,Children Looked After,S23-Other-Semi-Ind. Unit,Childrens Act Section 23 - Placement Fee,11/02/2019,5176208,"4,380.00",Youth reality homes
Childrens Services,Children's Social Care,Children Looked After,LCS/Allowances-Accom,Leaving Care Financial Assistance - Supp Accom/Hous Rents,11/02/2019,5176210,968.00,Youth reality homes
Childrens Services,Children's Social Care,Children Looked After,LCS/Allowances-Accom,Leaving Care Financial Assistance - Supported Living,11/02/2019,5176210,"2,132.00",Youth reality homes
Childrens Services,Children's Social Care,Children Looked After,S23-Other-Supported Lodgings,Childrens Act Section 23 - Placement Fee,11/02/2019,5176211,"18,380.00",Youth reality homes
Childrens Services,Children's Social Care,Children Looked After,S23-Other-Semi-Ind. Unit,Childrens Act Section 23 - Placement Fee,11/02/2019,5176212,"6,621.36",Youth reality homes
Childrens Services,Children's Social Care,Children Looked After,S23-Other-Semi-Ind. Unit,Childrens Act Section 23 - Placement Fee,11/02/2019,5176213,"5,000.00",Youth reality homes
Childrens Services,Children's Social Care,Children Looked After,S23-Other-Semi-Ind. Unit,Childrens Act Section 23 - Placement Fee,11/02/2019,5176214,"5,180.00",Youth reality homes
Childrens Services,Education Services,Other Strategic Functions,High Needs Academies & Free Schs,Third Party Payments - Payments to Schools,11/02/2019,5177803,"8,631.75",Solebay Primary a Paradigm Academy
Childrens Services,Cultural and Related Services,Culture & Heritage,Event Fund,Third Party Payments - Voluntary Associations,11/02/2019,5178015,"1,800.00",Art Catcher
Childrens Services,Cultural and Related Services,Culture & Heritage,Event Fund,Third Party Payments - Voluntary Associations,11/02/2019,5178016,"1,200.00",EC LIGHTHOUSE LIMITED
Childrens Services,Children's Social Care,Support Service and Management Costs,Schools Catering,Kitchen Supplies - Crockery and Hardware,11/02/2019,5178197,659.87,Tri-Star Packaging Supplies LTD
Childrens Services,Children's Social Care,Support Service and Management Costs,Welfare Catering,Kitchen Supplies - Crockery and Hardware,11/02/2019,5178204,344.52,Tri-Star Packaging Supplies LTD
Childrens Services,Children's Social Care,Support Service and Management Costs,"Mulberry Caf�		",Kitchen Supplies - Crockery and Hardware,11/02/2019,5178206,276.22,Tri-Star Packaging Supplies LTD
Childrens Services,Education Services,Other Strategic Functions,Music Trading Account,Third Party Payments - Voluntary Associations,11/02/2019,5178336,"1,500.00",Conductive Music CIC
Childrens Services,Children's Social Care,Children's and Young People's Safety,FSP Sect 17 - Team 10,Childrens Act Section 17 - Expert Assessmt/Witness Costs,11/02/2019,5178558,585.00,Parsons Marshall Psychology
Childrens Services,Cultural and Related Services,Culture & Heritage,Arts-Park Events,Events & Exhibition Supplies,13/02/2019,5130142,"50,000.00",Walk The Plank Pyrotechnics
Childrens Services,Cultural and Related Services,Culture & Heritage,Arts-Park Events,Events & Exhibition Supplies,13/02/2019,5130654,"-50,000.00",Walk The Plank Pyrotechnics
Childrens Services,Cultural and Related Services,Culture & Heritage,Arts-Park Events,Events & Exhibition Supplies,13/02/2019,5140950,"8,000.00",Walk The Plank Pyrotechnics
Childrens Services,Cultural and Related Services,Culture & Heritage,Arts-Park Events,Events & Exhibition Supplies,13/02/2019,5143810,"-8,000.00",Walk The Plank Pyrotechnics
Childrens Services,Children's Social Care,Service Strategy,FSP Sect 17 - Team 9,Services - Professional Fees - Translation Fees,13/02/2019,5162927,701.00,Oncall Interpreters LTD
Childrens Services,Education Services,Other Strategic Functions,High Needs Other Boroughs,Third Party Payments - Payments to Schools,13/02/2019,5165816,"6,250.06",Stormont House School
Childrens Services,Education Services,Other Strategic Functions,High Needs Other Boroughs,Third Party Payments - Payments to Schools,13/02/2019,5165817,"6,250.05",Stormont House School
Childrens Services,Education Services,Other Strategic Functions,High Needs Other Boroughs,Third Party Payments - Payments to Schools,13/02/2019,5165818,"2,375.00",Stormont House School
Childrens Services,Education Services,Other Strategic Functions,Parents Advice Centre,Services - Professional Fees - Design Fees,13/02/2019,5167245,570.00,M&L Signs Ltd
Childrens Services,Children's Social Care,Service Strategy,CSC Childrens Resources M & A,Social Care - Others,13/02/2019,5167298,595.00,Curve Solutions
Childrens Services,Children's Social Care,Support Service and Management Costs,Schools Catering,Kitchen Supplies - Food and Beverages,13/02/2019,5167315,672.87,Thomas Ridley & Son Ltd
Childrens Services,Children's Social Care,Support Service and Management Costs,Schools Catering,Kitchen Supplies - Food and Beverages,13/02/2019,5167316,509.98,Thomas Ridley & Son Ltd
Childrens Services,Children's Social Care,Support Service and Management Costs,Schools Catering,Kitchen Supplies - Food and Beverages,13/02/2019,5167317,428.48,Thomas Ridley & Son Ltd
Childrens Services,Children's Social Care,Support Service and Management Costs,Schools Catering,Kitchen Supplies - Food and Beverages,13/02/2019,5167318,290.59,Thomas Ridley & Son Ltd
Childrens Services,Children's Social Care,Support Service and Management Costs,Schools Catering,Kitchen Supplies - Food and Beverages,13/02/2019,5167319,745.50,Thomas Ridley & Son Ltd
Childrens Services,Children's Social Care,Support Service and Management Costs,Schools Catering,Kitchen Supplies - Food and Beverages,13/02/2019,5167320,344.59,Thomas Ridley & Son Ltd
Childrens Services,Children's Social Care,Support Service and Management Costs,Schools Catering,Kitchen Supplies - Food and Beverages,13/02/2019,5167322,547.47,Thomas Ridley & Son Ltd
Childrens Services,Children's Social Care,Support Service and Management Costs,Schools Catering,Kitchen Supplies - Food and Beverages,13/02/2019,5167323,892.68,Thomas Ridley & Son Ltd
Childrens Services,Children's Social Care,Support Service and Management Costs,Schools Catering,Kitchen Supplies - Food and Beverages,13/02/2019,5167324,313.47,Thomas Ridley & Son Ltd
Childrens Services,Children's Social Care,Support Service and Management Costs,Schools Catering,Kitchen Supplies - Food and Beverages,13/02/2019,5167325,434.48,Thomas Ridley & Son Ltd
Childrens Services,Children's Social Care,Support Service and Management Costs,Schools Catering,Kitchen Supplies - Food and Beverages,13/02/2019,5167326,545.63,Thomas Ridley & Son Ltd
Childrens Services,Children's Social Care,Support Service and Management Costs,Schools Catering,Kitchen Supplies - Food and Beverages,13/02/2019,5167327,356.13,Thomas Ridley & Son Ltd
Childrens Services,Children's Social Care,Support Service and Management Costs,Schools Catering,Kitchen Supplies - Food and Beverages,13/02/2019,5167328,587.79,Thomas Ridley & Son Ltd
Childrens Services,Children's Social Care,Support Service and Management Costs,Schools Catering,Kitchen Supplies - Food and Beverages,13/02/2019,5167330,313.40,Thomas Ridley & Son Ltd
Childrens Services,Children's Social Care,Support Service and Management Costs,Schools Catering,Kitchen Supplies - Food and Beverages,13/02/2019,5167331,"1,426.38",Thomas Ridley & Son Ltd
Childrens Services,Children's Social Care,Support Service and Management Costs,Schools Catering,Kitchen Supplies - Food and Beverages,13/02/2019,5167333,712.70,Thomas Ridley & Son Ltd
Childrens Services,Children's Social Care,Support Service and Management Costs,Schools Catering,Kitchen Supplies - Food and Beverages,13/02/2019,5167335,917.08,Thomas Ridley & Son Ltd
Childrens Services,Children's Social Care,Support Service and Management Costs,Schools Catering,Kitchen Supplies - Food and Beverages,13/02/2019,5167336,296.29,Thomas Ridley & Son Ltd
Childrens Services,Children's Social Care,Support Service and Management Costs,Sch. Meals A/c - Central Production Unit,Kitchen Supplies - Food and Beverages,13/02/2019,5167338,"2,339.86",Thomas Ridley & Son Ltd
Childrens Services,Children's Social Care,Support Service and Management Costs,Schools Catering,Kitchen Supplies - Food and Beverages,13/02/2019,5167339,565.28,Thomas Ridley & Son Ltd
Childrens Services,Children's Social Care,Support Service and Management Costs,Schools Catering,Kitchen Supplies - Food and Beverages,13/02/2019,5167342,360.67,Thomas Ridley & Son Ltd
Childrens Services,Children's Social Care,Support Service and Management Costs,Schools Catering,Kitchen Supplies - Food and Beverages,13/02/2019,5167345,313.86,Thomas Ridley & Son Ltd
Childrens Services,Children's Social Care,Support Service and Management Costs,Schools Catering,Kitchen Supplies - Food and Beverages,13/02/2019,5167349,661.49,Thomas Ridley & Son Ltd
Childrens Services,Children's Social Care,Support Service and Management Costs,Schools Catering,Kitchen Supplies - Food and Beverages,13/02/2019,5167351,343.74,Thomas Ridley & Son Ltd
Childrens Services,Children's Social Care,Support Service and Management Costs,Schools Catering,Kitchen Supplies - Food and Beverages,13/02/2019,5167352,443.90,Thomas Ridley & Son Ltd
Childrens Services,Children's Social Care,Support Service and Management Costs,Schools Catering,Kitchen Supplies - Food and Beverages,13/02/2019,5167353,594.36,Thomas Ridley & Son Ltd
Childrens Services,Children's Social Care,Support Service and Management Costs,Schools Catering,Kitchen Supplies - Food and Beverages,13/02/2019,5167354,"1,044.64",Thomas Ridley & Son Ltd
Childrens Services,Children's Social Care,Support Service and Management Costs,Schools Catering,Kitchen Supplies - Food and Beverages,13/02/2019,5167356,435.51,Thomas Ridley & Son Ltd
Childrens Services,Cultural and Related Services,Open Spaces,Parks & Open Spaces Man&Admin,Repairs and Maintenance - Responsive - Buildings,13/02/2019,5168171,810.00,JC Coster (Metalworks) Ltd
Childrens Services,Children's Social Care,Children Looked After,Virtual School PPG,Third Party Payments - Payments to Schools,13/02/2019,5168195,720.00,Doncaster Deaf Trust
Childrens Services,Education Services,Other Strategic Functions,Central Pupil Database Project,Services - Professional Fees - Consultants Fees,13/02/2019,5168197,"2,100.00",Serverlec Synergy Ltd
Childrens Services,Children's Social Care,Children Looked After,S23-Other-Mother & Baby Unit,Childrens Act Section 23 - Placement Fee,13/02/2019,5168236,"3,250.00",Care 2 Share LTD
Childrens Services,Children's Social Care,Children Looked After,S23-Other-Mother & Baby Unit,Childrens Act Section 23 - Placement Fee,13/02/2019,5168238,"3,250.00",Care 2 Share LTD
Childrens Services,Children's Social Care,Support Service and Management Costs,Schools Catering,Kitchen Supplies - Food and Beverages,13/02/2019,5168280,444.22,Thomas Ridley & Son Ltd
Childrens Services,Children's Social Care,Support Service and Management Costs,Schools Catering,Kitchen Supplies - Food and Beverages,13/02/2019,5168282,773.24,Thomas Ridley & Son Ltd
Childrens Services,Children's Social Care,Support Service and Management Costs,Schools Catering,Kitchen Supplies - Food and Beverages,13/02/2019,5168283,828.24,Thomas Ridley & Son Ltd
Childrens Services,Children's Social Care,Support Service and Management Costs,Schools Catering,Kitchen Supplies - Food and Beverages,13/02/2019,5168284,420.56,Thomas Ridley & Son Ltd
Childrens Services,Children's Social Care,Support Service and Management Costs,Schools Catering,Kitchen Supplies - Food and Beverages,13/02/2019,5168286,257.11,Thomas Ridley & Son Ltd
Childrens Services,Children's Social Care,Support Service and Management Costs,Schools Catering,Kitchen Supplies - Food and Beverages,13/02/2019,5168287,493.36,Thomas Ridley & Son Ltd
Childrens Services,Children's Social Care,Support Service and Management Costs,Schools Catering,Kitchen Supplies - Food and Beverages,13/02/2019,5168288,305.95,Thomas Ridley & Son Ltd
Childrens Services,Children's Social Care,Support Service and Management Costs,Schools Catering,Kitchen Supplies - Food and Beverages,13/02/2019,5168289,611.29,Thomas Ridley & Son Ltd
Childrens Services,Children's Social Care,Support Service and Management Costs,Schools Catering,Kitchen Supplies - Food and Beverages,13/02/2019,5168290,388.11,Thomas Ridley & Son Ltd
Childrens Services,Children's Social Care,Support Service and Management Costs,Schools Catering,Kitchen Supplies - Food and Beverages,13/02/2019,5168291,398.63,Thomas Ridley & Son Ltd
Childrens Services,Children's Social Care,Support Service and Management Costs,Swanlea,Kitchen Supplies - Food and Beverages,13/02/2019,5168292,654.01,Thomas Ridley & Son Ltd
Childrens Services,Children's Social Care,Support Service and Management Costs,Schools Catering,Kitchen Supplies - Food and Beverages,13/02/2019,5168293,456.15,Thomas Ridley & Son Ltd
Childrens Services,Children's Social Care,Support Service and Management Costs,Schools Catering,Kitchen Supplies - Food and Beverages,13/02/2019,5168294,334.86,Thomas Ridley & Son Ltd
Childrens Services,Education Services,Other Strategic Functions,High Needs Other Boroughs,Third Party Payments - Payments to Schools,13/02/2019,5168530,"2,806.66",Seven Kings High School
Childrens Services,Education Services,Other Strategic Functions,High Needs Other Boroughs,Third Party Payments - Payments to Schools,13/02/2019,5168585,"6,312.50",Belmont Park Special School
Childrens Services,Children's Social Care,Service Strategy,CSC Childrens Resources M & A,Childrens Act Section 23 - Placement Fee,13/02/2019,5168703,525.00,Brighter Future Solutions
Childrens Services,Children's Social Care,Support Service and Management Costs,Schools Catering,Kitchen Supplies - Food and Beverages,13/02/2019,5168967,258.11,William White Meats Ltd
Childrens Services,Children's Social Care,Support Service and Management Costs,Schools Catering,Kitchen Supplies - Food and Beverages,13/02/2019,5168974,258.87,William White Meats Ltd
Childrens Services,Children's Social Care,Support Service and Management Costs,Schools Catering,Kitchen Supplies - Food and Beverages,13/02/2019,5168989,326.54,William White Meats Ltd
Childrens Services,Children's Social Care,Support Service and Management Costs,Schools Catering,Kitchen Supplies - Food and Beverages,13/02/2019,5168994,396.50,William White Meats Ltd
Childrens Services,Children's Social Care,Support Service and Management Costs,Swanlea,Kitchen Supplies - Food and Beverages,13/02/2019,5168998,620.12,William White Meats Ltd
Childrens Services,Children's Social Care,Support Service and Management Costs,Sch. Meals A/c - Central Production Unit,Kitchen Supplies - Food and Beverages,13/02/2019,5168999,873.89,William White Meats Ltd
Childrens Services,Children's Social Care,Support Service and Management Costs,Schools Catering,Kitchen Supplies - Food and Beverages,13/02/2019,5169001,433.50,William White Meats Ltd
Childrens Services,Education Services,Early Years,Around Poplar CC,Educational/Training Supplies - Arts & Crafts,13/02/2019,5169078,284.50,Eduzone Ltd
Childrens Services,Children's Social Care,Children Looked After,S23 Fam Pl P&V-F/Care,Childrens Act Section 23 - Placement Fee,13/02/2019,5169094,"3,145.88",Children First Fostering Agency LTD
Childrens Services,Children's Social Care,Children Looked After,Staying Put,Childrens Act Section 23 - Placement Fee,13/02/2019,5169095,"1,811.33",Children First Fostering Agency LTD
Childrens Services,Children's Social Care,Children Looked After,S23 Fam Pl P&V-F/Care,Childrens Act Section 23 - Placement Fee,13/02/2019,5169096,"3,173.78",Children First Fostering Agency LTD
Childrens Services,Education Services,Other Strategic Functions,Special Education Needs GF,Training Expenses - Staff External Training (UK Based),13/02/2019,5170211,"2,650.00",University of East London
Childrens Services,Education Services,Early Years,One O'clock Clubs,Events & Exhibition Supplies,13/02/2019,5170322,600.00,Kois Miah Photography
Childrens Services,Education Services,Other Strategic Functions,High Needs Academies & Free Schs,Third Party Payments - Payments to Schools,13/02/2019,5170324,"14,664.00",Parkwood Hall Co-operative Academy
Childrens Services,Education Services,Other Strategic Functions,High Needs Academies & Free Schs,Third Party Payments - Payments to Schools,13/02/2019,5170325,"6,000.00",Parkwood Hall Co-operative Academy
Childrens Services,Education Services,Early Years,Marner. CC,Educational/Training Supplies - Curriculum Visits/Activities,13/02/2019,5170432,285.00,Living Eggs Herts
Childrens Services,Children's Social Care,Children Looked After,Virtual School PPG,Third Party Payments - Payments to Schools,13/02/2019,5171241,700.00,The Appleton School Academy Trust
Childrens Services,Children's Social Care,Children Looked After,Enrichment Projects,Catering - Hospitality,13/02/2019,5171969,"1,500.00",University of East London
Childrens Services,Children's Social Care,Children Looked After,Virtual School PPG,Agency Staff - Associations,13/02/2019,5174714,"1,009.80",Academics ltd
Childrens Services,Children's Social Care,Children Looked After,Virtual School PPG,Agency Staff - Associations,13/02/2019,5174716,"-1,009.80",Academics ltd
Childrens Services,Children's Social Care,Children Looked After,Virtual School PPG,Agency Staff - Associations,13/02/2019,5174717,"-1,009.80",Academics ltd
Childrens Services,Children's Social Care,Children Looked After,Virtual School PPG,Agency Staff - Associations,13/02/2019,5174718,"1,009.80",Academics ltd
Childrens Services,Children's Social Care,Children Looked After,Virtual School PPG,Agency Staff - Associations,13/02/2019,5174720,757.35,Academics ltd
Childrens Services,Children's Social Care,Children Looked After,Virtual School PPG,Agency Staff - Associations,13/02/2019,5174721,"1,262.25",Academics ltd
Childrens Services,Children's Social Care,Children Looked After,Virtual School PPG,Agency Staff - Associations,13/02/2019,5174723,"1,009.80",Academics ltd
Childrens Services,Children's Social Care,Children Looked After,Virtual School PPG,Agency Staff - Associations,13/02/2019,5174727,504.90,Academics ltd
Childrens Services,Children's Social Care,Children Looked After,Virtual School PPG,Agency Staff - Associations,13/02/2019,5174728,"1,009.80",Academics ltd
Childrens Services,Children's Social Care,Children Looked After,Virtual School PPG,Agency Staff - Associations,13/02/2019,5174729,"1,262.25",Academics ltd
Childrens Services,Children's Social Care,Children Looked After,Virtual School PPG,Agency Staff - Associations,13/02/2019,5174730,252.45,Academics ltd
Childrens Services,Children's Social Care,Children Looked After,Virtual School PPG,Agency Staff - Associations,13/02/2019,5174731,757.35,Academics ltd
Childrens Services,Children's Social Care,Children Looked After,Virtual School PPG,Agency Staff - Associations,13/02/2019,5174732,"1,009.80",Academics ltd
Childrens Services,Children's Social Care,Children Looked After,Virtual School PPG,Agency Staff - Associations,13/02/2019,5174733,"1,262.25",Academics ltd
Childrens Services,Children's Social Care,Children Looked After,Virtual School PPG,Agency Staff - Associations,13/02/2019,5174734,757.35,Academics ltd
Childrens Services,Education Services,Secondary Schools,PFI Hldg Account-Grouped Schoo,Payments to Private Contractors - Other Contractors,13/02/2019,5175020,"46,304.57",Tower Hamlets Schools LTD
Childrens Services,Children's Social Care,Children Looked After,S23-Other-Semi-Ind. Unit,Childrens Act Section 23 - Placement Fee,13/02/2019,5176209,"4,400.00",Youth reality homes
Childrens Services,Children's Social Care,Support Service and Management Costs,Schools Catering,Kitchen Supplies - Catering Equipment,13/02/2019,5177000,420.00,W V Howe LTD
Childrens Services,Education Services,Other Strategic Functions,Alternative Provision,Third Party Payments - Contingencies,13/02/2019,5177831,"14,140.00",Tower Hamlets Education Parnership
Childrens Services,Education Services,Other Strategic Functions,Alternative Provision,Third Party Payments - Contingencies,13/02/2019,5177832,"14,140.00",Tower Hamlets Education Parnership
Childrens Services,Children's Social Care,Children Looked After,S23 Fam Pl P&V-F/Care,Childrens Act Section 23 - Placement Fee,13/02/2019,5177843,"3,051.33",CAPSTONE FOSTER CARE (SE) LTD
Childrens Services,Children's Social Care,Children Looked After,S23 Fam Pl P&V-F/Care,Childrens Act Section 23 - Placement Fee,13/02/2019,5177844,"3,051.33",CAPSTONE FOSTER CARE (SE) LTD
Childrens Services,Education Services,Other Strategic Functions,Alternative Provision,Third Party Payments - Payments to Schools,13/02/2019,5178047,"3,000.00",LBTH SWANLEA SCHOOL
Childrens Services,Education Services,Other Strategic Functions,Alternative Provision,Third Party Payments - Payments to Schools,13/02/2019,5178050,"3,000.00",Oakland School
Childrens Services,Education Services,Other Strategic Functions,Alternative Provision,Third Party Payments - Payments to Schools,13/02/2019,5178052,"3,000.00",LBTH SWANLEA SCHOOL
Childrens Services,Education Services,Other Strategic Functions,SEN External Travel,Non Staff Transport Costs - Reimbursement,13/02/2019,5178717,"179,966.00",Lindel Services LTD - T/A Fox Transport
Childrens Services,Children's Social Care,Services for young people,LAPS 1 - 8,Educational/Training Supplies - Curriculum Visits/Activities,13/02/2019,5178761,"7,566.00",CMC Pensarn Harbour
Childrens Services,Children's Social Care,Family Support Services,IPST S17 NRPF,Childrens Act Section 17 - Other Placements Bed & Breakfast,13/02/2019,5178769,"4,250.00",Finefair Management
Childrens Services,Children's Social Care,Family Support Services,IPST S17 NRPF,Childrens Act Section 17 - Other Placements Bed & Breakfast,13/02/2019,5178770,"2,635.00",Finefair Management
Childrens Services,Children's Social Care,Family Support Services,IPST S17 NRPF,Childrens Act Section 17 - Other Placements Bed & Breakfast,13/02/2019,5178771,"1,705.00",Finefair Management
Childrens Services,Children's Social Care,Family Support Services,IPST S17 NRPF,Childrens Act Section 17 - Other Placements Bed & Breakfast,13/02/2019,5178772,"1,767.00",Finefair Management
Childrens Services,Children's Social Care,Family Support Services,IPST S17 NRPF,Childrens Act Section 17 - Other Placements Bed & Breakfast,13/02/2019,5178773,"2,480.00",Finefair Management
Childrens Services,Children's Social Care,Family Support Services,IPST S17 NRPF,Childrens Act Section 17 - Other Placements Bed & Breakfast,13/02/2019,5178774,"1,240.00",Finefair Management
Childrens Services,Children's Social Care,Family Support Services,IPST S17 NRPF,Childrens Act Section 17 - Other Placements Bed & Breakfast,13/02/2019,5178775,"1,550.00",Finefair Management
Childrens Services,Children's Social Care,Family Support Services,IPST S17 NRPF,Childrens Act Section 17 - Other Placements Bed & Breakfast,13/02/2019,5178776,"1,550.00",Finefair Management
Childrens Services,Children's Social Care,Family Support Services,IPST S17 NRPF,Childrens Act Section 17 - Other Placements Bed & Breakfast,13/02/2019,5178777,"1,550.00",Finefair Management
Childrens Services,Children's Social Care,Service Strategy,FSP Sect 17 - Team 4,Childrens Act Section 17 - Other Placements Bed & Breakfast,13/02/2019,5178778,"2,635.00",Finefair Management
Childrens Services,Education Services,Early Years,Mile End CC,Stationery,13/02/2019,5178834,-653.32,Office Depot (Catalogue)
Childrens Services,Children's Social Care,Children Looked After,S23 Fam Pl In-Hse-S/Term F/C,Childrens Act Section 23 - Expert Assessmt/Witness Costs,13/02/2019,5178861,587.25,EXPERT IN MIND LIMITED
Childrens Services,Children's Social Care,Services for young people,Youth Service Management,Educational/Training Supplies - Curriculum Visits/Activities,13/02/2019,5178895,395.00,Asdan Limited
Childrens Services,Education Services,Early Years,Mile End CC,Medical Requisites,13/02/2019,5178936,669.99,Safelincs Ltd
Childrens Services,Children's Social Care,Family Support Services,CNN Pool: Joint Family Support,Social Care - Homecare,13/02/2019,5178943,816.75,QALB Centre Short Break Services
Childrens Services,Children's Social Care,Children Looked After,S23-Resi-P&V/OLA-Child Home,Childrens Act Section 23 - Placement Fee,13/02/2019,5178983,"11,957.01",Janailah Ltd
Childrens Services,Children's Social Care,Children Looked After,S23 Fam Pl P&V-F/Care,Childrens Act Section 23 - Placement Fee,13/02/2019,5179003,784.00,Swiis Foster Care Limited
Childrens Services,Children's Social Care,Support Service and Management Costs,Schools Catering,Computing - Purchase of Software,13/02/2019,5179010,"2,200.00",Nutriplanner Limited
Childrens Services,Children's Social Care,Children Looked After,S23 Fam Pl P&V-F/Care,Childrens Act Section 23 - Placement Fee,13/02/2019,5179029,"3,764.33",CAPSTONE FOSTER CARE (SE) LTD
Childrens Services,Children's Social Care,Children Looked After,Staying Put,Childrens Act Section 23 - Placement Fee,13/02/2019,5179030,"1,793.66",CAPSTONE FOSTER CARE (SE) LTD
Childrens Services,Children's Social Care,Support Service and Management Costs,Schools Catering,Kitchen Supplies - Food and Beverages,13/02/2019,5179144,-350.28,Thomas Ridley & Son Ltd
Childrens Services,Education Services,Other Strategic Functions,Tower Hamlets Education Partnership,Training Expenses - Staff External Training (UK Based),14/02/2019,5175498,"145,600.00",Tower Hamlets Education Parnership
Childrens Services,Education Services,Other Strategic Functions,Tower Hamlets Education Partnership,Training Expenses - Staff External Training (UK Based),14/02/2019,5175499,"300,000.00",Tower Hamlets Education Parnership
Childrens Services,Education Services,Other Strategic Functions,Tower Hamlets Education Partnership,Training Expenses - Staff External Training (UK Based),14/02/2019,5175500,"285,100.00",Tower Hamlets Education Parnership
Childrens Services,Children's Social Care,Services for young people,Youth Service Management,Third Party Payments - Voluntary Associations,15/02/2019,5168471,"20,000.00",Poplar HARCA LTD
Childrens Services,Children's Social Care,Services for young people,Youth Service Management,Third Party Payments - Voluntary Associations,15/02/2019,5168472,"20,000.00",Poplar HARCA LTD
Childrens Services,Children's Social Care,Services for young people,Youth Service Management,Third Party Payments - Voluntary Associations,15/02/2019,5168473,"20,000.00",Poplar HARCA LTD
Childrens Services,Children's Social Care,Services for young people,Youth Service Management,Third Party Payments - Voluntary Associations,15/02/2019,5168474,"20,000.00",Poplar HARCA LTD
Childrens Services,Children's Social Care,Services for young people,Youth Service Management,Third Party Payments - Voluntary Associations,15/02/2019,5168475,"20,000.00",Poplar HARCA LTD
Childrens Services,Children's Social Care,Services for young people,Youth Service Management,Third Party Payments - Voluntary Associations,15/02/2019,5168476,"20,000.00",Poplar HARCA LTD
Childrens Services,No Service Specified,No Division Specified,Capital-Minor Works (SC),Building Works - Main Works,15/02/2019,5168477,"6,039.86",Poplar HARCA LTD
Childrens Services,Education Services,Other Strategic Functions,High Needs Academies & Free Schs,Third Party Payments - Payments to Schools,15/02/2019,5168495,"5,250.00",William Morris School
Childrens Services,Education Services,Other Strategic Functions,Special Education Needs DSG,Third Party Payments - Payments to Schools,15/02/2019,5168620,"9,200.00",CPotential Trust Woodstar School
Childrens Services,Education Services,Early Years,Mile End CC,Repairs and Maintenance - Responsive - Electrical,15/02/2019,5168664,595.00,surelock security systems ltd
Childrens Services,Children's Social Care,Support Service and Management Costs,Schools Catering,Kitchen Supplies - Food and Beverages,15/02/2019,5168738,492.21,Thomas Ridley & Son Ltd
Childrens Services,Children's Social Care,Support Service and Management Costs,Schools Catering,Kitchen Supplies - Food and Beverages,15/02/2019,5168739,520.21,Thomas Ridley & Son Ltd
Childrens Services,Children's Social Care,Support Service and Management Costs,Schools Catering,Kitchen Supplies - Food and Beverages,15/02/2019,5168743,718.34,Thomas Ridley & Son Ltd
Childrens Services,Children's Social Care,Support Service and Management Costs,Schools Catering,Kitchen Supplies - Food and Beverages,15/02/2019,5168745,390.34,Thomas Ridley & Son Ltd
Childrens Services,Children's Social Care,Support Service and Management Costs,Schools Catering,Kitchen Supplies - Food and Beverages,15/02/2019,5168746,422.09,Thomas Ridley & Son Ltd
Childrens Services,Children's Social Care,Support Service and Management Costs,Schools Catering,Kitchen Supplies - Food and Beverages,15/02/2019,5168747,387.33,Thomas Ridley & Son Ltd
Childrens Services,Children's Social Care,Support Service and Management Costs,Schools Catering,Kitchen Supplies - Food and Beverages,15/02/2019,5168748,683.99,Thomas Ridley & Son Ltd
Childrens Services,Children's Social Care,Support Service and Management Costs,Schools Catering,Kitchen Supplies - Food and Beverages,15/02/2019,5168749,584.74,Thomas Ridley & Son Ltd
Childrens Services,Children's Social Care,Support Service and Management Costs,Schools Catering,Kitchen Supplies - Food and Beverages,15/02/2019,5168750,364.10,Thomas Ridley & Son Ltd
Childrens Services,Children's Social Care,Support Service and Management Costs,Schools Catering,Kitchen Supplies - Food and Beverages,15/02/2019,5168751,548.47,Thomas Ridley & Son Ltd
Childrens Services,Children's Social Care,Support Service and Management Costs,Schools Catering,Kitchen Supplies - Food and Beverages,15/02/2019,5168752,292.14,Thomas Ridley & Son Ltd
Childrens Services,Children's Social Care,Support Service and Management Costs,Schools Catering,Kitchen Supplies - Food and Beverages,15/02/2019,5168753,348.09,Thomas Ridley & Son Ltd
Childrens Services,Children's Social Care,Support Service and Management Costs,Schools Catering,Kitchen Supplies - Food and Beverages,15/02/2019,5168754,663.33,Thomas Ridley & Son Ltd
Childrens Services,Children's Social Care,Support Service and Management Costs,Schools Catering,Kitchen Supplies - Food and Beverages,15/02/2019,5168756,357.69,Thomas Ridley & Son Ltd
Childrens Services,Children's Social Care,Support Service and Management Costs,Schools Catering,Kitchen Supplies - Food and Beverages,15/02/2019,5168757,288.24,Thomas Ridley & Son Ltd
Childrens Services,Children's Social Care,Support Service and Management Costs,Schools Catering,Kitchen Supplies - Food and Beverages,15/02/2019,5168758,324.62,Thomas Ridley & Son Ltd
Childrens Services,Children's Social Care,Support Service and Management Costs,Welfare Catering,Kitchen Supplies - Food and Beverages,15/02/2019,5168759,361.60,Thomas Ridley & Son Ltd
Childrens Services,Children's Social Care,Support Service and Management Costs,Sch. Meals A/c - Central Production Unit,Kitchen Supplies - Food and Beverages,15/02/2019,5168760,"1,635.01",Thomas Ridley & Son Ltd
Childrens Services,Children's Social Care,Support Service and Management Costs,Toby Lane Function,Kitchen Supplies - Food and Beverages,15/02/2019,5168762,292.77,Thomas Ridley & Son Ltd
Childrens Services,Children's Social Care,Support Service and Management Costs,Schools Catering,Kitchen Supplies - Food and Beverages,15/02/2019,5168763,611.53,Thomas Ridley & Son Ltd
Childrens Services,Children's Social Care,Support Service and Management Costs,Schools Catering,Kitchen Supplies - Food and Beverages,15/02/2019,5168764,856.55,Thomas Ridley & Son Ltd
Childrens Services,Children's Social Care,Support Service and Management Costs,Schools Catering,Kitchen Supplies - Food and Beverages,15/02/2019,5168765,266.58,Thomas Ridley & Son Ltd
Childrens Services,Children's Social Care,Support Service and Management Costs,Schools Catering,Kitchen Supplies - Food and Beverages,15/02/2019,5168766,764.20,Thomas Ridley & Son Ltd
Childrens Services,Children's Social Care,Support Service and Management Costs,Schools Catering,Kitchen Supplies - Food and Beverages,15/02/2019,5168768,359.89,Thomas Ridley & Son Ltd
Childrens Services,Children's Social Care,Support Service and Management Costs,Schools Catering,Kitchen Supplies - Food and Beverages,15/02/2019,5168770,285.28,Thomas Ridley & Son Ltd
Childrens Services,Children's Social Care,Support Service and Management Costs,Schools Catering,Kitchen Supplies - Food and Beverages,15/02/2019,5168772,523.25,Thomas Ridley & Son Ltd
Childrens Services,Children's Social Care,Support Service and Management Costs,Schools Catering,Kitchen Supplies - Food and Beverages,15/02/2019,5168774,553.06,Thomas Ridley & Son Ltd
Childrens Services,Children's Social Care,Support Service and Management Costs,Schools Catering,Kitchen Supplies - Food and Beverages,15/02/2019,5168776,490.86,Thomas Ridley & Son Ltd
Childrens Services,Children's Social Care,Support Service and Management Costs,Schools Catering,Kitchen Supplies - Food and Beverages,15/02/2019,5168777,901.87,Thomas Ridley & Son Ltd
Childrens Services,Children's Social Care,Support Service and Management Costs,Schools Catering,Kitchen Supplies - Food and Beverages,15/02/2019,5168779,390.61,Thomas Ridley & Son Ltd
Childrens Services,Children's Social Care,Support Service and Management Costs,Schools Catering,Kitchen Supplies - Food and Beverages,15/02/2019,5168781,298.48,Thomas Ridley & Son Ltd
Childrens Services,Children's Social Care,Support Service and Management Costs,Schools Catering,Kitchen Supplies - Food and Beverages,15/02/2019,5168782,930.93,Thomas Ridley & Son Ltd
Childrens Services,Children's Social Care,Support Service and Management Costs,Schools Catering,Kitchen Supplies - Food and Beverages,15/02/2019,5168783,439.08,Thomas Ridley & Son Ltd
Childrens Services,Children's Social Care,Support Service and Management Costs,Schools Catering,Kitchen Supplies - Food and Beverages,15/02/2019,5168784,411.94,Thomas Ridley & Son Ltd
Childrens Services,Children's Social Care,Support Service and Management Costs,Schools Catering,Kitchen Supplies - Food and Beverages,15/02/2019,5168785,549.23,Thomas Ridley & Son Ltd
Childrens Services,Children's Social Care,Support Service and Management Costs,Schools Catering,Kitchen Supplies - Food and Beverages,15/02/2019,5168786,512.99,Thomas Ridley & Son Ltd
Childrens Services,Children's Social Care,Support Service and Management Costs,Schools Catering,Kitchen Supplies - Food and Beverages,15/02/2019,5168788,372.05,Thomas Ridley & Son Ltd
Childrens Services,Children's Social Care,Support Service and Management Costs,Schools Catering,Kitchen Supplies - Food and Beverages,15/02/2019,5168789,278.51,Thomas Ridley & Son Ltd
Childrens Services,Children's Social Care,Support Service and Management Costs,Schools Catering,Kitchen Supplies - Food and Beverages,15/02/2019,5168790,297.96,Thomas Ridley & Son Ltd
Childrens Services,Children's Social Care,Support Service and Management Costs,Schools Catering,Kitchen Supplies - Food and Beverages,15/02/2019,5168791,463.04,Thomas Ridley & Son Ltd
Childrens Services,Children's Social Care,Support Service and Management Costs,Swanlea,Kitchen Supplies - Food and Beverages,15/02/2019,5168792,810.20,Thomas Ridley & Son Ltd
Childrens Services,Children's Social Care,Support Service and Management Costs,Schools Catering,Kitchen Supplies - Food and Beverages,15/02/2019,5168793,379.64,Thomas Ridley & Son Ltd
Childrens Services,Children's Social Care,Support Service and Management Costs,Schools Catering,Kitchen Supplies - Food and Beverages,15/02/2019,5168794,394.16,Thomas Ridley & Son Ltd
Childrens Services,Children's Social Care,Support Service and Management Costs,Schools Catering,Kitchen Supplies - Food and Beverages,15/02/2019,5168795,485.07,Thomas Ridley & Son Ltd
Childrens Services,Children's Social Care,Support Service and Management Costs,Schools Catering,Kitchen Supplies - Food and Beverages,15/02/2019,5168798,354.86,Thomas Ridley & Son Ltd
Childrens Services,Children's Social Care,Support Service and Management Costs,Schools Catering,Kitchen Supplies - Food and Beverages,15/02/2019,5168799,971.09,Thomas Ridley & Son Ltd
Childrens Services,Children's Social Care,Support Service and Management Costs,Schools Catering,Kitchen Supplies - Food and Beverages,15/02/2019,5168800,587.45,Thomas Ridley & Son Ltd
Childrens Services,Children's Social Care,Support Service and Management Costs,"Mulberry Caf�		",Kitchen Supplies - Food and Beverages,15/02/2019,5168801,672.52,Thomas Ridley & Son Ltd
Childrens Services,Children's Social Care,Support Service and Management Costs,Schools Catering,Kitchen Supplies - Food and Beverages,15/02/2019,5168802,587.42,Thomas Ridley & Son Ltd
Childrens Services,Children's Social Care,Support Service and Management Costs,Schools Catering,Kitchen Supplies - Food and Beverages,15/02/2019,5168804,269.25,Thomas Ridley & Son Ltd
Childrens Services,Children's Social Care,Support Service and Management Costs,Schools Catering,Kitchen Supplies - Food and Beverages,15/02/2019,5168805,371.13,Thomas Ridley & Son Ltd
Childrens Services,Children's Social Care,Support Service and Management Costs,Schools Catering,Kitchen Supplies - Food and Beverages,15/02/2019,5168806,462.81,Thomas Ridley & Son Ltd
Childrens Services,Children's Social Care,Support Service and Management Costs,Schools Catering,Kitchen Supplies - Food and Beverages,15/02/2019,5168807,509.29,Thomas Ridley & Son Ltd
Childrens Services,Children's Social Care,Support Service and Management Costs,Schools Catering,Kitchen Supplies - Food and Beverages,15/02/2019,5168808,318.18,Thomas Ridley & Son Ltd
Childrens Services,Children's Social Care,Support Service and Management Costs,Schools Catering,Kitchen Supplies - Food and Beverages,15/02/2019,5168809,917.10,Thomas Ridley & Son Ltd
Childrens Services,Children's Social Care,Support Service and Management Costs,Schools Catering,Kitchen Supplies - Food and Beverages,15/02/2019,5168810,754.84,Thomas Ridley & Son Ltd
Childrens Services,Children's Social Care,Support Service and Management Costs,Schools Catering,Kitchen Supplies - Food and Beverages,15/02/2019,5168811,482.93,Thomas Ridley & Son Ltd
Childrens Services,Children's Social Care,Support Service and Management Costs,Schools Catering,Kitchen Supplies - Food and Beverages,15/02/2019,5168813,523.57,Thomas Ridley & Son Ltd
Childrens Services,Children's Social Care,Support Service and Management Costs,Schools Catering,Kitchen Supplies - Food and Beverages,15/02/2019,5168814,392.55,Thomas Ridley & Son Ltd
Childrens Services,Children's Social Care,Support Service and Management Costs,Schools Catering,Kitchen Supplies - Food and Beverages,15/02/2019,5168817,432.73,Thomas Ridley & Son Ltd
Childrens Services,Children's Social Care,Support Service and Management Costs,Schools Catering,Kitchen Supplies - Food and Beverages,15/02/2019,5168917,305.00,William White Meats Ltd
Childrens Services,Children's Social Care,Support Service and Management Costs,Schools Catering,Kitchen Supplies - Food and Beverages,15/02/2019,5168970,290.60,William White Meats Ltd
Childrens Services,Children's Social Care,Support Service and Management Costs,Schools Catering,Kitchen Supplies - Food and Beverages,15/02/2019,5168975,273.97,William White Meats Ltd
Childrens Services,Children's Social Care,Support Service and Management Costs,Welfare Catering,Kitchen Supplies - Food and Beverages,15/02/2019,5168977,369.05,William White Meats Ltd
Childrens Services,Children's Social Care,Support Service and Management Costs,Schools Catering,Kitchen Supplies - Food and Beverages,15/02/2019,5168982,275.18,William White Meats Ltd
Childrens Services,Children's Social Care,Support Service and Management Costs,Schools Catering,Kitchen Supplies - Food and Beverages,15/02/2019,5168986,311.16,William White Meats Ltd
Childrens Services,Children's Social Care,Support Service and Management Costs,Schools Catering,Kitchen Supplies - Food and Beverages,15/02/2019,5168988,274.50,William White Meats Ltd
Childrens Services,Children's Social Care,Support Service and Management Costs,Schools Catering,Kitchen Supplies - Food and Beverages,15/02/2019,5168990,366.00,William White Meats Ltd
Childrens Services,Children's Social Care,Support Service and Management Costs,Schools Catering,Kitchen Supplies - Food and Beverages,15/02/2019,5168991,366.00,William White Meats Ltd
Childrens Services,Children's Social Care,Support Service and Management Costs,Schools Catering,Kitchen Supplies - Food and Beverages,15/02/2019,5168996,379.80,William White Meats Ltd
Childrens Services,Children's Social Care,Support Service and Management Costs,Schools Catering,Kitchen Supplies - Food and Beverages,15/02/2019,5168997,388.47,William White Meats Ltd
Childrens Services,Children's Social Care,Support Service and Management Costs,Sch. Meals A/c - Central Production Unit,Kitchen Supplies - Food and Beverages,15/02/2019,5169000,959.25,William White Meats Ltd
Childrens Services,Children's Social Care,Support Service and Management Costs,Schools Catering,Kitchen Supplies - Food and Beverages,15/02/2019,5169002,469.82,William White Meats Ltd
Childrens Services,Children's Social Care,Support Service and Management Costs,Schools Catering,Kitchen Supplies - Food and Beverages,15/02/2019,5169007,645.08,William White Meats Ltd
Childrens Services,Children's Social Care,Support Service and Management Costs,Schools Catering,Kitchen Supplies - Food and Beverages,15/02/2019,5169009,666.36,William White Meats Ltd
Childrens Services,Children's Social Care,Support Service and Management Costs,Schools Catering,Kitchen Supplies - Food and Beverages,15/02/2019,5169020,254.72,William White Meats Ltd
Childrens Services,Children's Social Care,Support Service and Management Costs,Schools Catering,Kitchen Supplies - Food and Beverages,15/02/2019,5169023,305.00,William White Meats Ltd
Childrens Services,Children's Social Care,Children Looked After,Virtual School PPG,Third Party Payments - Payments to Schools,15/02/2019,5169063,700.00,Gable Hall School
Childrens Services,Cultural and Related Services,Open Spaces,Mile End Park,Computing - Purchase of Hardware,15/02/2019,5169087,320.15,VMS Network Cabling Ltd
Childrens Services,Cultural and Related Services,Open Spaces,Victoria Park,Grounds Maintenance - Contract - Street Furniture,15/02/2019,5170260,"1,542.00",Broxap Ltd
Childrens Services,Children's Social Care,Children Looked After,Virtual School PPG,Third Party Payments - Payments to Schools,15/02/2019,5171176,700.00,Brampton Primary School
Childrens Services,Education Services,Other Strategic Functions,Special Education Needs DSG,Third Party Payments - Payments to Schools,15/02/2019,5171215,"11,686.32",Ferndearle Child Care Services Ltd
Childrens Services,Education Services,Other Strategic Functions,Music Trading Account,Educational/Training Supplies - Arts & Crafts,15/02/2019,5171248,518.00,LMS Music Supplies
Childrens Services,Children's Social Care,Commissioning and Social Work,Children-Mental Health,Meeting Expenses,15/02/2019,5171965,313.33,the royal foundation of st katharine
Childrens Services,Children's Social Care,Support Service and Management Costs,Sch. Meals A/c - Bow School,Kitchen Supplies - Food and Beverages,15/02/2019,5172033,907.20,Tiffin Sandwiches
Childrens Services,Children's Social Care,Support Service and Management Costs,Sch. Meals A/c - C.F.S. Upper (Harley Grove),Catering - Hospitality,15/02/2019,5172034,729.00,Tiffin Sandwiches
Childrens Services,Children's Social Care,Support Service and Management Costs,Sch. Meals A/c - Morpeth,Kitchen Supplies - Food and Beverages,15/02/2019,5172035,"1,202.99",Tiffin Sandwiches
Childrens Services,Children's Social Care,Support Service and Management Costs,Sch. Meals A/c - Raines Foundation,Kitchen Supplies - Food and Beverages,15/02/2019,5172037,324.00,Tiffin Sandwiches
Childrens Services,Children's Social Care,Support Service and Management Costs,Sch. Meals A/c - St. Paul's Way Comm. Trust,Kitchen Supplies - Food and Beverages,15/02/2019,5172038,375.84,Tiffin Sandwiches
Childrens Services,Children's Social Care,Support Service and Management Costs,Sch. Meals A/c - Stepney Green,Kitchen Supplies - Food and Beverages,15/02/2019,5172039,283.50,Tiffin Sandwiches
Childrens Services,Children's Social Care,Support Service and Management Costs,"Mulberry Caf�		",Kitchen Supplies - Food and Beverages,15/02/2019,5172040,376.33,Tiffin Sandwiches
Childrens Services,Children's Social Care,Children Looked After,S23 Fam Pl P&V-F/Care,Social Care - Day Care,15/02/2019,5172050,"10,486.00",Positive Families Partnership LLP
Childrens Services,Children's Social Care,Support Service and Management Costs,Schools Catering,Kitchen Supplies - Food and Beverages,15/02/2019,5172218,391.77,William White Meats Ltd
Childrens Services,Children's Social Care,Support Service and Management Costs,Schools Catering,Kitchen Supplies - Food and Beverages,15/02/2019,5172222,256.87,William White Meats Ltd
Childrens Services,Children's Social Care,Support Service and Management Costs,Schools Catering,Kitchen Supplies - Food and Beverages,15/02/2019,5172223,302.13,William White Meats Ltd
Childrens Services,Children's Social Care,Support Service and Management Costs,Schools Catering,Kitchen Supplies - Food and Beverages,15/02/2019,5172227,912.17,William White Meats Ltd
Childrens Services,Children's Social Care,Support Service and Management Costs,Schools Catering,Kitchen Supplies - Food and Beverages,15/02/2019,5172231,539.53,William White Meats Ltd
Childrens Services,Children's Social Care,Support Service and Management Costs,Schools Catering,Kitchen Supplies - Food and Beverages,15/02/2019,5172232,585.62,William White Meats Ltd
Childrens Services,Children's Social Care,Support Service and Management Costs,Schools Catering,Kitchen Supplies - Food and Beverages,15/02/2019,5172234,528.10,William White Meats Ltd
Childrens Services,Children's Social Care,Support Service and Management Costs,Schools Catering,Kitchen Supplies - Food and Beverages,15/02/2019,5172235,405.81,William White Meats Ltd
Childrens Services,Children's Social Care,Support Service and Management Costs,Schools Catering,Kitchen Supplies - Food and Beverages,15/02/2019,5172239,575.93,William White Meats Ltd
Childrens Services,Children's Social Care,Support Service and Management Costs,Schools Catering,Kitchen Supplies - Food and Beverages,15/02/2019,5172243,267.67,William White Meats Ltd
Childrens Services,Children's Social Care,Support Service and Management Costs,Schools Catering,Kitchen Supplies - Food and Beverages,15/02/2019,5172245,257.78,William White Meats Ltd
Childrens Services,Children's Social Care,Support Service and Management Costs,Schools Catering,Kitchen Supplies - Food and Beverages,15/02/2019,5172249,296.77,William White Meats Ltd
Childrens Services,Children's Social Care,Support Service and Management Costs,Schools Catering,Kitchen Supplies - Food and Beverages,15/02/2019,5172254,409.17,William White Meats Ltd
Childrens Services,Children's Social Care,Support Service and Management Costs,Schools Catering,Kitchen Supplies - Food and Beverages,15/02/2019,5172256,445.24,William White Meats Ltd
Childrens Services,Children's Social Care,Support Service and Management Costs,Schools Catering,Kitchen Supplies - Food and Beverages,15/02/2019,5172267,627.99,William White Meats Ltd
Childrens Services,Children's Social Care,Support Service and Management Costs,Schools Catering,Kitchen Supplies - Food and Beverages,15/02/2019,5172269,270.57,William White Meats Ltd
Childrens Services,Children's Social Care,Support Service and Management Costs,Schools Catering,Kitchen Supplies - Food and Beverages,15/02/2019,5172274,680.56,William White Meats Ltd
Childrens Services,Children's Social Care,Support Service and Management Costs,Schools Catering,Kitchen Supplies - Food and Beverages,15/02/2019,5172275,354.56,William White Meats Ltd
Childrens Services,Children's Social Care,Support Service and Management Costs,Schools Catering,Kitchen Supplies - Food and Beverages,15/02/2019,5172277,341.15,William White Meats Ltd
Childrens Services,Children's Social Care,Support Service and Management Costs,Schools Catering,Kitchen Supplies - Food and Beverages,15/02/2019,5172279,668.68,William White Meats Ltd
Childrens Services,Children's Social Care,Children Looked After,S23 Family Placements P&V,Childrens Act Section 23 - Placement Fee,15/02/2019,5172371,"4,223.52",Select Fostercare Services Ltd
Childrens Services,Children's Social Care,Children Looked After,S23 Family Placements P&V,Childrens Act Section 23 - Placement Fee,15/02/2019,5172372,"3,039.12",Select Fostercare Services Ltd
Childrens Services,Children's Social Care,Children Looked After,S23 Family Placements P&V,Childrens Act Section 23 - Placement Fee,15/02/2019,5172373,"3,199.00",Select Fostercare Services Ltd
Childrens Services,Education Services,Early Years,Children Centre Central Team,Medical Requisites,15/02/2019,5172474,555.00,NHS SUPPLY CHAIN
Childrens Services,Children's Social Care,Services for young people,Youth Service Management,Third Party Payments - Voluntary Associations,15/02/2019,5173325,"19,462.00",NEWARK YOUTH LONDON
Childrens Services,Children's Social Care,Commissioning and Social Work,Advice and Assessment Section 17,Childrens Act Section 17 - Interpreting/Translation,15/02/2019,5174115,"5,068.85",Oncall Interpreters LTD
Childrens Services,Children's Social Care,Commissioning and Social Work,Advice and Assessment Section 17,Childrens Act Section 17 - Interpreting/Translation,15/02/2019,5174116,"4,197.45",Oncall Interpreters LTD
Childrens Services,Children's Social Care,Children Looked After,Virtual School PPG,Education & Training - Non Staff Tuition Fees,15/02/2019,5174620,700.00,Anchor Teaching Ltd
Childrens Services,Children's Social Care,Children Looked After,S23 Fam Pl P&V-F/Care,Childrens Act Section 23 - All Contact Expenses,15/02/2019,5174621,480.00,Unique Contact and Community Services
Childrens Services,Children's Social Care,Commissioning and Social Work,Advice and Assessment Section 17,Childrens Act Section 17 - Independent Sector Providers,15/02/2019,5175608,878.22,PERSONAL SECURITY SERVICES LTD
Childrens Services,Children's Social Care,Commissioning and Social Work,Advice and Assessment Section 17,Childrens Act Section 17 - Independent Sector Providers,15/02/2019,5175609,"1,200.12",PERSONAL SECURITY SERVICES LTD
Childrens Services,Children's Social Care,Commissioning and Social Work,Advice and Assessment Section 17,Childrens Act Section 17 - Other Placements Bed & Breakfast,15/02/2019,5176264,270.00,PARK HOTEL
Childrens Services,Children's Social Care,Children Looked After,Children Looked After Team 5,Services - Professional Fees - Counsel's Fees,15/02/2019,5176943,"4,250.00",5 Pump Court CDS
Childrens Services,Education Services,Other Strategic Functions,Alternative Provision,Third Party Payments - Contingencies,15/02/2019,5178313,"6,000.00",Right Choice
Childrens Services,Children's Social Care,Support Service and Management Costs,Professional Dev Centre,Comms - Postages,15/02/2019,5178395,432.90,Pitney Bowes DMT
Childrens Services,Children's Social Care,Service Strategy,FSP Sect 17 - Team 5,Non Staff Transport Costs - Reimbursement,15/02/2019,5178705,680.00,Mile End Car Hire Limited
Childrens Services,Children's Social Care,Children Looked After,S23-Other-Mother & Baby Unit,Childrens Act Section 23 - Placement Fee,15/02/2019,5178940,"7,885.71",OneOneCoCo
Childrens Services,Education Services,Early Years,EYS Mainstream Grants,Third Party Payments - Voluntary Associations,15/02/2019,5178942,"7,500.00",Prospects Services
Childrens Services,Children's Social Care,Family Support Services,CNN Pool: Joint Family Support,Social Care - Homecare,15/02/2019,5178944,"1,881.00",QALB Centre Short Break Services
Childrens Services,Children's Social Care,Family Support Services,CNN Pool: Joint Family Support,Social Care - Homecare,15/02/2019,5178945,"1,504.50",QALB Centre Short Break Services
Childrens Services,Children's Social Care,Children Looked After,LCS/Allowances-Accom,Leaving Care Financial Assistance - Supp Accom/Hous Rents,15/02/2019,5178987,"1,002.57",Youth reality homes
Childrens Services,Children's Social Care,Children Looked After,LCS/Allowances-Accom,Leaving Care Financial Assistance - Supported Living,15/02/2019,5178987,"11,223.42",Youth reality homes
Childrens Services,Children's Social Care,Children Looked After,LCS/Allowances-Accom,Leaving Care Financial Assistance - Supp Accom/Hous Rents,15/02/2019,5178988,968.00,Youth reality homes
Childrens Services,Children's Social Care,Children Looked After,LCS/Allowances-Accom,Leaving Care Financial Assistance - Supported Living,15/02/2019,5178988,"10,836.00",Youth reality homes
Childrens Services,Children's Social Care,Children Looked After,LCS/Allowances-Accom,Leaving Care Financial Assistance - Supp Accom/Hous Rents,15/02/2019,5178989,968.00,Youth reality homes
Childrens Services,Children's Social Care,Children Looked After,LCS/Allowances-Accom,Leaving Care Financial Assistance - Supported Living,15/02/2019,5178989,"10,836.00",Youth reality homes
Childrens Services,Children's Social Care,Children Looked After,LCS/Allowances-Accom,Leaving Care Financial Assistance - Supp Accom/Hous Rents,15/02/2019,5178991,968.00,Youth reality homes
Childrens Services,Children's Social Care,Children Looked After,LCS/Allowances-Accom,Leaving Care Financial Assistance - Supported Living,15/02/2019,5178991,"7,492.00",Youth reality homes
Childrens Services,Children's Social Care,Services for young people,LAPS 1 - 8,Educational/Training Supplies - Curriculum Visits/Activities,15/02/2019,5179076,580.00,Cardrome Learner Driver Centre
Childrens Services,Children's Social Care,Services for young people,LAPS 1 - 8,Educational/Training Supplies - Curriculum Visits/Activities,15/02/2019,5179077,580.00,Cardrome Learner Driver Centre
Childrens Services,Children's Social Care,Children Looked After,S23 Fam Pl In-Hse-S/Term F/C,Childrens Act Section 23 - Expert Assessmt/Witness Costs,15/02/2019,5180231,250.00,GOODMAN RAY SOLICITORS
Childrens Services,Children's Social Care,Children Looked After,S23-Other-Mother & Baby Unit,Childrens Act Section 23 - All Contact Expenses,15/02/2019,5180232,920.00,St Peter-In-The Forest
Childrens Services,Children's Social Care,Family Support Services,CNN Pool: Children Direct Paym,Social Care - Direct Payments,15/02/2019,5180244,715.10,DH TOWER HAMLETS
Childrens Services,Education Services,Services to Young People and Other Community Learners,Further and Higher Education,Education Trust - Grant,15/02/2019,5180257,"1,000.00",Kings College London
Childrens Services,Children's Social Care,Other Children's and Family Services,Adoption Support Fund,Social Care - Others,15/02/2019,5180286,540.00,Coram Academy Ltd T/A CoramBAAF
Childrens Services,Children's Social Care,Children Looked After,Virtual School PPG,Third Party Payments - Payments to Schools,15/02/2019,5180288,"1,400.00",BARRINGTON PRIMARY SCHOOL
Childrens Services,Cultural and Related Services,Culture & Heritage,Arts-Park Events,Events & Exhibition Supplies,15/02/2019,5180300,"3,300.00",Grassform Plant Hire Ltd
Childrens Services,Cultural and Related Services,Recreation & Sport,GLL Sports Centres,Payments to Private Contractors - Management Fee,15/02/2019,5180400,362.16,Basketball England
Childrens Services,Children's Social Care,Children Looked After,Special G/Ship Allowances,Childrens Act Section 23 - Expert Assessmt/Witness Costs,15/02/2019,5180559,324.00,The Priory Hospital
Childrens Services,Children's Social Care,Children Looked After,S23 Fam Pl In-Hse-S/Term F/C,Childrens Act Section 23 - Expert Assessmt/Witness Costs,15/02/2019,5180579,"1,106.24",Affinity Psychology Services Ltd
Childrens Services,Children's Social Care,Children Looked After,S23-Resi-P&V/OLA-Child Home,Childrens Act Section 23 - Commissioned Services,15/02/2019,5180581,"1,110.00",R.E.A.L Education Ltd
Childrens Services,Children's Social Care,Children Looked After,S23-Resi-P&V/OLA-Child Home,Childrens Act Section 23 - Commissioned Services,15/02/2019,5180583,796.00,R.E.A.L Education Ltd
Childrens Services,Children's Social Care,Children Looked After,S23-Resi-P&V/OLA-Child Home,Childrens Act Section 23 - Commissioned Services,15/02/2019,5180584,"1,501.50",R.E.A.L Education Ltd
Childrens Services,Children's Social Care,Children Looked After,S23-Resi-P&V/OLA-Child Home,Childrens Act Section 23 - Commissioned Services,15/02/2019,5180586,"1,475.00",R.E.A.L Education Ltd
Childrens Services,Children's Social Care,Children Looked After,S23-Resi-P&V/OLA-Child Home,Childrens Act Section 23 - Commissioned Services,15/02/2019,5180587,"1,374.00",R.E.A.L Education Ltd
Childrens Services,Children's Social Care,Children Looked After,LCS/Allowances-Accom,Leaving Care Financial Assistance - Supp Accom/Hous Rents,18/02/2019,5168522,"2,657.14",Alpha Care Service Ltd
Childrens Services,Children's Social Care,Children Looked After,LCS/Allowances-Accom,Leaving Care Financial Assistance - Supported Living,18/02/2019,5168522,"1,328.57",Alpha Care Service Ltd
Childrens Services,Children's Social Care,Children Looked After,S23-Other-Semi-Ind. Unit,Childrens Act Section 23 - Placement Fee,18/02/2019,5168523,"3,985.71",Alpha Care Service Ltd
Childrens Services,Cultural and Related Services,Open Spaces,Victoria Park,Repairs and Maintenance - Responsive - Repair & Maintenance,18/02/2019,5169027,600.00,JC Coster (Metalworks) Ltd
Childrens Services,Children's Social Care,Support Service and Management Costs,Schools Catering,Kitchen Supplies - Food and Beverages,18/02/2019,5169129,"1,046.23",Thomas Ridley & Son Ltd
Childrens Services,Children's Social Care,Support Service and Management Costs,Schools Catering,Kitchen Supplies - Food and Beverages,18/02/2019,5169131,441.95,Thomas Ridley & Son Ltd
Childrens Services,Children's Social Care,Support Service and Management Costs,Schools Catering,Kitchen Supplies - Food and Beverages,18/02/2019,5169132,301.37,Thomas Ridley & Son Ltd
Childrens Services,Children's Social Care,Support Service and Management Costs,Schools Catering,Kitchen Supplies - Food and Beverages,18/02/2019,5169134,321.05,Thomas Ridley & Son Ltd
Childrens Services,Children's Social Care,Support Service and Management Costs,Schools Catering,Kitchen Supplies - Food and Beverages,18/02/2019,5169135,"1,268.79",Thomas Ridley & Son Ltd
Childrens Services,Children's Social Care,Support Service and Management Costs,Sch. Meals A/c - Central Production Unit,Kitchen Supplies - Food and Beverages,18/02/2019,5169137,796.28,Thomas Ridley & Son Ltd
Childrens Services,Children's Social Care,Support Service and Management Costs,Schools Catering,Kitchen Supplies - Food and Beverages,18/02/2019,5169138,507.06,Thomas Ridley & Son Ltd
Childrens Services,Children's Social Care,Support Service and Management Costs,Schools Catering,Kitchen Supplies - Food and Beverages,18/02/2019,5169139,347.07,Thomas Ridley & Son Ltd
Childrens Services,Children's Social Care,Support Service and Management Costs,Schools Catering,Kitchen Supplies - Food and Beverages,18/02/2019,5169140,348.79,Thomas Ridley & Son Ltd
Childrens Services,Cultural and Related Services,Open Spaces,Mile End Park,Repairs and Maintenance - Responsive - Buildings,18/02/2019,5170201,"5,200.00",JC Coster (Metalworks) Ltd
Childrens Services,Cultural and Related Services,Open Spaces,Victoria Park,Repairs and Maintenance - Responsive - Repair & Maintenance,18/02/2019,5170205,485.00,Keep Britain Tidy
Childrens Services,Children's Social Care,Children Looked After,S23 Fam Pl P&V-F/Care,Childrens Act Section 23 - Placement Fee,18/02/2019,5170206,"3,529.35",Kent Homefinding and Fostering
Childrens Services,Children's Social Care,Children Looked After,S23 Fam Pl P&V-F/Care,Childrens Act Section 23 - Placement Fee,18/02/2019,5170207,"3,565.00",Kent Homefinding and Fostering
Childrens Services,Children's Social Care,Children Looked After,S23 Fam Pl P&V-F/Care,Childrens Act Section 23 - Placement Fee,18/02/2019,5170208,"1,206.00",Kent Homefinding and Fostering
Childrens Services,Children's Social Care,Children Looked After,S23 Fam Pl P&V-F/Care,Childrens Act Section 23 - Placement Fee,18/02/2019,5170209,"3,786.65",Kent Homefinding and Fostering
Childrens Services,Children's Social Care,Other Children's and Family Services,Permanancy and Adoption Support Team 1,Services - Professional Fees - Legal Fees/Expenses,18/02/2019,5170270,"2,850.00",Intuitive Blue Social Care Ltd
Childrens Services,Children's Social Care,Children Looked After,S23 Fam Pl P&V-F/Care,Childrens Act Section 23 - Placement Fee,18/02/2019,5170341,"4,200.00",Fostering Innovations Ltd
Childrens Services,Children's Social Care,Children Looked After,S23 Fam Pl P&V-F/Care,Childrens Act Section 23 - Placement Fee,18/02/2019,5170342,"4,650.00",Fostering Innovations Ltd
Childrens Services,Education Services,Other Strategic Functions,Special Education Needs DSG,Third Party Payments - Payments to Schools,18/02/2019,5170343,"-13,538.46",Transitional Care LTD
Childrens Services,Education Services,Other Strategic Functions,Special Education Needs DSG,Third Party Payments - Payments to Schools,18/02/2019,5170344,"19,166.67",Transitional Care LTD
Childrens Services,Children's Social Care,Children Looked After,S23-Other-Mother & Baby Unit,Childrens Act Section 23 - Placement Fee,18/02/2019,5170398,"4,642.80",Care 2 Share LTD
Childrens Services,Children's Social Care,Children Looked After,S23-Other-Mother & Baby Unit,Childrens Act Section 23 - Placement Fee,18/02/2019,5170400,"3,250.00",Care 2 Share LTD
Childrens Services,Children's Social Care,Children Looked After,S23-Other-Mother & Baby Unit,Childrens Act Section 23 - Placement Fee,18/02/2019,5170401,"3,250.00",Care 2 Share LTD
Childrens Services,Children's Social Care,Children Looked After,S23-Other-Mother & Baby Unit,Childrens Act Section 23 - Placement Fee,18/02/2019,5170402,"3,250.00",Care 2 Share LTD
Childrens Services,Cultural and Related Services,Culture & Heritage,Arts-Park Events,Events & Exhibition Supplies,18/02/2019,5170434,"5,885.00",Face Events LTD
Childrens Services,Cultural and Related Services,Culture & Heritage,Arts-Park Events,Events & Exhibition Supplies,18/02/2019,5170435,"3,700.00",Face Events LTD
Childrens Services,Children's Social Care,Support Service and Management Costs,Schools Catering,Kitchen Supplies - Food and Beverages,18/02/2019,5170441,670.11,Thomas Ridley & Son Ltd
Childrens Services,Children's Social Care,Support Service and Management Costs,Schools Catering,Kitchen Supplies - Food and Beverages,18/02/2019,5170442,323.33,Thomas Ridley & Son Ltd
Childrens Services,Children's Social Care,Support Service and Management Costs,Schools Catering,Kitchen Supplies - Food and Beverages,18/02/2019,5170444,296.48,Thomas Ridley & Son Ltd
Childrens Services,Children's Social Care,Support Service and Management Costs,Schools Catering,Kitchen Supplies - Food and Beverages,18/02/2019,5170445,478.77,Thomas Ridley & Son Ltd
Childrens Services,Children's Social Care,Support Service and Management Costs,Schools Catering,Kitchen Supplies - Food and Beverages,18/02/2019,5170446,480.39,Thomas Ridley & Son Ltd
Childrens Services,Children's Social Care,Support Service and Management Costs,Schools Catering,Kitchen Supplies - Food and Beverages,18/02/2019,5170447,450.25,Thomas Ridley & Son Ltd
Childrens Services,Children's Social Care,Support Service and Management Costs,Schools Catering,Kitchen Supplies - Food and Beverages,18/02/2019,5170449,489.03,Thomas Ridley & Son Ltd
Childrens Services,Children's Social Care,Support Service and Management Costs,Schools Catering,Kitchen Supplies - Food and Beverages,18/02/2019,5170452,453.83,Thomas Ridley & Son Ltd
Childrens Services,Children's Social Care,Support Service and Management Costs,Schools Catering,Kitchen Supplies - Food and Beverages,18/02/2019,5170453,465.53,Thomas Ridley & Son Ltd
Childrens Services,Children's Social Care,Support Service and Management Costs,Schools Catering,Kitchen Supplies - Food and Beverages,18/02/2019,5170454,735.92,Thomas Ridley & Son Ltd
Childrens Services,Children's Social Care,Support Service and Management Costs,Schools Catering,Kitchen Supplies - Food and Beverages,18/02/2019,5170455,559.55,Thomas Ridley & Son Ltd
Childrens Services,Children's Social Care,Support Service and Management Costs,Welfare Catering,Kitchen Supplies - Food and Beverages,18/02/2019,5170457,786.49,Thomas Ridley & Son Ltd
Childrens Services,Children's Social Care,Support Service and Management Costs,Schools Catering,Kitchen Supplies - Food and Beverages,18/02/2019,5170458,345.16,Thomas Ridley & Son Ltd
Childrens Services,Children's Social Care,Support Service and Management Costs,Schools Catering,Kitchen Supplies - Food and Beverages,18/02/2019,5170459,452.05,Thomas Ridley & Son Ltd
Childrens Services,Children's Social Care,Support Service and Management Costs,Schools Catering,Kitchen Supplies - Food and Beverages,18/02/2019,5170460,585.05,Thomas Ridley & Son Ltd
Childrens Services,Children's Social Care,Support Service and Management Costs,Schools Catering,Kitchen Supplies - Food and Beverages,18/02/2019,5170461,324.91,Thomas Ridley & Son Ltd
Childrens Services,Children's Social Care,Support Service and Management Costs,Schools Catering,Kitchen Supplies - Food and Beverages,18/02/2019,5170462,278.21,Thomas Ridley & Son Ltd
Childrens Services,Children's Social Care,Support Service and Management Costs,Schools Catering,Kitchen Supplies - Food and Beverages,18/02/2019,5170466,250.41,Thomas Ridley & Son Ltd
Childrens Services,Children's Social Care,Support Service and Management Costs,Schools Catering,Kitchen Supplies - Food and Beverages,18/02/2019,5170468,431.78,Thomas Ridley & Son Ltd
Childrens Services,Children's Social Care,Support Service and Management Costs,Schools Catering,Kitchen Supplies - Food and Beverages,18/02/2019,5170469,381.94,Thomas Ridley & Son Ltd
Childrens Services,Children's Social Care,Support Service and Management Costs,Schools Catering,Kitchen Supplies - Food and Beverages,18/02/2019,5170470,496.31,Thomas Ridley & Son Ltd
Childrens Services,Children's Social Care,Support Service and Management Costs,Schools Catering,Kitchen Supplies - Food and Beverages,18/02/2019,5170475,301.78,Thomas Ridley & Son Ltd
Childrens Services,Children's Social Care,Support Service and Management Costs,Schools Catering,Kitchen Supplies - Food and Beverages,18/02/2019,5170477,300.35,Thomas Ridley & Son Ltd
Childrens Services,Children's Social Care,Support Service and Management Costs,Schools Catering,Kitchen Supplies - Food and Beverages,18/02/2019,5170478,575.60,Thomas Ridley & Son Ltd
Childrens Services,Children's Social Care,Support Service and Management Costs,Swanlea,Kitchen Supplies - Food and Beverages,18/02/2019,5170479,479.94,Thomas Ridley & Son Ltd
Childrens Services,Children's Social Care,Support Service and Management Costs,Schools Catering,Kitchen Supplies - Food and Beverages,18/02/2019,5170480,429.81,Thomas Ridley & Son Ltd
Childrens Services,Children's Social Care,Support Service and Management Costs,Schools Catering,Kitchen Supplies - Food and Beverages,18/02/2019,5170481,265.52,Thomas Ridley & Son Ltd
Childrens Services,Children's Social Care,Children Looked After,S23 Family Placements P&V,Childrens Act Section 23 - Placement Fee,18/02/2019,5171250,"4,000.00",Credo Care ltd
Childrens Services,Education Services,Other Strategic Functions,Parental Engagement,Subscriptions - Associations,18/02/2019,5171377,"2,275.00",Race Equality Foundation
Childrens Services,Children's Social Care,Services for young people,Youth Service Management,Training Expenses - Staff Internal Training,18/02/2019,5171964,"3,300.00",the royal foundation of st katharine
Childrens Services,Children's Social Care,Services for young people,Youth Service Management,Training Expenses - Staff Internal Training,18/02/2019,5171964,"10,486.00",the royal foundation of st katharine
Childrens Services,Children's Social Care,Youth Justice,Partnerships,Third Party Payments - Voluntary Associations,18/02/2019,5172017,"12,500.00",St Giles Trust
Childrens Services,Children's Social Care,Children Looked After,S23-Other-Semi-Ind. Unit,Childrens Act Section 23 - Placement Fee,18/02/2019,5172356,412.08,Outward Housing
Childrens Services,Children's Social Care,Children Looked After,S23 Fam Pl P&V-F/Care,Childrens Act Section 23 - Placement Fee,18/02/2019,5172488,850.00,Qalb Fostering Agency Ltd
Childrens Services,Children's Social Care,Children Looked After,S23 Fam Pl P&V-F/Care,Childrens Act Section 23 - Placement Fee,18/02/2019,5172489,950.00,Qalb Fostering Agency Ltd
Childrens Services,Children's Social Care,Children Looked After,S23 Fam Pl P&V-F/Care,Childrens Act Section 23 - Placement Fee,18/02/2019,5172490,950.00,Qalb Fostering Agency Ltd
Childrens Services,Cultural and Related Services,Open Spaces,Mile End Park,Events & Exhibition Supplies,18/02/2019,5172528,320.88,A P Security (North) LTD
Childrens Services,Cultural and Related Services,Open Spaces,Mile End Park,Events & Exhibition Supplies,18/02/2019,5172529,336.16,A P Security (North) LTD
Childrens Services,Education Services,Other Strategic Functions,Special Education Needs DSG,Third Party Payments - Payments to Schools,18/02/2019,5172531,"7,000.00",The Complete Works Ltd
Childrens Services,Children's Social Care,Family Support Services,Short Breaks and Family Support,Third Party Payments - Voluntary Associations,18/02/2019,5173180,"30,000.00",Stephen Hawking School
Childrens Services,Education Services,Other Strategic Functions,Central Pupil Database Project,Computing - Purchase of Hardware,18/02/2019,5173317,457.92,Specialist Computer Centres PLC
Childrens Services,Children's Social Care,Children Looked After,S23 Fam Pl P&V-F/Care,Childrens Act Section 23 - Placement Fee,18/02/2019,5174674,"1,400.00",Qalb Fostering Agency Ltd
Childrens Services,Children's Social Care,Support Service and Management Costs,Schools Catering,Repairs and Maintenance - Responsive - General,18/02/2019,5177076,462.00,Lambourne Refrigeration
Childrens Services,Children's Social Care,Support Service and Management Costs,"Mulberry Caf�		",Kitchen Supplies - Crockery and Hardware,18/02/2019,5178217,256.95,Tri-Star Packaging Supplies LTD
Childrens Services,Education Services,Other Strategic Functions,Special Education Needs DSG,Third Party Payments - Payments to Schools,18/02/2019,5180451,"31,164.17",St Elizabeth's Centre
Childrens Services,Children's Social Care,Children Looked After,S23-Resi-P&V/OLA-Boarding Sch,Childrens Act Section 23 - Placement Fee,18/02/2019,5180451,"31,164.17",St Elizabeth's Centre
Childrens Services,Children's Social Care,Children Looked After,S23-Other-Mother & Baby Unit,Childrens Act Section 23 - Medical Expenses,18/02/2019,5180519,366.27,Symbol Family Support Services LTD
Childrens Services,Children's Social Care,Children Looked After,S23-Other-Mother & Baby Unit,Childrens Act Section 23 - Placement Fee,18/02/2019,5180519,"3,369.73",Symbol Family Support Services LTD
Childrens Services,Children's Social Care,Children's and Young People's Safety,FSP Sect 17 - Team 10,Childrens Act Section 17 - Expert Assessmt/Witness Costs,18/02/2019,5180588,849.73,EXPERT IN MIND LIMITED
Childrens Services,Education Services,Other Strategic Functions,Alternative Provision,Third Party Payments - Payments to Schools,18/02/2019,5181113,"3,000.00",BISHOP CHALLONER BOYS SCHOOL
Childrens Services,Education Services,Other Strategic Functions,Alternative Provision,Third Party Payments - Payments to Schools,18/02/2019,5181114,"3,000.00",BISHOP CHALLONER BOYS SCHOOL
Childrens Services,Education Services,Other Strategic Functions,Alternative Provision,Third Party Payments - Payments to Schools,18/02/2019,5181130,"3,000.00",LBTH SWANLEA SCHOOL
Childrens Services,Children's Social Care,Children Looked After,S23 Fam Pl In-Hse-S/Term F/C,Childrens Act Section 23 - Expert Assessmt/Witness Costs,18/02/2019,5181131,611.52,UBIQUS (UK) LTD
Childrens Services,Children's Social Care,Support Service and Management Costs,Professional Dev Centre,Computing - Maint Agreements - Software,18/02/2019,5181207,"4,064.40",Condeco Ltd
Childrens Services,Children's Social Care,Support Service and Management Costs,Professional Dev Centre,Computing - Purchase of Software,18/02/2019,5181208,720.00,Condeco Ltd
Childrens Services,Children's Social Care,Children Looked After,S23 Fam Pl P&V-F/Care,Childrens Act Section 23 - Placement Fee,19/02/2019,5184492,"1,100.00",Time For Children
Childrens Services,Children's Social Care,Youth Justice,Partnerships,Third Party Payments - Voluntary Associations,20/02/2019,5171191,"12,500.00",St Giles Trust
Childrens Services,Education Services,Other Strategic Functions,Central Pupil Database Project,Computing - Purchase of Software,20/02/2019,5171208,"12,000.00",Serverlec Synergy Ltd
Childrens Services,Children's Social Care,Children Looked After,S23-Resi-P&V/OLA-Child Home,Childrens Act Section 23 - Placement Fee,20/02/2019,5171226,"14,171.43",Hexagon Care Services
Childrens Services,Children's Social Care,Support Service and Management Costs,Schools Catering,Kitchen Supplies - Food and Beverages,20/02/2019,5171267,378.67,Thomas Ridley & Son Ltd
Childrens Services,Children's Social Care,Support Service and Management Costs,Schools Catering,Kitchen Supplies - Food and Beverages,20/02/2019,5171268,630.17,Thomas Ridley & Son Ltd
Childrens Services,Children's Social Care,Support Service and Management Costs,Schools Catering,Kitchen Supplies - Food and Beverages,20/02/2019,5171269,312.02,Thomas Ridley & Son Ltd
Childrens Services,Children's Social Care,Support Service and Management Costs,Schools Catering,Kitchen Supplies - Food and Beverages,20/02/2019,5171270,286.49,Thomas Ridley & Son Ltd
Childrens Services,Children's Social Care,Support Service and Management Costs,Schools Catering,Kitchen Supplies - Food and Beverages,20/02/2019,5171271,279.25,Thomas Ridley & Son Ltd
Childrens Services,Children's Social Care,Support Service and Management Costs,Schools Catering,Kitchen Supplies - Food and Beverages,20/02/2019,5171272,511.56,Thomas Ridley & Son Ltd
Childrens Services,Children's Social Care,Support Service and Management Costs,Schools Catering,Kitchen Supplies - Food and Beverages,20/02/2019,5171273,414.24,Thomas Ridley & Son Ltd
Childrens Services,Children's Social Care,Support Service and Management Costs,Schools Catering,Kitchen Supplies - Food and Beverages,20/02/2019,5171275,268.13,Thomas Ridley & Son Ltd
Childrens Services,Children's Social Care,Support Service and Management Costs,Schools Catering,Kitchen Supplies - Food and Beverages,20/02/2019,5171276,893.66,Thomas Ridley & Son Ltd
Childrens Services,Children's Social Care,Support Service and Management Costs,Schools Catering,Kitchen Supplies - Food and Beverages,20/02/2019,5171277,308.25,Thomas Ridley & Son Ltd
Childrens Services,Children's Social Care,Support Service and Management Costs,Welfare Catering,Kitchen Supplies - Food and Beverages,20/02/2019,5171278,446.89,Thomas Ridley & Son Ltd
Childrens Services,Children's Social Care,Support Service and Management Costs,Sch. Meals A/c - Central Production Unit,Kitchen Supplies - Food and Beverages,20/02/2019,5171280,"2,020.44",Thomas Ridley & Son Ltd
Childrens Services,Children's Social Care,Support Service and Management Costs,Schools Catering,Kitchen Supplies - Food and Beverages,20/02/2019,5171281,848.54,Thomas Ridley & Son Ltd
Childrens Services,Children's Social Care,Support Service and Management Costs,Schools Catering,Kitchen Supplies - Food and Beverages,20/02/2019,5171282,269.79,Thomas Ridley & Son Ltd
Childrens Services,Children's Social Care,Support Service and Management Costs,Schools Catering,Kitchen Supplies - Food and Beverages,20/02/2019,5171284,443.90,Thomas Ridley & Son Ltd
Childrens Services,Children's Social Care,Support Service and Management Costs,Schools Catering,Kitchen Supplies - Food and Beverages,20/02/2019,5171286,405.61,Thomas Ridley & Son Ltd
Childrens Services,Children's Social Care,Support Service and Management Costs,Schools Catering,Kitchen Supplies - Food and Beverages,20/02/2019,5171288,601.39,Thomas Ridley & Son Ltd
Childrens Services,Children's Social Care,Support Service and Management Costs,Schools Catering,Kitchen Supplies - Food and Beverages,20/02/2019,5171290,624.57,Thomas Ridley & Son Ltd
Childrens Services,Children's Social Care,Support Service and Management Costs,Schools Catering,Kitchen Supplies - Food and Beverages,20/02/2019,5171291,355.14,Thomas Ridley & Son Ltd
Childrens Services,Children's Social Care,Support Service and Management Costs,Schools Catering,Kitchen Supplies - Food and Beverages,20/02/2019,5171293,751.48,Thomas Ridley & Son Ltd
Childrens Services,Children's Social Care,Support Service and Management Costs,Schools Catering,Kitchen Supplies - Food and Beverages,20/02/2019,5171294,345.73,Thomas Ridley & Son Ltd
Childrens Services,Children's Social Care,Support Service and Management Costs,Schools Catering,Kitchen Supplies - Food and Beverages,20/02/2019,5171295,376.59,Thomas Ridley & Son Ltd
Childrens Services,Children's Social Care,Support Service and Management Costs,Schools Catering,Kitchen Supplies - Food and Beverages,20/02/2019,5171296,601.92,Thomas Ridley & Son Ltd
Childrens Services,Children's Social Care,Support Service and Management Costs,Schools Catering,Kitchen Supplies - Food and Beverages,20/02/2019,5171298,458.97,Thomas Ridley & Son Ltd
Childrens Services,Children's Social Care,Support Service and Management Costs,Schools Catering,Kitchen Supplies - Food and Beverages,20/02/2019,5171300,718.19,Thomas Ridley & Son Ltd
Childrens Services,Children's Social Care,Support Service and Management Costs,Schools Catering,Kitchen Supplies - Food and Beverages,20/02/2019,5171301,286.41,Thomas Ridley & Son Ltd
Childrens Services,Children's Social Care,Support Service and Management Costs,Schools Catering,Kitchen Supplies - Food and Beverages,20/02/2019,5171302,291.82,Thomas Ridley & Son Ltd
Childrens Services,Children's Social Care,Support Service and Management Costs,Schools Catering,Kitchen Supplies - Food and Beverages,20/02/2019,5171303,716.10,Thomas Ridley & Son Ltd
Childrens Services,Education Services,Services to Young People and Other Community Learners,Careers Service - Core,Stationery,20/02/2019,5171316,833.27,Office Depot (Catalogue)
Childrens Services,Education Services,Early Years,Meath Gardens CC,Office Furniture/Equipment,20/02/2019,5171323,429.51,Office Depot (Catalogue)
Childrens Services,Cultural and Related Services,Open Spaces,Parks & Open Spaces Man&Admin,Repairs and Maintenance - Responsive - Buildings,20/02/2019,5171369,"1,838.00",JC Coster (Metalworks) Ltd
Childrens Services,Cultural and Related Services,Culture & Heritage,Kobi Nazrul Centre,Events & Exhibition Supplies,20/02/2019,5171398,"1,300.00",Rehan Jamil Photography
Childrens Services,Cultural and Related Services,Recreation & Sport,Sports Development,Recreational Activities,20/02/2019,5171399,250.00,Rehan Jamil Photography
Childrens Services,Children's Social Care,Children Looked After,Enrichment Projects,Events & Exhibition Supplies,20/02/2019,5171400,300.00,Rehan Jamil Photography
Childrens Services,Children's Social Care,Children Looked After,S23 Fam Pl Fost/Adop Advert,Childrens Act Section 23 - Spec Pymnts Advertising,20/02/2019,5171402,600.00,Rehan Jamil Photography
Childrens Services,Cultural and Related Services,Open Spaces,Parks & Open Spaces Man&Admin,Events & Exhibition Supplies,20/02/2019,5171403,"1,750.00",Rehan Jamil Photography
Childrens Services,Children's Social Care,Other Children's and Family Services,Permanancy and Adoption Support Team 1,Services - Professional Fees - Legal Fees/Expenses,20/02/2019,5171409,"2,850.00",Intuitive Blue Social Care Ltd
Childrens Services,Children's Social Care,Children Looked After,S23 Fam Pl P&V-F/Care,Childrens Act Section 23 - Commissioned Services,20/02/2019,5171414,969.50,The Transformed You Community Interest Company
Childrens Services,Education Services,Early Years,Mowlem CC,Kitchen Supplies - Domestic Equipment,20/02/2019,5171431,384.75,ESPO
Childrens Services,Children's Social Care,Support Service and Management Costs,Schools Catering,Kitchen Supplies - Food and Beverages,20/02/2019,5171435,424.83,Thomas Ridley & Son Ltd
Childrens Services,Children's Social Care,Support Service and Management Costs,Schools Catering,Kitchen Supplies - Food and Beverages,20/02/2019,5171438,643.99,Thomas Ridley & Son Ltd
Childrens Services,Children's Social Care,Support Service and Management Costs,Schools Catering,Kitchen Supplies - Food and Beverages,20/02/2019,5171439,691.43,Thomas Ridley & Son Ltd
